Workbook

Sheet ALGUS
B1: TEAVE SELLE MALLI KOHTA
B2: Selle ärikulude eelarve töövihiku abil saate jälgida kavandatud ja tegelikke kulusid ning kuluerinevusi.
B3: Sisestage ettevõtte nimi ja logo.
B4: Sisestage andmed töölehtede Kavandatud kulud ja Tegelikud kulud tabelitesse.
B5: Töölehe Kuluerinevused tabeleid ja töölehe Kuluanalüüs graafikuid värskendatakse automaatselt
B6: Märkus.
B7: Iga töölehe veerus A on toodud lisajuhised. See tekst on tahtlikult peidetud. Teksti eemaldamiseks valige veerg A ja seejärel käsk KUSTUTA. Teksti kuvamiseks valige veerg A ja muutke seejärel fondi värvi.
B8: Tabelite kohta lisateabe saamiseks vajutage tabelis tõstuklahvi (SHIFT) ja seejärel klahvi F10, valige suvand TABEL ja seejärel käsk ASETEKST.

Sheet KAVANDATUD KULUD
B2: Ettevõtte nimi | K2: Üksikasjalikud kulude prognoosid
K3: Varjustatud lahtrites on arvutatud väärtused.
B4: KAVANDATUD KULUD | C4: JAAN | D4: VEEBR | E4: MÄRTS | F4: APR | G4: MAI | H4: JUUNI | I4: JUULI | J4: AUG | K4: SEPT | L4: OKT | M4: NOV | N4: DETS | O4: AASTA
B5: Töötaja kulud | C5: Jaan | D5: Veebr | E5: Märts | F5: Apr | G5: Mai | H5: Juuni | I5: Juuli | J5: Aug | K5: Sept | L5: Okt | M5: Nov | N5: Dets | O5: AASTA
B6: Palk | C6: 85,000.00 € | D6: 85,000.00 € | E6: 85,000.00 € | F6: 87,500.00 € | G6: 87,500.00 € | H6: 87,500.00 € | I6: 87,500.00 € | J6: 92,400.00 € | K6: 92,400.00 € | L6: 92,400.00 € | M6: 92,400.00 € | N6: 92,400.00 € | O6: =SUM(C6:N6) -> 1,067,000.00 €
B7: Soodustused | C7: =C6*0.27 -> 22,950.00 € | D7: 22,950.00 € | E7: 22,950.00 € | F7: 23,625.00 € | G7: 23,625.00 € | H7: 23,625.00 € | I7: 23,625.00 € | J7: 24,948.00 € | K7: 24,948.00 € | L7: 24,948.00 € | M7: 24,948.00 € | N7: 24,948.00 € | O7: =SUM(C7:N7) -> 288,090.00 €
B8: Vahesumma | C8: =SUBTOTAL(109,TöötajaKavandatud[Jaan]) -> 107,950.00 € | D8: =SUBTOTAL(109,TöötajaKavandatud[Veebr]) -> 107,950.00 € | E8: =SUBTOTAL(109,TöötajaKavandatud[Märts]) -> 107,950.00 € | F8: =SUBTOTAL(109,TöötajaKavandatud[Apr]) -> 111,125.00 € | G8: =SUBTOTAL(109,TöötajaKavandatud[Mai]) -> 111,125.00 € | H8: =SUBTOTAL(109,TöötajaKavandatud[Juuni]) -> 111,125.00 € | I8: =SUBTOTAL(109,TöötajaKavandatud[Juuli]) -> 111,125.00 € | J8: =SUBTOTAL(109,TöötajaKavandatud[Aug]) -> 117,348.00 € | K8: =SUBTOTAL(109,TöötajaKavandatud[Sept]) -> 117,348.00 € | L8: =SUBTOTAL(109,TöötajaKavandatud[Okt]) -> 117,348.00 € | M8: =SUBTOTAL(109,TöötajaKavandatud[Nov]) -> 117,348.00 € | N8: =SUBTOTAL(109,TöötajaKavandatud[Dets]) -> 117,348.00 € | O8: =SUBTOTAL(109,TöötajaKavandatud[AASTA]) -> 1,355,090.00 €
B10: Kontorikulud | C10: Jaan | D10: Veebr | E10: Märts | F10: Apr | G10: Mai | H10: Juuni | I10: Juuli | J10: Aug | K10: Sept | L10: Okt | M10: Nov | N10: Dets | O10: AASTA
B11: Kontoriüür | C11: 9,800.00 € | D11: 9,800.00 € | E11: 9,800.00 € | F11: 9,800.00 € | G11: 9,800.00 € | H11: 9,800.00 € | I11: 9,800.00 € | J11: 9,800.00 € | K11: 9,800.00 € | L11: 9,800.00 € | M11: 9,800.00 € | N11: 9,800.00 € | O11: =SUM(C11:N11) -> 117,600.00 €
B12: Gaas | D12: 400.00 € | E12: 400.00 € | F12: 100.00 € | G12: 100.00 € | H12: 100.00 € | I12: 100.00 € | J12: 100.00 € | K12: 100.00 € | L12: 100.00 € | M12: 400.00 € | N12: 400.00 € | O12: 2,300.00 €
B13: Elekter | C13: 300.00 € | D13: 300.00 € | E13: 300.00 € | F13: 300.00 € | G13: 300.00 € | H13: 300.00 € | I13: 300.00 € | J13: 300.00 € | K13: 300.00 € | L13: 300.00 € | M13: 300.00 € | N13: 300.00 € | O13: 3,600.00 €
B14: Vesi | C14: 40.00 € | D14: 40.00 € | E14: 40.00 € | F14: 40.00 € | G14: 40.00 € | H14: 40.00 € | I14: 40.00 € | J14: 40.00 € | K14: 40.00 € | L14: 40.00 € | M14: 40.00 € | N14: 40.00 € | O14: 480.00 €
B15: Telefon | C15: 250.00 € | D15: 250.00 € | E15: 250.00 € | F15: 250.00 € | G15: 250.00 € | H15: 250.00 € | I15: 250.00 € | J15: 250.00 € | K15: 250.00 € | L15: 250.00 € | M15: 250.00 € | N15: 250.00 € | O15: 3,000.00 €
B16: Interneti-ühendus | C16: 180.00 € | D16: 180.00 € | E16: 180.00 € | F16: 180.00 € | G16: 180.00 € | H16: 180.00 € | I16: 180.00 € | J16: 180.00 € | K16: 180.00 € | L16: 180.00 € | M16: 180.00 € | N16: 180.00 € | O16: 2,160.00 €
B17: Kontoritarbed | C17: 200.00 € | D17: 200.00 € | E17: 200.00 € | F17: 200.00 € | G17: 200.00 € | H17: 200.00 € | I17: 200.00 € | J17: 200.00 € | K17: 200.00 € | L17: 200.00 € | M17: 200.00 € | N17: 200.00 € | O17: 2,400.00 €
B18: Turvalisus | C18: 600.00 € | D18: 600.00 € | E18: 600.00 € | F18: 600.00 € | G18: 600.00 € | H18: 600.00 € | I18: 600.00 € | J18: 600.00 € | K18: 600.00 € | L18: 600.00 € | M18: 600.00 € | N18: 600.00 € | O18: 7,200.00 €
B19: Vahesumma | C19: =SUBTOTAL(109,KontorKavandatud[Jaan]) -> 11,370.00 € | D19: =SUBTOTAL(109,KontorKavandatud[Veebr]) -> 11,770.00 € | E19: =SUBTOTAL(109,KontorKavandatud[Märts]) -> 11,770.00 € | F19: =SUBTOTAL(109,KontorKavandatud[Apr]) -> 11,470.00 € | G19: =SUBTOTAL(109,KontorKavandatud[Mai]) -> 11,470.00 € | H19: =SUBTOTAL(109,KontorKavandatud[Juuni]) -> 11,470.00 € | I19: =SUBTOTAL(109,KontorKavandatud[Juuli]) -> 11,470.00 € | J19: =SUBTOTAL(109,KontorKavandatud[Aug]) -> 11,470.00 € | K19: =SUBTOTAL(109,KontorKavandatud[Sept]) -> 11,470.00 € | L19: =SUBTOTAL(109,KontorKavandatud[Okt]) -> 11,470.00 € | M19: =SUBTOTAL(109,KontorKavandatud[Nov]) -> 11,770.00 € | N19: =SUBTOTAL(109,KontorKavandatud[Dets]) -> 11,770.00 € | O19: =SUBTOTAL(109,KontorKavandatud[AASTA]) -> 138,740.00 €
B21: Turunduskulud | C21: Jaan | D21: Veebr | E21: Märts | F21: Apr | G21: Mai | H21: Juuni | I21: Juuli | J21: Aug | K21: Sept | L21: Okt | M21: Nov | N21: Dets | O21: AASTA
B22: Veebilehe majutus | C22: 500.00 € | D22: 500.00 € | E22: 500.00 € | F22: 500.00 € | G22: 500.00 € | H22: 500.00 € | I22: 500.00 € | J22: 500.00 € | K22: 500.00 € | L22: 500.00 € | M22: 500.00 € | N22: 500.00 € | O22: =SUM(C22:N22) -> 6,000.00 €
B23: Veebisaidi värskendused | C23: 200.00 € | D23: 200.00 € | E23: 200.00 € | F23: 200.00 € | G23: 200.00 € | H23: 1,000.00 € | I23: 200.00 € | J23: 200.00 € | K23: 200.00 € | L23: 200.00 € | M23: 200.00 € | N23: 1,000.00 € | O23: 4,000.00 €
B24: Kaasmaterjalide ettevalmistamine | C24: 5,000.00 € | D24: 0.00 € | E24: 0.00 € | F24: 5,000.00 € | G24: 0.00 € | H24: 0.00 € | I24: 5,000.00 € | J24: 0.00 € | K24: 0.00 € | L24: 5,000.00 € | M24: 0.00 € | N24: 0.00 € | O24: 20,000.00 €
B25: Kaasmaterjalide printimine | C25: 200.00 € | D25: 200.00 € | E25: 200.00 € | F25: 200.00 € | G25: 200.00 € | H25: 200.00 € | I25: 200.00 € | J25: 200.00 € | K25: 200.00 € | L25: 200.00 € | M25: 200.00 € | N25: 200.00 € | O25: 2,400.00 €
B26: Turundussündmused | C26: 2,000.00 € | D26: 2,000.00 € | E26: 2,000.00 € | F26: 5,000.00 € | G26: 2,000.00 € | H26: 2,000.00 € | I26: 2,000.00 € | J26: 5,000.00 € | K26: 2,000.00 € | L26: 2,000.00 € | M26: 2,000.00 € | N26: 5,000.00 € | O26: 33,000.00 €
B27: Muud kulud | C27: 200.00 € | D27: 200.00 € | E27: 200.00 € | F27: 200.00 € | G27: 200.00 € | H27: 200.00 € | I27: 200.00 € | J27: 200.00 € | K27: 200.00 € | L27: 200.00 € | M27: 200.00 € | N27: 200.00 € | O27: 2,400.00 €
B28: Vahesumma | C28: =SUBTOTAL(109,TurunduseKavandatud[Jaan]) -> 8,100.00 € | D28: =SUBTOTAL(109,TurunduseKavandatud[Veebr]) -> 3,100.00 € | E28: =SUBTOTAL(109,TurunduseKavandatud[Märts]) -> 3,100.00 € | F28: =SUBTOTAL(109,TurunduseKavandatud[Apr]) -> 11,100.00 € | G28: =SUBTOTAL(109,TurunduseKavandatud[Mai]) -> 3,100.00 € | H28: =SUBTOTAL(109,TurunduseKavandatud[Juuni]) -> 3,900.00 € | I28: =SUBTOTAL(109,TurunduseKavandatud[Juuli]) -> 8,100.00 € | J28: =SUBTOTAL(109,TurunduseKavandatud[Aug]) -> 6,100.00 € | K28: =SUBTOTAL(109,TurunduseKavandatud[Sept]) -> 3,100.00 € | L28: =SUBTOTAL(109,TurunduseKavandatud[Okt]) -> 8,100.00 € | M28: =SUBTOTAL(109,TurunduseKavandatud[Nov]) -> 3,100.00 € | N28: =SUBTOTAL(109,TurunduseKavandatud[Dets]) -> 6,900.00 € | O28: =SUBTOTAL(109,TurunduseKavandatud[AASTA]) -> 67,800.00 €
B30: Koolitus/reisimine | C30: Jaan | D30: Veebr | E30: Märts | F30: Apr | G30: Mai | H30: Juuni | I30: Juuli | J30: Aug | K30: Sept | L30: Okt | M30: Nov | N30: Dets | O30: AASTA
B31: Koolituskursused | C31: 2,000.00 € | D31: 2,000.00 € | E31: 2,000.00 € | F31: 2,000.00 € | G31: 2,000.00 € | H31: 2,000.00 € | I31: 2,000.00 € | J31: 2,000.00 € | K31: 2,000.00 € | L31: 2,000.00 € | M31: 2,000.00 € | N31: 2,000.00 € | O31: =SUM(C31:N31) -> 24,000.00 €
B32: Koolitusega seotud reisikulud | C32: 2,000.00 € | D32: 2,000.00 € | E32: 2,000.00 € | F32: 2,000.00 € | G32: 2,000.00 € | H32: 2,000.00 € | I32: 2,000.00 € | J32: 2,000.00 € | K32: 2,000.00 € | L32: 2,000.00 € | M32: 2,000.00 € | N32: 2,000.00 € | O32: =SUM(C32:N32) -> 24,000.00 €
B33: Vahesumma | C33: =SUBTOTAL(109,KoolituseJaReisiKavandatud[Jaan]) -> 4,000.00 € | D33: =SUBTOTAL(109,KoolituseJaReisiKavandatud[Veebr]) -> 4,000.00 € | E33: =SUBTOTAL(109,KoolituseJaReisiKavandatud[Märts]) -> 4,000.00 € | F33: =SUBTOTAL(109,KoolituseJaReisiKavandatud[Apr]) -> 4,000.00 € | G33: =SUBTOTAL(109,KoolituseJaReisiKavandatud[Mai]) -> 4,000.00 € | H33: =SUBTOTAL(109,KoolituseJaReisiKavandatud[Juuni]) -> 4,000.00 € | I33: =SUBTOTAL(109,KoolituseJaReisiKavandatud[Juuli]) -> 4,000.00 € | J33: =SUBTOTAL(109,KoolituseJaReisiKavandatud[Aug]) -> 4,000.00 € | K33: =SUBTOTAL(109,KoolituseJaReisiKavandatud[Sept]) -> 4,000.00 € | L33: =SUBTOTAL(109,KoolituseJaReisiKavandatud[Okt]) -> 4,000.00 € | M33: =SUBTOTAL(109,KoolituseJaReisiKavandatud[Nov]) -> 4,000.00 € | N33: =SUBTOTAL(109,KoolituseJaReisiKavandatud[Dets]) -> 4,000.00 € | O33: =SUBTOTAL(109,KoolituseJaReisiKavandatud[AASTA]) -> 48,000.00 €
B35: KOGUSUMMMAD | C35: Jaan | D35: Veebr | E35: Märts | F35: Apr | G35: Mai | H35: Juuni | I35: Juuli | J35: Aug | K35: Sept | L35: Okt | M35: Nov | N35: Dets | O35: Aasta
B36: Kavandatud kuu kulud | C36: =KoolituseJaReisiKavandatud[[#Totals],[Jaan]]+TurunduseKavandatud[[#Totals],[Jaan]]+KontorKavandatud[[#Totals],[Jaan]]+TöötajaKavandatud[[#Totals],[Jaan]] -> 131,420.00 € | D36: =KoolituseJaReisiKavandatud[[#Totals],[Veebr]]+TurunduseKavandatud[[#Totals],[Veebr]]+KontorKavandatud[[#Totals],[Veebr]]+TöötajaKavandatud[[#Totals],[Veebr]] -> 126,820.00 € | E36: =KoolituseJaReisiKavandatud[[#Totals],[Märts]]+TurunduseKavandatud[[#Totals],[Märts]]+KontorKavandatud[[#Totals],[Märts]]+TöötajaKavandatud[[#Totals],[Märts]] -> 126,820.00 € | F36: =KoolituseJaReisiKavandatud[[#Totals],[Apr]]+TurunduseKavandatud[[#Totals],[Apr]]+KontorKavandatud[[#Totals],[Apr]]+TöötajaKavandatud[[#Totals],[Apr]] -> 137,695.00 € | G36: =KoolituseJaReisiKavandatud[[#Totals],[Mai]]+TurunduseKavandatud[[#Totals],[Mai]]+KontorKavandatud[[#Totals],[Mai]]+TöötajaKavandatud[[#Totals],[Mai]] -> 129,695.00 € | H36: =KoolituseJaReisiKavandatud[[#Totals],[Juuni]]+TurunduseKavandatud[[#Totals],[Juuni]]+KontorKavandatud[[#Totals],[Juuni]]+TöötajaKavandatud[[#Totals],[Juuni]] -> 130,495.00 € | I36: =KoolituseJaReisiKavandatud[[#Totals],[Juuli]]+TurunduseKavandatud[[#Totals],[Juuli]]+KontorKavandatud[[#Totals],[Juuli]]+TöötajaKavandatud[[#Totals],[Juuli]] -> 134,695.00 € | J36: =KoolituseJaReisiKavandatud[[#Totals],[Aug]]+TurunduseKavandatud[[#Totals],[Aug]]+KontorKavandatud[[#Totals],[Aug]]+TöötajaKavandatud[[#Totals],[Aug]] -> 138,918.00 € | K36: =KoolituseJaReisiKavandatud[[#Totals],[Sept]]+TurunduseKavandatud[[#Totals],[Sept]]+KontorKavandatud[[#Totals],[Sept]]+TöötajaKavandatud[[#Totals],[Sept]] -> 135,918.00 € | L36: =KoolituseJaReisiKavandatud[[#Totals],[Okt]]+TurunduseKavandatud[[#Totals],[Okt]]+KontorKavandatud[[#Totals],[Okt]]+TöötajaKavandatud[[#Totals],[Okt]] -> 140,918.00 € | M36: =KoolituseJaReisiKavandatud[[#Totals],[Nov]]+TurunduseKavandatud[[#Totals],[Nov]]+KontorKavandatud[[#Totals],[Nov]]+TöötajaKavandatud[[#Totals],[Nov]] -> 136,218.00 € | N36: =KoolituseJaReisiKavandatud[[#Totals],[Dets]]+TurunduseKavandatud[[#Totals],[Dets]]+KontorKavandatud[[#Totals],[Dets]]+TöötajaKavandatud[[#Totals],[Dets]] -> 140,018.00 € | O36: =KoolituseJaReisiKavandatud[[#Totals],[AASTA]]+TurunduseKavandatud[[#Totals],[AASTA]]+KontorKavandatud[[#Totals],[AASTA]]+TöötajaKavandatud[[#Totals],[AASTA]] -> 1,609,630.00 €
B37: Kuu kulud KOKKU | C37: =SUM($C$36:C36) -> 131,420.00 € | D37: =SUM($C$36:D36) -> 258,240.00 € | E37: =SUM($C$36:E36) -> 385,060.00 € | F37: =SUM($C$36:F36) -> 522,755.00 € | G37: =SUM($C$36:G36) -> 652,450.00 € | H37: =SUM($C$36:H36) -> 782,945.00 € | I37: =SUM($C$36:I36) -> 917,640.00 € | J37: =SUM($C$36:J36) -> 1,056,558.00 € | K37: =SUM($C$36:K36) -> 1,192,476.00 € | L37: =SUM($C$36:L36) -> 1,333,394.00 € | M37: =SUM($C$36:M36) -> 1,469,612.00 € | N37: =SUM($C$36:N36) -> 1,609,630.00 €

Sheet TEGELIKUD KULUD
B2: ='KAVANDATUD KULUD'!B2:D3 -> Ettevõtte nimi | K2: =töölehe_pealkiri -> Üksikasjalikud kulude prognoosid
K3: Varjustatud lahtrites on arvutatud väärtused.
B4: TEGELIKUD KULUD | C4: JAAN | D4: VEEBR | E4: MÄRTS | F4: APR | G4: MAI | H4: JUUNI | I4: JUULI | J4: AUG | K4: SEPT | L4: OKT | M4: NOV | N4: DETS | O4: AASTA
B5: Töötaja kulud | C5: Jaan | D5: Veebr | E5: Märts | F5: Apr | G5: Mai | H5: Juuni | I5: Juuli | J5: Aug | K5: Sept | L5: Okt | M5: Nov | N5: Dets | O5: AASTA
B6: Palk | C6: 85,000.00 € | D6: 85,000.00 € | E6: 85,000.00 € | F6: 88,000.00 € | G6: 88,000.00 € | H6: 88,000.00 € | O6: =SUM(C6:N6) -> 519,000.00 €
B7: Soodustused | C7: =C6*0.27 -> 22,950.00 € | D7: 22,950.00 € | E7: 22,950.00 € | F7: 23,760.00 € | G7: 23,760.00 € | H7: 23,760.00 € | I7: 0.00 € | J7: 0.00 € | K7: 0.00 € | L7: 0.00 € | M7: 0.00 € | N7: 0.00 € | O7: =SUM(C7:N7) -> 140,130.00 €
B8: Vahesumma | C8: =SUBTOTAL(109,TöötajaTegelikud[Jaan]) -> 107,950.00 € | D8: =SUBTOTAL(109,TöötajaTegelikud[Veebr]) -> 107,950.00 € | E8: =SUBTOTAL(109,TöötajaTegelikud[Märts]) -> 107,950.00 € | F8: =SUBTOTAL(109,TöötajaTegelikud[Apr]) -> 111,760.00 € | G8: =SUBTOTAL(109,TöötajaTegelikud[Mai]) -> 111,760.00 € | H8: =SUBTOTAL(109,TöötajaTegelikud[Juuni]) -> 111,760.00 € | I8: =SUBTOTAL(109,TöötajaTegelikud[Juuli]) -> 0.00 € | J8: =SUBTOTAL(109,TöötajaTegelikud[Aug]) -> 0.00 € | K8: =SUBTOTAL(109,TöötajaTegelikud[Sept]) -> 0.00 € | L8: =SUBTOTAL(109,TöötajaTegelikud[Okt]) -> 0.00 € | M8: =SUBTOTAL(109,TöötajaTegelikud[Nov]) -> 0.00 € | N8: =SUBTOTAL(109,TöötajaTegelikud[Dets]) -> 0.00 € | O8: =SUBTOTAL(109,TöötajaTegelikud[AASTA]) -> 659,130.00 €
B10: Kontorikulud | C10: Jaan | D10: Veebr | E10: Märts | F10: Apr | G10: Mai | H10: Juuni | I10: Juuli | J10: Aug | K10: Sept | L10: Okt | M10: Nov | N10: Dets | O10: AASTA
B11: Kontoriüür | C11: 9,800.00 € | D11: 9,800.00 € | E11: 9,800.00 € | F11: 9,800.00 € | G11: 9,800.00 € | H11: 9,800.00 € | O11: =SUM(C11:N11) -> 58,800.00 €
B12: Gaas | C12: 4.00 € | D12: 430.00 € | E12: 385.00 € | F12: 230.00 € | G12: 87.00 € | H12: 88.00 € | O12: 1,224.00 €
B13: Elekter | C13: 288.00 € | D13: 278.00 € | E13: 268.00 € | F13: 299.00 € | G13: 306.00 € | H13: 290.00 € | O13: 1,729.00 €
B14: Vesi | C14: 35.00 € | D14: 33.00 € | E14: 34.00 € | F14: 36.00 € | G14: 34.00 € | H14: 36.00 € | O14: 208.00 €
B15: Telefon | C15: 224.00 € | D15: 235.00 € | E15: 265.00 € | F15: 245.00 € | G15: 245.00 € | H15: 220.00 € | O15: 1,434.00 €
B16: Interneti-ühendus | C16: 180.00 € | D16: 180.00 € | E16: 180.00 € | F16: 180.00 € | G16: 180.00 € | H16: 180.00 € | O16: 1,080.00 €
B17: Kontoritarbed | C17: 256.00 € | D17: 142.00 € | E17: 160.00 € | F17: 221.00 € | G17: 256.00 € | H17: 240.00 € | O17: 1,275.00 €
B18: Turvalisus | C18: 600.00 € | D18: 600.00 € | E18: 600.00 € | F18: 600.00 € | G18: 600.00 € | H18: 600.00 € | O18: 3,600.00 €
B19: Vahesumma | C19: =SUBTOTAL(109,KontoriTegelikud[Jaan]) -> 11,387.00 € | D19: =SUBTOTAL(109,KontoriTegelikud[Veebr]) -> 11,698.00 € | E19: =SUBTOTAL(109,KontoriTegelikud[Märts]) -> 11,692.00 € | F19: =SUBTOTAL(109,KontoriTegelikud[Apr]) -> 11,611.00 € | G19: =SUBTOTAL(109,KontoriTegelikud[Mai]) -> 11,508.00 € | H19: =SUBTOTAL(109,KontoriTegelikud[Juuni]) -> 11,454.00 € | I19: =SUBTOTAL(109,KontoriTegelikud[Juuli]) -> 0.00 € | J19: =SUBTOTAL(109,KontoriTegelikud[Aug]) -> 0.00 € | K19: =SUBTOTAL(109,KontoriTegelikud[Sept]) -> 0.00 € | L19: =SUBTOTAL(109,KontoriTegelikud[Okt]) -> 0.00 € | M19: =SUBTOTAL(109,KontoriTegelikud[Nov]) -> 0.00 € | N19: =SUBTOTAL(109,KontoriTegelikud[Dets]) -> 0.00 € | O19: =SUBTOTAL(109,KontoriTegelikud[AASTA]) -> 69,350.00 €
B21: Turunduskulud | C21: Jaan | D21: Veebr | E21: Märts | F21: Apr | G21: Mai | H21: Juuni | I21: Juuli | J21: Aug | K21: Sept | L21: Okt | M21: Nov | N21: Dets | O21: AASTA
B22: Veebilehe majutus | C22: 500.00 € | D22: 500.00 € | E22: 500.00 € | F22: 500.00 € | G22: 500.00 € | H22: 500.00 € | O22: =SUM(C22:N22) -> 3,000.00 €
B23: Veebisaidi värskendused | C23: 200.00 € | D23: 200.00 € | E23: 200.00 € | F23: 200.00 € | G23: 200.00 € | H23: 1,500.00 € | O23: 2,500.00 €
B24: Kaasmaterjalide ettevalmistamine | C24: 4,800.00 € | D24: 0.00 € | E24: 0.00 € | F24: 5,500.00 € | G24: 0.00 € | H24: 0.00 € | O24: 10,300.00 €
B25: Kaasmaterjalide printimine | C25: 100.00 € | D25: 500.00 € | E25: 100.00 € | F25: 100.00 € | G25: 600.00 € | H25: 180.00 € | O25: 1,580.00 €
B26: Turundussündmused | C26: 1,800.00 € | D26: 2,200.00 € | E26: 2,200.00 € | F26: 4,700.00 € | G26: 1,500.00 € | H26: 2,300.00 € | O26: 14,700.00 €
B27: Muud kulud | C27: 145.00 € | D27: 156.00 € | E27: 123.00 € | F27: 223.00 € | G27: 187.00 € | H27: 245.00 € | O27: 1,079.00 €
B28: Vahesumma | C28: =SUBTOTAL(109,TurunduseTegelikud[Jaan]) -> 7,545.00 € | D28: =SUBTOTAL(109,TurunduseTegelikud[Veebr]) -> 3,556.00 € | E28: =SUBTOTAL(109,TurunduseTegelikud[Märts]) -> 3,123.00 € | F28: =SUBTOTAL(109,TurunduseTegelikud[Apr]) -> 11,223.00 € | G28: =SUBTOTAL(109,TurunduseTegelikud[Mai]) -> 2,987.00 € | H28: =SUBTOTAL(109,TurunduseTegelikud[Juuni]) -> 4,725.00 € | I28: =SUBTOTAL(109,TurunduseTegelikud[Juuli]) -> 0.00 € | J28: =SUBTOTAL(109,TurunduseTegelikud[Aug]) -> 0.00 € | K28: =SUBTOTAL(109,TurunduseTegelikud[Sept]) -> 0.00 € | L28: =SUBTOTAL(109,TurunduseTegelikud[Okt]) -> 0.00 € | M28: =SUBTOTAL(109,TurunduseTegelikud[Nov]) -> 0.00 € | N28: =SUBTOTAL(109,TurunduseTegelikud[Dets]) -> 0.00 € | O28: =SUBTOTAL(109,TurunduseTegelikud[AASTA]) -> 33,159.00 €
B30: Koolitus/reisimine | C30: Jaan | D30: Veebr | E30: Märts | F30: Apr | G30: Mai | H30: Juuni | I30: Juuli | J30: Aug | K30: Sept | L30: Okt | M30: Nov | N30: Dets | O30: AASTA
B31: Koolituskursused | C31: 1,600.00 € | D31: 2,400.00 € | E31: 1,400.00 € | F31: 1,600.00 € | G31: 1,200.00 € | H31: 2,800.00 € | O31: =SUM(C31:N31) -> 11,000.00 €
B32: Koolitusega seotud reisikulud | C32: 1,200.00 € | D32: 2,200.00 € | E32: 1,400.00 € | F32: 1,200.00 € | G32: 800.00 € | H32: 3,500.00 € | O32: =SUM(C32:N32) -> 10,300.00 €
B33: Vahesumma | C33: =SUBTOTAL(109,KoolituseJaReisiTegelikud[Jaan]) -> 2,800.00 € | D33: =SUBTOTAL(109,KoolituseJaReisiTegelikud[Veebr]) -> 4,600.00 € | E33: =SUBTOTAL(109,KoolituseJaReisiTegelikud[Märts]) -> 2,800.00 € | F33: =SUBTOTAL(109,KoolituseJaReisiTegelikud[Apr]) -> 2,800.00 € | G33: =SUBTOTAL(109,KoolituseJaReisiTegelikud[Mai]) -> 2,000.00 € | H33: =SUBTOTAL(109,KoolituseJaReisiTegelikud[Juuni]) -> 6,300.00 € | I33: =SUBTOTAL(109,KoolituseJaReisiTegelikud[Juuli]) -> 0.00 € | J33: =SUBTOTAL(109,KoolituseJaReisiTegelikud[Aug]) -> 0.00 € | K33: =SUBTOTAL(109,KoolituseJaReisiTegelikud[Sept]) -> 0.00 € | L33: =SUBTOTAL(109,KoolituseJaReisiTegelikud[Okt]) -> 0.00 € | M33: =SUBTOTAL(109,KoolituseJaReisiTegelikud[Nov]) -> 0.00 € | N33: =SUBTOTAL(109,KoolituseJaReisiTegelikud[Dets]) -> 0.00 € | O33: =SUBTOTAL(109,KoolituseJaReisiTegelikud[AASTA]) -> 21,300.00 €
B35: Kuu kulud KOKKU | C35: Jaan | D35: Veebr | E35: Märts | F35: Apr | G35: Mai | H35: Juuni | I35: Juuli | J35: Aug | K35: Sept | L35: Okt | M35: Nov | N35: Dets | O35: Aasta
B36: Tegelikud kuu kulud | C36: =KoolituseJaReisiTegelikud[[#Totals],[Jaan]]+TurunduseTegelikud[[#Totals],[Jaan]]+KontoriTegelikud[[#Totals],[Jaan]]+TöötajaTegelikud[[#Totals],[Jaan]] -> 129,682.00 € | D36: =KoolituseJaReisiTegelikud[[#Totals],[Veebr]]+TurunduseTegelikud[[#Totals],[Veebr]]+KontoriTegelikud[[#Totals],[Veebr]]+TöötajaTegelikud[[#Totals],[Veebr]] -> 127,804.00 € | E36: =KoolituseJaReisiTegelikud[[#Totals],[Märts]]+TurunduseTegelikud[[#Totals],[Märts]]+KontoriTegelikud[[#Totals],[Märts]]+TöötajaTegelikud[[#Totals],[Märts]] -> 125,565.00 € | F36: =KoolituseJaReisiTegelikud[[#Totals],[Apr]]+TurunduseTegelikud[[#Totals],[Apr]]+KontoriTegelikud[[#Totals],[Apr]]+TöötajaTegelikud[[#Totals],[Apr]] -> 137,394.00 € | G36: =KoolituseJaReisiTegelikud[[#Totals],[Mai]]+TurunduseTegelikud[[#Totals],[Mai]]+KontoriTegelikud[[#Totals],[Mai]]+TöötajaTegelikud[[#Totals],[Mai]] -> 128,255.00 € | H36: =KoolituseJaReisiTegelikud[[#Totals],[Juuni]]+TurunduseTegelikud[[#Totals],[Juuni]]+KontoriTegelikud[[#Totals],[Juuni]]+TöötajaTegelikud[[#Totals],[Juuni]] -> 134,239.00 € | I36: =KoolituseJaReisiTegelikud[[#Totals],[Juuli]]+TurunduseTegelikud[[#Totals],[Juuli]]+KontoriTegelikud[[#Totals],[Juuli]]+TöötajaTegelikud[[#Totals],[Juuli]] -> 0.00 € | J36: =KoolituseJaReisiTegelikud[[#Totals],[Aug]]+TurunduseTegelikud[[#Totals],[Aug]]+KontoriTegelikud[[#Totals],[Aug]]+TöötajaTegelikud[[#Totals],[Aug]] -> 0.00 € | K36: =KoolituseJaReisiTegelikud[[#Totals],[Sept]]+TurunduseTegelikud[[#Totals],[Sept]]+KontoriTegelikud[[#Totals],[Sept]]+TöötajaTegelikud[[#Totals],[Sept]] -> 0.00 € | L36: =KoolituseJaReisiTegelikud[[#Totals],[Okt]]+TurunduseTegelikud[[#Totals],[Okt]]+KontoriTegelikud[[#Totals],[Okt]]+TöötajaTegelikud[[#Totals],[Okt]] -> 0.00 € | M36: =KoolituseJaReisiTegelikud[[#Totals],[Nov]]+TurunduseTegelikud[[#Totals],[Nov]]+KontoriTegelikud[[#Totals],[Nov]]+TöötajaTegelikud[[#Totals],[Nov]] -> 0.00 € | N36: =KoolituseJaReisiTegelikud[[#Totals],[Dets]]+TurunduseTegelikud[[#Totals],[Dets]]+KontoriTegelikud[[#Totals],[Dets]]+TöötajaTegelikud[[#Totals],[Dets]] -> 0.00 € | O36: =KoolituseJaReisiTegelikud[[#Totals],[AASTA]]+TurunduseTegelikud[[#Totals],[AASTA]]+KontoriTegelikud[[#Totals],[AASTA]]+TöötajaTegelikud[[#Totals],[AASTA]] -> 782,939.00 €
B37: Tegelikud kulud KOKKU | C37: =SUM($C$36:C36) -> 129,682.00 € | D37: =SUM($C$36:D36) -> 257,486.00 € | E37: =SUM($C$36:E36) -> 383,051.00 € | F37: =SUM($C$36:F36) -> 520,445.00 € | G37: =SUM($C$36:G36) -> 648,700.00 € | H37: =SUM($C$36:H36) -> 782,939.00 € | I37: =SUM($C$36:I36) -> 782,939.00 € | J37: =SUM($C$36:J36) -> 782,939.00 € | K37: =SUM($C$36:K36) -> 782,939.00 € | L37: =SUM($C$36:L36) -> 782,939.00 € | M37: =SUM($C$36:M36) -> 782,939.00 € | N37: =SUM($C$36:N36) -> 782,939.00 €

Sheet KULUERINEVUSED
B2: ='KAVANDATUD KULUD'!B2:D3 -> Ettevõtte nimi | K2: =töölehe_pealkiri -> Üksikasjalikud kulude prognoosid
K3: Varjustatud lahtrites on arvutatud väärtused.
B4: KULUERINEVUSED | C4: JAAN | D4: VEEBR | E4: MÄRTS | F4: APR | G4: MAI | H4: JUUNI | I4: JUULI | J4: AUG | K4: SEPT | L4: OKT | M4: NOV | N4: DETS | O4: AASTA
B5: Töötaja kulud | C5: Jaan | D5: Veebr | E5: Märts | F5: Apr | G5: Mai | H5: Juuni | I5: Juuli | J5: Aug | K5: Sept | L5: Okt | M5: Nov | N5: Dets | O5: AASTA
B6: Palk | C6: =INDEX(TöötajaKavandatud[],MATCH(INDEX(TöötajaErinevused[],ROW()-ROW(TöötajaErinevused[[#Headers],[Jaan]]),1),INDEX(TöötajaKavandatud[],,1),0),MATCH(TöötajaErinevused[[#Headers],[Jaan]],TöötajaKavandatud[#Headers],0))-INDEX(TöötajaTegelikud[],MATCH(INDEX(TöötajaErinevused[],ROW()-ROW(TöötajaErinevused[[#Headers],[Jaan]]),1),INDEX(TöötajaKavandatud[],,1),0),MATCH(TöötajaErinevused[[#Headers],[Jaan]],TöötajaTegelikud[#Headers],0)) -> 0.00 € | D6: =INDEX(TöötajaKavandatud[],MATCH(INDEX(TöötajaErinevused[],ROW()-ROW(TöötajaErinevused[[#Headers],[Veebr]]),1),INDEX(TöötajaKavandatud[],,1),0),MATCH(TöötajaErinevused[[#Headers],[Veebr]],TöötajaKavandatud[#Headers],0))-INDEX(TöötajaTegelikud[],MATCH(INDEX(TöötajaErinevused[],ROW()-ROW(TöötajaErinevused[[#Headers],[Veebr]]),1),INDEX(TöötajaKavandatud[],,1),0),MATCH(TöötajaErinevused[[#Headers],[Veebr]],TöötajaTegelikud[#Headers],0)) -> 0.00 € | E6: =INDEX(TöötajaKavandatud[],MATCH(INDEX(TöötajaErinevused[],ROW()-ROW(TöötajaErinevused[[#Headers],[Märts]]),1),INDEX(TöötajaKavandatud[],,1),0),MATCH(TöötajaErinevused[[#Headers],[Märts]],TöötajaKavandatud[#Headers],0))-INDEX(TöötajaTegelikud[],MATCH(INDEX(TöötajaErinevused[],ROW()-ROW(TöötajaErinevused[[#Headers],[Märts]]),1),INDEX(TöötajaKavandatud[],,1),0),MATCH(TöötajaErinevused[[#Headers],[Märts]],TöötajaTegelikud[#Headers],0)) -> 0.00 € | F6: =INDEX(TöötajaKavandatud[],MATCH(INDEX(TöötajaErinevused[],ROW()-ROW(TöötajaErinevused[[#Headers],[Apr]]),1),INDEX(TöötajaKavandatud[],,1),0),MATCH(TöötajaErinevused[[#Headers],[Apr]],TöötajaKavandatud[#Headers],0))-INDEX(TöötajaTegelikud[],MATCH(INDEX(TöötajaErinevused[],ROW()-ROW(TöötajaErinevused[[#Headers],[Apr]]),1),INDEX(TöötajaKavandatud[],,1),0),MATCH(TöötajaErinevused[[#Headers],[Apr]],TöötajaTegelikud[#Headers],0)) -> -500.00 € | G6: =INDEX(TöötajaKavandatud[],MATCH(INDEX(TöötajaErinevused[],ROW()-ROW(TöötajaErinevused[[#Headers],[Mai]]),1),INDEX(TöötajaKavandatud[],,1),0),MATCH(TöötajaErinevused[[#Headers],[Mai]],TöötajaKavandatud[#Headers],0))-INDEX(TöötajaTegelikud[],MATCH(INDEX(TöötajaErinevused[],ROW()-ROW(TöötajaErinevused[[#Headers],[Mai]]),1),INDEX(TöötajaKavandatud[],,1),0),MATCH(TöötajaErinevused[[#Headers],[Mai]],TöötajaTegelikud[#Headers],0)) -> -500.00 € | H6: =INDEX(TöötajaKavandatud[],MATCH(INDEX(TöötajaErinevused[],ROW()-ROW(TöötajaErinevused[[#Headers],[Juuni]]),1),INDEX(TöötajaKavandatud[],,1),0),MATCH(TöötajaErinevused[[#Headers],[Juuni]],TöötajaKavandatud[#Headers],0))-INDEX(TöötajaTegelikud[],MATCH(INDEX(TöötajaErinevused[],ROW()-ROW(TöötajaErinevused[[#Headers],[Juuni]]),1),INDEX(TöötajaKavandatud[],,1),0),MATCH(TöötajaErinevused[[#Headers],[Juuni]],TöötajaTegelikud[#Headers],0)) -> -500.00 € | I6: =INDEX(TöötajaKavandatud[],MATCH(INDEX(TöötajaErinevused[],ROW()-ROW(TöötajaErinevused[[#Headers],[Juuli]]),1),INDEX(TöötajaKavandatud[],,1),0),MATCH(TöötajaErinevused[[#Headers],[Juuli]],TöötajaKavandatud[#Headers],0))-INDEX(TöötajaTegelikud[],MATCH(INDEX(TöötajaErinevused[],ROW()-ROW(TöötajaErinevused[[#Headers],[Juuli]]),1),INDEX(TöötajaKavandatud[],,1),0),MATCH(TöötajaErinevused[[#Headers],[Juuli]],TöötajaTegelikud[#Headers],0)) -> 87,500.00 € | J6: =INDEX(TöötajaKavandatud[],MATCH(INDEX(TöötajaErinevused[],ROW()-ROW(TöötajaErinevused[[#Headers],[Aug]]),1),INDEX(TöötajaKavandatud[],,1),0),MATCH(TöötajaErinevused[[#Headers],[Aug]],TöötajaKavandatud[#Headers],0))-INDEX(TöötajaTegelikud[],MATCH(INDEX(TöötajaErinevused[],ROW()-ROW(TöötajaErinevused[[#Headers],[Aug]]),1),INDEX(TöötajaKavandatud[],,1),0),MATCH(TöötajaErinevused[[#Headers],[Aug]],TöötajaTegelikud[#Headers],0)) -> 92,400.00 € | K6: =INDEX(TöötajaKavandatud[],MATCH(INDEX(TöötajaErinevused[],ROW()-ROW(TöötajaErinevused[[#Headers],[Sept]]),1),INDEX(TöötajaKavandatud[],,1),0),MATCH(TöötajaErinevused[[#Headers],[Sept]],TöötajaKavandatud[#Headers],0))-INDEX(TöötajaTegelikud[],MATCH(INDEX(TöötajaErinevused[],ROW()-ROW(TöötajaErinevused[[#Headers],[Sept]]),1),INDEX(TöötajaKavandatud[],,1),0),MATCH(TöötajaErinevused[[#Headers],[Sept]],TöötajaTegelikud[#Headers],0)) -> 92,400.00 € | L6: =INDEX(TöötajaKavandatud[],MATCH(INDEX(TöötajaErinevused[],ROW()-ROW(TöötajaErinevused[[#Headers],[Okt]]),1),INDEX(TöötajaKavandatud[],,1),0),MATCH(TöötajaErinevused[[#Headers],[Okt]],TöötajaKavandatud[#Headers],0))-INDEX(TöötajaTegelikud[],MATCH(INDEX(TöötajaErinevused[],ROW()-ROW(TöötajaErinevused[[#Headers],[Okt]]),1),INDEX(TöötajaKavandatud[],,1),0),MATCH(TöötajaErinevused[[#Headers],[Okt]],TöötajaTegelikud[#Headers],0)) -> 92,400.00 € | M6: =INDEX(TöötajaKavandatud[],MATCH(INDEX(TöötajaErinevused[],ROW()-ROW(TöötajaErinevused[[#Headers],[Nov]]),1),INDEX(TöötajaKavandatud[],,1),0),MATCH(TöötajaErinevused[[#Headers],[Nov]],TöötajaKavandatud[#Headers],0))-INDEX(TöötajaTegelikud[],MATCH(INDEX(TöötajaErinevused[],ROW()-ROW(TöötajaErinevused[[#Headers],[Nov]]),1),INDEX(TöötajaKavandatud[],,1),0),MATCH(TöötajaErinevused[[#Headers],[Nov]],TöötajaTegelikud[#Headers],0)) -> 92,400.00 € | N6: =INDEX(TöötajaKavandatud[],MATCH(INDEX(TöötajaErinevused[],ROW()-ROW(TöötajaErinevused[[#Headers],[Dets]]),1),INDEX(TöötajaKavandatud[],,1),0),MATCH(TöötajaErinevused[[#Headers],[Dets]],TöötajaKavandatud[#Headers],0))-INDEX(TöötajaTegelikud[],MATCH(INDEX(TöötajaErinevused[],ROW()-ROW(TöötajaErinevused[[#Headers],[Dets]]),1),INDEX(TöötajaKavandatud[],,1),0),MATCH(TöötajaErinevused[[#Headers],[Dets]],TöötajaTegelikud[#Headers],0)) -> 92,400.00 € | O6: =SUM(TöötajaErinevused[[#This Row],[Jaan]:[Dets]]) -> 548,000.00 €
B7: Soodustused | C7: =INDEX(TöötajaKavandatud[],MATCH(INDEX(TöötajaErinevused[],ROW()-ROW(TöötajaErinevused[[#Headers],[Jaan]]),1),INDEX(TöötajaKavandatud[],,1),0),MATCH(TöötajaErinevused[[#Headers],[Jaan]],TöötajaKavandatud[#Headers],0))-INDEX(TöötajaTegelikud[],MATCH(INDEX(TöötajaErinevused[],ROW()-ROW(TöötajaErinevused[[#Headers],[Jaan]]),1),INDEX(TöötajaKavandatud[],,1),0),MATCH(TöötajaErinevused[[#Headers],[Jaan]],TöötajaTegelikud[#Headers],0)) -> 0.00 € | D7: =INDEX(TöötajaKavandatud[],MATCH(INDEX(TöötajaErinevused[],ROW()-ROW(TöötajaErinevused[[#Headers],[Veebr]]),1),INDEX(TöötajaKavandatud[],,1),0),MATCH(TöötajaErinevused[[#Headers],[Veebr]],TöötajaKavandatud[#Headers],0))-INDEX(TöötajaTegelikud[],MATCH(INDEX(TöötajaErinevused[],ROW()-ROW(TöötajaErinevused[[#Headers],[Veebr]]),1),INDEX(TöötajaKavandatud[],,1),0),MATCH(TöötajaErinevused[[#Headers],[Veebr]],TöötajaTegelikud[#Headers],0)) -> 0.00 € | E7: =INDEX(TöötajaKavandatud[],MATCH(INDEX(TöötajaErinevused[],ROW()-ROW(TöötajaErinevused[[#Headers],[Märts]]),1),INDEX(TöötajaKavandatud[],,1),0),MATCH(TöötajaErinevused[[#Headers],[Märts]],TöötajaKavandatud[#Headers],0))-INDEX(TöötajaTegelikud[],MATCH(INDEX(TöötajaErinevused[],ROW()-ROW(TöötajaErinevused[[#Headers],[Märts]]),1),INDEX(TöötajaKavandatud[],,1),0),MATCH(TöötajaErinevused[[#Headers],[Märts]],TöötajaTegelikud[#Headers],0)) -> 0.00 € | F7: =INDEX(TöötajaKavandatud[],MATCH(INDEX(TöötajaErinevused[],ROW()-ROW(TöötajaErinevused[[#Headers],[Apr]]),1),INDEX(TöötajaKavandatud[],,1),0),MATCH(TöötajaErinevused[[#Headers],[Apr]],TöötajaKavandatud[#Headers],0))-INDEX(TöötajaTegelikud[],MATCH(INDEX(TöötajaErinevused[],ROW()-ROW(TöötajaErinevused[[#Headers],[Apr]]),1),INDEX(TöötajaKavandatud[],,1),0),MATCH(TöötajaErinevused[[#Headers],[Apr]],TöötajaTegelikud[#Headers],0)) -> -135.00 € | G7: =INDEX(TöötajaKavandatud[],MATCH(INDEX(TöötajaErinevused[],ROW()-ROW(TöötajaErinevused[[#Headers],[Mai]]),1),INDEX(TöötajaKavandatud[],,1),0),MATCH(TöötajaErinevused[[#Headers],[Mai]],TöötajaKavandatud[#Headers],0))-INDEX(TöötajaTegelikud[],MATCH(INDEX(TöötajaErinevused[],ROW()-ROW(TöötajaErinevused[[#Headers],[Mai]]),1),INDEX(TöötajaKavandatud[],,1),0),MATCH(TöötajaErinevused[[#Headers],[Mai]],TöötajaTegelikud[#Headers],0)) -> -135.00 € | H7: =INDEX(TöötajaKavandatud[],MATCH(INDEX(TöötajaErinevused[],ROW()-ROW(TöötajaErinevused[[#Headers],[Juuni]]),1),INDEX(TöötajaKavandatud[],,1),0),MATCH(TöötajaErinevused[[#Headers],[Juuni]],TöötajaKavandatud[#Headers],0))-INDEX(TöötajaTegelikud[],MATCH(INDEX(TöötajaErinevused[],ROW()-ROW(TöötajaErinevused[[#Headers],[Juuni]]),1),INDEX(TöötajaKavandatud[],,1),0),MATCH(TöötajaErinevused[[#Headers],[Juuni]],TöötajaTegelikud[#Headers],0)) -> -135.00 € | I7: =INDEX(TöötajaKavandatud[],MATCH(INDEX(TöötajaErinevused[],ROW()-ROW(TöötajaErinevused[[#Headers],[Juuli]]),1),INDEX(TöötajaKavandatud[],,1),0),MATCH(TöötajaErinevused[[#Headers],[Juuli]],TöötajaKavandatud[#Headers],0))-INDEX(TöötajaTegelikud[],MATCH(INDEX(TöötajaErinevused[],ROW()-ROW(TöötajaErinevused[[#Headers],[Juuli]]),1),INDEX(TöötajaKavandatud[],,1),0),MATCH(TöötajaErinevused[[#Headers],[Juuli]],TöötajaTegelikud[#Headers],0)) -> 23,625.00 € | J7: =INDEX(TöötajaKavandatud[],MATCH(INDEX(TöötajaErinevused[],ROW()-ROW(TöötajaErinevused[[#Headers],[Aug]]),1),INDEX(TöötajaKavandatud[],,1),0),MATCH(TöötajaErinevused[[#Headers],[Aug]],TöötajaKavandatud[#Headers],0))-INDEX(TöötajaTegelikud[],MATCH(INDEX(TöötajaErinevused[],ROW()-ROW(TöötajaErinevused[[#Headers],[Aug]]),1),INDEX(TöötajaKavandatud[],,1),0),MATCH(TöötajaErinevused[[#Headers],[Aug]],TöötajaTegelikud[#Headers],0)) -> 24,948.00 € | K7: =INDEX(TöötajaKavandatud[],MATCH(INDEX(TöötajaErinevused[],ROW()-ROW(TöötajaErinevused[[#Headers],[Sept]]),1),INDEX(TöötajaKavandatud[],,1),0),MATCH(TöötajaErinevused[[#Headers],[Sept]],TöötajaKavandatud[#Headers],0))-INDEX(TöötajaTegelikud[],MATCH(INDEX(TöötajaErinevused[],ROW()-ROW(TöötajaErinevused[[#Headers],[Sept]]),1),INDEX(TöötajaKavandatud[],,1),0),MATCH(TöötajaErinevused[[#Headers],[Sept]],TöötajaTegelikud[#Headers],0)) -> 24,948.00 € | L7: =INDEX(TöötajaKavandatud[],MATCH(INDEX(TöötajaErinevused[],ROW()-ROW(TöötajaErinevused[[#Headers],[Okt]]),1),INDEX(TöötajaKavandatud[],,1),0),MATCH(TöötajaErinevused[[#Headers],[Okt]],TöötajaKavandatud[#Headers],0))-INDEX(TöötajaTegelikud[],MATCH(INDEX(TöötajaErinevused[],ROW()-ROW(TöötajaErinevused[[#Headers],[Okt]]),1),INDEX(TöötajaKavandatud[],,1),0),MATCH(TöötajaErinevused[[#Headers],[Okt]],TöötajaTegelikud[#Headers],0)) -> 24,948.00 € | M7: =INDEX(TöötajaKavandatud[],MATCH(INDEX(TöötajaErinevused[],ROW()-ROW(TöötajaErinevused[[#Headers],[Nov]]),1),INDEX(TöötajaKavandatud[],,1),0),MATCH(TöötajaErinevused[[#Headers],[Nov]],TöötajaKavandatud[#Headers],0))-INDEX(TöötajaTegelikud[],MATCH(INDEX(TöötajaErinevused[],ROW()-ROW(TöötajaErinevused[[#Headers],[Nov]]),1),INDEX(TöötajaKavandatud[],,1),0),MATCH(TöötajaErinevused[[#Headers],[Nov]],TöötajaTegelikud[#Headers],0)) -> 24,948.00 € | N7: =INDEX(TöötajaKavandatud[],MATCH(INDEX(TöötajaErinevused[],ROW()-ROW(TöötajaErinevused[[#Headers],[Dets]]),1),INDEX(TöötajaKavandatud[],,1),0),MATCH(TöötajaErinevused[[#Headers],[Dets]],TöötajaKavandatud[#Headers],0))-INDEX(TöötajaTegelikud[],MATCH(INDEX(TöötajaErinevused[],ROW()-ROW(TöötajaErinevused[[#Headers],[Dets]]),1),INDEX(TöötajaKavandatud[],,1),0),MATCH(TöötajaErinevused[[#Headers],[Dets]],TöötajaTegelikud[#Headers],0)) -> 24,948.00 € | O7: =SUM(TöötajaErinevused[[#This Row],[Jaan]:[Dets]]) -> 147,960.00 €
B8: Vahesumma | C8: =SUBTOTAL(109,TöötajaErinevused[Jaan]) -> 0.00 € | D8: =SUBTOTAL(109,TöötajaErinevused[Veebr]) -> 0.00 € | E8: =SUBTOTAL(109,TöötajaErinevused[Märts]) -> 0.00 € | F8: =SUBTOTAL(109,TöötajaErinevused[Apr]) -> -635.00 € | G8: =SUBTOTAL(109,TöötajaErinevused[Mai]) -> -635.00 € | H8: =SUBTOTAL(109,TöötajaErinevused[Juuni]) -> -635.00 € | I8: =SUBTOTAL(109,TöötajaErinevused[Juuli]) -> 111,125.00 € | J8: =SUBTOTAL(109,TöötajaErinevused[Aug]) -> 117,348.00 € | K8: =SUBTOTAL(109,TöötajaErinevused[Sept]) -> 117,348.00 € | L8: =SUBTOTAL(109,TöötajaErinevused[Okt]) -> 117,348.00 € | M8: =SUBTOTAL(109,TöötajaErinevused[Nov]) -> 117,348.00 € | N8: =SUBTOTAL(109,TöötajaErinevused[Dets]) -> 117,348.00 € | O8: =SUBTOTAL(109,TöötajaErinevused[AASTA]) -> 695,960.00 €
B10: Kontorikulud | C10: Jaan | D10: Veebr | E10: Märts | F10: Apr | G10: Mai | H10: Juuni | I10: Juuli | J10: Aug | K10: Sept | L10: Okt | M10: Nov | N10: Dets | O10: AASTA
B11: Kontoriüür | C11: =INDEX(KontorKavandatud[],MATCH(INDEX(KontoriErinevused[],ROW()-ROW(KontoriErinevused[[#Headers],[Jaan]]),1),INDEX(KontorKavandatud[],,1),0),MATCH(KontoriErinevused[[#Headers],[Jaan]],KontorKavandatud[#Headers],0))-INDEX(KontoriTegelikud[],MATCH(INDEX(KontoriErinevused[],ROW()-ROW(KontoriErinevused[[#Headers],[Jaan]]),1),INDEX(KontorKavandatud[],,1),0),MATCH(KontoriErinevused[[#Headers],[Jaan]],KontoriTegelikud[#Headers],0)) -> 0.00 € | D11: =INDEX(KontorKavandatud[],MATCH(INDEX(KontoriErinevused[],ROW()-ROW(KontoriErinevused[[#Headers],[Veebr]]),1),INDEX(KontorKavandatud[],,1),0),MATCH(KontoriErinevused[[#Headers],[Veebr]],KontorKavandatud[#Headers],0))-INDEX(KontoriTegelikud[],MATCH(INDEX(KontoriErinevused[],ROW()-ROW(KontoriErinevused[[#Headers],[Veebr]]),1),INDEX(KontorKavandatud[],,1),0),MATCH(KontoriErinevused[[#Headers],[Veebr]],KontoriTegelikud[#Headers],0)) -> 0.00 € | E11: =INDEX(KontorKavandatud[],MATCH(INDEX(KontoriErinevused[],ROW()-ROW(KontoriErinevused[[#Headers],[Märts]]),1),INDEX(KontorKavandatud[],,1),0),MATCH(KontoriErinevused[[#Headers],[Märts]],KontorKavandatud[#Headers],0))-INDEX(KontoriTegelikud[],MATCH(INDEX(KontoriErinevused[],ROW()-ROW(KontoriErinevused[[#Headers],[Märts]]),1),INDEX(KontorKavandatud[],,1),0),MATCH(KontoriErinevused[[#Headers],[Märts]],KontoriTegelikud[#Headers],0)) -> 0.00 € | F11: =INDEX(KontorKavandatud[],MATCH(INDEX(KontoriErinevused[],ROW()-ROW(KontoriErinevused[[#Headers],[Apr]]),1),INDEX(KontorKavandatud[],,1),0),MATCH(KontoriErinevused[[#Headers],[Apr]],KontorKavandatud[#Headers],0))-INDEX(KontoriTegelikud[],MATCH(INDEX(KontoriErinevused[],ROW()-ROW(KontoriErinevused[[#Headers],[Apr]]),1),INDEX(KontorKavandatud[],,1),0),MATCH(KontoriErinevused[[#Headers],[Apr]],KontoriTegelikud[#Headers],0)) -> 0.00 € | G11: =INDEX(KontorKavandatud[],MATCH(INDEX(KontoriErinevused[],ROW()-ROW(KontoriErinevused[[#Headers],[Mai]]),1),INDEX(KontorKavandatud[],,1),0),MATCH(KontoriErinevused[[#Headers],[Mai]],KontorKavandatud[#Headers],0))-INDEX(KontoriTegelikud[],MATCH(INDEX(KontoriErinevused[],ROW()-ROW(KontoriErinevused[[#Headers],[Mai]]),1),INDEX(KontorKavandatud[],,1),0),MATCH(KontoriErinevused[[#Headers],[Mai]],KontoriTegelikud[#Headers],0)) -> 0.00 € | H11: =INDEX(KontorKavandatud[],MATCH(INDEX(KontoriErinevused[],ROW()-ROW(KontoriErinevused[[#Headers],[Juuni]]),1),INDEX(KontorKavandatud[],,1),0),MATCH(KontoriErinevused[[#Headers],[Juuni]],KontorKavandatud[#Headers],0))-INDEX(KontoriTegelikud[],MATCH(INDEX(KontoriErinevused[],ROW()-ROW(KontoriErinevused[[#Headers],[Juuni]]),1),INDEX(KontorKavandatud[],,1),0),MATCH(KontoriErinevused[[#Headers],[Juuni]],KontoriTegelikud[#Headers],0)) -> 0.00 € | I11: =INDEX(KontorKavandatud[],MATCH(INDEX(KontoriErinevused[],ROW()-ROW(KontoriErinevused[[#Headers],[Juuli]]),1),INDEX(KontorKavandatud[],,1),0),MATCH(KontoriErinevused[[#Headers],[Juuli]],KontorKavandatud[#Headers],0))-INDEX(KontoriTegelikud[],MATCH(INDEX(KontoriErinevused[],ROW()-ROW(KontoriErinevused[[#Headers],[Juuli]]),1),INDEX(KontorKavandatud[],,1),0),MATCH(KontoriErinevused[[#Headers],[Juuli]],KontoriTegelikud[#Headers],0)) -> 9,800.00 € | J11: =INDEX(KontorKavandatud[],MATCH(INDEX(KontoriErinevused[],ROW()-ROW(KontoriErinevused[[#Headers],[Aug]]),1),INDEX(KontorKavandatud[],,1),0),MATCH(KontoriErinevused[[#Headers],[Aug]],KontorKavandatud[#Headers],0))-INDEX(KontoriTegelikud[],MATCH(INDEX(KontoriErinevused[],ROW()-ROW(KontoriErinevused[[#Headers],[Aug]]),1),INDEX(KontorKavandatud[],,1),0),MATCH(KontoriErinevused[[#Headers],[Aug]],KontoriTegelikud[#Headers],0)) -> 9,800.00 € | K11: =INDEX(KontorKavandatud[],MATCH(INDEX(KontoriErinevused[],ROW()-ROW(KontoriErinevused[[#Headers],[Sept]]),1),INDEX(KontorKavandatud[],,1),0),MATCH(KontoriErinevused[[#Headers],[Sept]],KontorKavandatud[#Headers],0))-INDEX(KontoriTegelikud[],MATCH(INDEX(KontoriErinevused[],ROW()-ROW(KontoriErinevused[[#Headers],[Sept]]),1),INDEX(KontorKavandatud[],,1),0),MATCH(KontoriErinevused[[#Headers],[Sept]],KontoriTegelikud[#Headers],0)) -> 9,800.00 € | L11: =INDEX(KontorKavandatud[],MATCH(INDEX(KontoriErinevused[],ROW()-ROW(KontoriErinevused[[#Headers],[Okt]]),1),INDEX(KontorKavandatud[],,1),0),MATCH(KontoriErinevused[[#Headers],[Okt]],KontorKavandatud[#Headers],0))-INDEX(KontoriTegelikud[],MATCH(INDEX(KontoriErinevused[],ROW()-ROW(KontoriErinevused[[#Headers],[Okt]]),1),INDEX(KontorKavandatud[],,1),0),MATCH(KontoriErinevused[[#Headers],[Okt]],KontoriTegelikud[#Headers],0)) -> 9,800.00 € | M11: =INDEX(KontorKavandatud[],MATCH(INDEX(KontoriErinevused[],ROW()-ROW(KontoriErinevused[[#Headers],[Nov]]),1),INDEX(KontorKavandatud[],,1),0),MATCH(KontoriErinevused[[#Headers],[Nov]],KontorKavandatud[#Headers],0))-INDEX(KontoriTegelikud[],MATCH(INDEX(KontoriErinevused[],ROW()-ROW(KontoriErinevused[[#Headers],[Nov]]),1),INDEX(KontorKavandatud[],,1),0),MATCH(KontoriErinevused[[#Headers],[Nov]],KontoriTegelikud[#Headers],0)) -> 9,800.00 € | N11: =INDEX(KontorKavandatud[],MATCH(INDEX(KontoriErinevused[],ROW()-ROW(KontoriErinevused[[#Headers],[Dets]]),1),INDEX(KontorKavandatud[],,1),0),MATCH(KontoriErinevused[[#Headers],[Dets]],KontorKavandatud[#Headers],0))-INDEX(KontoriTegelikud[],MATCH(INDEX(KontoriErinevused[],ROW()-ROW(KontoriErinevused[[#Headers],[Dets]]),1),INDEX(KontorKavandatud[],,1),0),MATCH(KontoriErinevused[[#Headers],[Dets]],KontoriTegelikud[#Headers],0)) -> 9,800.00 € | O11: =SUM(KontoriErinevused[[#This Row],[Jaan]:[Dets]]) -> 58,800.00 €
B12: Gaas | C12: =INDEX(KontorKavandatud[],MATCH(INDEX(KontoriErinevused[],ROW()-ROW(KontoriErinevused[[#Headers],[Jaan]]),1),INDEX(KontorKavandatud[],,1),0),MATCH(KontoriErinevused[[#Headers],[Jaan]],KontorKavandatud[#Headers],0))-INDEX(KontoriTegelikud[],MATCH(INDEX(KontoriErinevused[],ROW()-ROW(KontoriErinevused[[#Headers],[Jaan]]),1),INDEX(KontorKavandatud[],,1),0),MATCH(KontoriErinevused[[#Headers],[Jaan]],KontoriTegelikud[#Headers],0)) -> -4.00 € | D12: =INDEX(KontorKavandatud[],MATCH(INDEX(KontoriErinevused[],ROW()-ROW(KontoriErinevused[[#Headers],[Veebr]]),1),INDEX(KontorKavandatud[],,1),0),MATCH(KontoriErinevused[[#Headers],[Veebr]],KontorKavandatud[#Headers],0))-INDEX(KontoriTegelikud[],MATCH(INDEX(KontoriErinevused[],ROW()-ROW(KontoriErinevused[[#Headers],[Veebr]]),1),INDEX(KontorKavandatud[],,1),0),MATCH(KontoriErinevused[[#Headers],[Veebr]],KontoriTegelikud[#Headers],0)) -> -30.00 € | E12: =INDEX(KontorKavandatud[],MATCH(INDEX(KontoriErinevused[],ROW()-ROW(KontoriErinevused[[#Headers],[Märts]]),1),INDEX(KontorKavandatud[],,1),0),MATCH(KontoriErinevused[[#Headers],[Märts]],KontorKavandatud[#Headers],0))-INDEX(KontoriTegelikud[],MATCH(INDEX(KontoriErinevused[],ROW()-ROW(KontoriErinevused[[#Headers],[Märts]]),1),INDEX(KontorKavandatud[],,1),0),MATCH(KontoriErinevused[[#Headers],[Märts]],KontoriTegelikud[#Headers],0)) -> 15.00 € | F12: =INDEX(KontorKavandatud[],MATCH(INDEX(KontoriErinevused[],ROW()-ROW(KontoriErinevused[[#Headers],[Apr]]),1),INDEX(KontorKavandatud[],,1),0),MATCH(KontoriErinevused[[#Headers],[Apr]],KontorKavandatud[#Headers],0))-INDEX(KontoriTegelikud[],MATCH(INDEX(KontoriErinevused[],ROW()-ROW(KontoriErinevused[[#Headers],[Apr]]),1),INDEX(KontorKavandatud[],,1),0),MATCH(KontoriErinevused[[#Headers],[Apr]],KontoriTegelikud[#Headers],0)) -> -130.00 € | G12: =INDEX(KontorKavandatud[],MATCH(INDEX(KontoriErinevused[],ROW()-ROW(KontoriErinevused[[#Headers],[Mai]]),1),INDEX(KontorKavandatud[],,1),0),MATCH(KontoriErinevused[[#Headers],[Mai]],KontorKavandatud[#Headers],0))-INDEX(KontoriTegelikud[],MATCH(INDEX(KontoriErinevused[],ROW()-ROW(KontoriErinevused[[#Headers],[Mai]]),1),INDEX(KontorKavandatud[],,1),0),MATCH(KontoriErinevused[[#Headers],[Mai]],KontoriTegelikud[#Headers],0)) -> 13.00 € | H12: =INDEX(KontorKavandatud[],MATCH(INDEX(KontoriErinevused[],ROW()-ROW(KontoriErinevused[[#Headers],[Juuni]]),1),INDEX(KontorKavandatud[],,1),0),MATCH(KontoriErinevused[[#Headers],[Juuni]],KontorKavandatud[#Headers],0))-INDEX(KontoriTegelikud[],MATCH(INDEX(KontoriErinevused[],ROW()-ROW(KontoriErinevused[[#Headers],[Juuni]]),1),INDEX(KontorKavandatud[],,1),0),MATCH(KontoriErinevused[[#Headers],[Juuni]],KontoriTegelikud[#Headers],0)) -> 12.00 € | I12: =INDEX(KontorKavandatud[],MATCH(INDEX(KontoriErinevused[],ROW()-ROW(KontoriErinevused[[#Headers],[Juuli]]),1),INDEX(KontorKavandatud[],,1),0),MATCH(KontoriErinevused[[#Headers],[Juuli]],KontorKavandatud[#Headers],0))-INDEX(KontoriTegelikud[],MATCH(INDEX(KontoriErinevused[],ROW()-ROW(KontoriErinevused[[#Headers],[Juuli]]),1),INDEX(KontorKavandatud[],,1),0),MATCH(KontoriErinevused[[#Headers],[Juuli]],KontoriTegelikud[#Headers],0)) -> 100.00 € | J12: =INDEX(KontorKavandatud[],MATCH(INDEX(KontoriErinevused[],ROW()-ROW(KontoriErinevused[[#Headers],[Aug]]),1),INDEX(KontorKavandatud[],,1),0),MATCH(KontoriErinevused[[#Headers],[Aug]],KontorKavandatud[#Headers],0))-INDEX(KontoriTegelikud[],MATCH(INDEX(KontoriErinevused[],ROW()-ROW(KontoriErinevused[[#Headers],[Aug]]),1),INDEX(KontorKavandatud[],,1),0),MATCH(KontoriErinevused[[#Headers],[Aug]],KontoriTegelikud[#Headers],0)) -> 100.00 € | K12: =INDEX(KontorKavandatud[],MATCH(INDEX(KontoriErinevused[],ROW()-ROW(KontoriErinevused[[#Headers],[Sept]]),1),INDEX(KontorKavandatud[],,1),0),MATCH(KontoriErinevused[[#Headers],[Sept]],KontorKavandatud[#Headers],0))-INDEX(KontoriTegelikud[],MATCH(INDEX(KontoriErinevused[],ROW()-ROW(KontoriErinevused[[#Headers],[Sept]]),1),INDEX(KontorKavandatud[],,1),0),MATCH(KontoriErinevused[[#Headers],[Sept]],KontoriTegelikud[#Headers],0)) -> 100.00 € | L12: =INDEX(KontorKavandatud[],MATCH(INDEX(KontoriErinevused[],ROW()-ROW(KontoriErinevused[[#Headers],[Okt]]),1),INDEX(KontorKavandatud[],,1),0),MATCH(KontoriErinevused[[#Headers],[Okt]],KontorKavandatud[#Headers],0))-INDEX(KontoriTegelikud[],MATCH(INDEX(KontoriErinevused[],ROW()-ROW(KontoriErinevused[[#Headers],[Okt]]),1),INDEX(KontorKavandatud[],,1),0),MATCH(KontoriErinevused[[#Headers],[Okt]],KontoriTegelikud[#Headers],0)) -> 100.00 € | M12: =INDEX(KontorKavandatud[],MATCH(INDEX(KontoriErinevused[],ROW()-ROW(KontoriErinevused[[#Headers],[Nov]]),1),INDEX(KontorKavandatud[],,1),0),MATCH(KontoriErinevused[[#Headers],[Nov]],KontorKavandatud[#Headers],0))-INDEX(KontoriTegelikud[],MATCH(INDEX(KontoriErinevused[],ROW()-ROW(KontoriErinevused[[#Headers],[Nov]]),1),INDEX(KontorKavandatud[],,1),0),MATCH(KontoriErinevused[[#Headers],[Nov]],KontoriTegelikud[#Headers],0)) -> 400.00 € | N12: =INDEX(KontorKavandatud[],MATCH(INDEX(KontoriErinevused[],ROW()-ROW(KontoriErinevused[[#Headers],[Dets]]),1),INDEX(KontorKavandatud[],,1),0),MATCH(KontoriErinevused[[#Headers],[Dets]],KontorKavandatud[#Headers],0))-INDEX(KontoriTegelikud[],MATCH(INDEX(KontoriErinevused[],ROW()-ROW(KontoriErinevused[[#Headers],[Dets]]),1),INDEX(KontorKavandatud[],,1),0),MATCH(KontoriErinevused[[#Headers],[Dets]],KontoriTegelikud[#Headers],0)) -> 400.00 € | O12: =SUM(KontoriErinevused[[#This Row],[Jaan]:[Dets]]) -> 1,076.00 €
B13: Elekter | C13: =INDEX(KontorKavandatud[],MATCH(INDEX(KontoriErinevused[],ROW()-ROW(KontoriErinevused[[#Headers],[Jaan]]),1),INDEX(KontorKavandatud[],,1),0),MATCH(KontoriErinevused[[#Headers],[Jaan]],KontorKavandatud[#Headers],0))-INDEX(KontoriTegelikud[],MATCH(INDEX(KontoriErinevused[],ROW()-ROW(KontoriErinevused[[#Headers],[Jaan]]),1),INDEX(KontorKavandatud[],,1),0),MATCH(KontoriErinevused[[#Headers],[Jaan]],KontoriTegelikud[#Headers],0)) -> 12.00 € | D13: =INDEX(KontorKavandatud[],MATCH(INDEX(KontoriErinevused[],ROW()-ROW(KontoriErinevused[[#Headers],[Veebr]]),1),INDEX(KontorKavandatud[],,1),0),MATCH(KontoriErinevused[[#Headers],[Veebr]],KontorKavandatud[#Headers],0))-INDEX(KontoriTegelikud[],MATCH(INDEX(KontoriErinevused[],ROW()-ROW(KontoriErinevused[[#Headers],[Veebr]]),1),INDEX(KontorKavandatud[],,1),0),MATCH(KontoriErinevused[[#Headers],[Veebr]],KontoriTegelikud[#Headers],0)) -> 22.00 € | E13: =INDEX(KontorKavandatud[],MATCH(INDEX(KontoriErinevused[],ROW()-ROW(KontoriErinevused[[#Headers],[Märts]]),1),INDEX(KontorKavandatud[],,1),0),MATCH(KontoriErinevused[[#Headers],[Märts]],KontorKavandatud[#Headers],0))-INDEX(KontoriTegelikud[],MATCH(INDEX(KontoriErinevused[],ROW()-ROW(KontoriErinevused[[#Headers],[Märts]]),1),INDEX(KontorKavandatud[],,1),0),MATCH(KontoriErinevused[[#Headers],[Märts]],KontoriTegelikud[#Headers],0)) -> 32.00 € | F13: =INDEX(KontorKavandatud[],MATCH(INDEX(KontoriErinevused[],ROW()-ROW(KontoriErinevused[[#Headers],[Apr]]),1),INDEX(KontorKavandatud[],,1),0),MATCH(KontoriErinevused[[#Headers],[Apr]],KontorKavandatud[#Headers],0))-INDEX(KontoriTegelikud[],MATCH(INDEX(KontoriErinevused[],ROW()-ROW(KontoriErinevused[[#Headers],[Apr]]),1),INDEX(KontorKavandatud[],,1),0),MATCH(KontoriErinevused[[#Headers],[Apr]],KontoriTegelikud[#Headers],0)) -> 1.00 € | G13: =INDEX(KontorKavandatud[],MATCH(INDEX(KontoriErinevused[],ROW()-ROW(KontoriErinevused[[#Headers],[Mai]]),1),INDEX(KontorKavandatud[],,1),0),MATCH(KontoriErinevused[[#Headers],[Mai]],KontorKavandatud[#Headers],0))-INDEX(KontoriTegelikud[],MATCH(INDEX(KontoriErinevused[],ROW()-ROW(KontoriErinevused[[#Headers],[Mai]]),1),INDEX(KontorKavandatud[],,1),0),MATCH(KontoriErinevused[[#Headers],[Mai]],KontoriTegelikud[#Headers],0)) -> -6.00 € | H13: =INDEX(KontorKavandatud[],MATCH(INDEX(KontoriErinevused[],ROW()-ROW(KontoriErinevused[[#Headers],[Juuni]]),1),INDEX(KontorKavandatud[],,1),0),MATCH(KontoriErinevused[[#Headers],[Juuni]],KontorKavandatud[#Headers],0))-INDEX(KontoriTegelikud[],MATCH(INDEX(KontoriErinevused[],ROW()-ROW(KontoriErinevused[[#Headers],[Juuni]]),1),INDEX(KontorKavandatud[],,1),0),MATCH(KontoriErinevused[[#Headers],[Juuni]],KontoriTegelikud[#Headers],0)) -> 10.00 € | I13: =INDEX(KontorKavandatud[],MATCH(INDEX(KontoriErinevused[],ROW()-ROW(KontoriErinevused[[#Headers],[Juuli]]),1),INDEX(KontorKavandatud[],,1),0),MATCH(KontoriErinevused[[#Headers],[Juuli]],KontorKavandatud[#Headers],0))-INDEX(KontoriTegelikud[],MATCH(INDEX(KontoriErinevused[],ROW()-ROW(KontoriErinevused[[#Headers],[Juuli]]),1),INDEX(KontorKavandatud[],,1),0),MATCH(KontoriErinevused[[#Headers],[Juuli]],KontoriTegelikud[#Headers],0)) -> 300.00 € | J13: =INDEX(KontorKavandatud[],MATCH(INDEX(KontoriErinevused[],ROW()-ROW(KontoriErinevused[[#Headers],[Aug]]),1),INDEX(KontorKavandatud[],,1),0),MATCH(KontoriErinevused[[#Headers],[Aug]],KontorKavandatud[#Headers],0))-INDEX(KontoriTegelikud[],MATCH(INDEX(KontoriErinevused[],ROW()-ROW(KontoriErinevused[[#Headers],[Aug]]),1),INDEX(KontorKavandatud[],,1),0),MATCH(KontoriErinevused[[#Headers],[Aug]],KontoriTegelikud[#Headers],0)) -> 300.00 € | K13: =INDEX(KontorKavandatud[],MATCH(INDEX(KontoriErinevused[],ROW()-ROW(KontoriErinevused[[#Headers],[Sept]]),1),INDEX(KontorKavandatud[],,1),0),MATCH(KontoriErinevused[[#Headers],[Sept]],KontorKavandatud[#Headers],0))-INDEX(KontoriTegelikud[],MATCH(INDEX(KontoriErinevused[],ROW()-ROW(KontoriErinevused[[#Headers],[Sept]]),1),INDEX(KontorKavandatud[],,1),0),MATCH(KontoriErinevused[[#Headers],[Sept]],KontoriTegelikud[#Headers],0)) -> 300.00 € | L13: =INDEX(KontorKavandatud[],MATCH(INDEX(KontoriErinevused[],ROW()-ROW(KontoriErinevused[[#Headers],[Okt]]),1),INDEX(KontorKavandatud[],,1),0),MATCH(KontoriErinevused[[#Headers],[Okt]],KontorKavandatud[#Headers],0))-INDEX(KontoriTegelikud[],MATCH(INDEX(KontoriErinevused[],ROW()-ROW(KontoriErinevused[[#Headers],[Okt]]),1),INDEX(KontorKavandatud[],,1),0),MATCH(KontoriErinevused[[#Headers],[Okt]],KontoriTegelikud[#Headers],0)) -> 300.00 € | M13: =INDEX(KontorKavandatud[],MATCH(INDEX(KontoriErinevused[],ROW()-ROW(KontoriErinevused[[#Headers],[Nov]]),1),INDEX(KontorKavandatud[],,1),0),MATCH(KontoriErinevused[[#Headers],[Nov]],KontorKavandatud[#Headers],0))-INDEX(KontoriTegelikud[],MATCH(INDEX(KontoriErinevused[],ROW()-ROW(KontoriErinevused[[#Headers],[Nov]]),1),INDEX(KontorKavandatud[],,1),0),MATCH(KontoriErinevused[[#Headers],[Nov]],KontoriTegelikud[#Headers],0)) -> 300.00 € | N13: =INDEX(KontorKavandatud[],MATCH(INDEX(KontoriErinevused[],ROW()-ROW(KontoriErinevused[[#Headers],[Dets]]),1),INDEX(KontorKavandatud[],,1),0),MATCH(KontoriErinevused[[#Headers],[Dets]],KontorKavandatud[#Headers],0))-INDEX(KontoriTegelikud[],MATCH(INDEX(KontoriErinevused[],ROW()-ROW(KontoriErinevused[[#Headers],[Dets]]),1),INDEX(KontorKavandatud[],,1),0),MATCH(KontoriErinevused[[#Headers],[Dets]],KontoriTegelikud[#Headers],0)) -> 300.00 € | O13: =SUM(KontoriErinevused[[#This Row],[Jaan]:[Dets]]) -> 1,871.00 €
B14: Vesi | C14: =INDEX(KontorKavandatud[],MATCH(INDEX(KontoriErinevused[],ROW()-ROW(KontoriErinevused[[#Headers],[Jaan]]),1),INDEX(KontorKavandatud[],,1),0),MATCH(KontoriErinevused[[#Headers],[Jaan]],KontorKavandatud[#Headers],0))-INDEX(KontoriTegelikud[],MATCH(INDEX(KontoriErinevused[],ROW()-ROW(KontoriErinevused[[#Headers],[Jaan]]),1),INDEX(KontorKavandatud[],,1),0),MATCH(KontoriErinevused[[#Headers],[Jaan]],KontoriTegelikud[#Headers],0)) -> 5.00 € | D14: =INDEX(KontorKavandatud[],MATCH(INDEX(KontoriErinevused[],ROW()-ROW(KontoriErinevused[[#Headers],[Veebr]]),1),INDEX(KontorKavandatud[],,1),0),MATCH(KontoriErinevused[[#Headers],[Veebr]],KontorKavandatud[#Headers],0))-INDEX(KontoriTegelikud[],MATCH(INDEX(KontoriErinevused[],ROW()-ROW(KontoriErinevused[[#Headers],[Veebr]]),1),INDEX(KontorKavandatud[],,1),0),MATCH(KontoriErinevused[[#Headers],[Veebr]],KontoriTegelikud[#Headers],0)) -> 7.00 € | E14: =INDEX(KontorKavandatud[],MATCH(INDEX(KontoriErinevused[],ROW()-ROW(KontoriErinevused[[#Headers],[Märts]]),1),INDEX(KontorKavandatud[],,1),0),MATCH(KontoriErinevused[[#Headers],[Märts]],KontorKavandatud[#Headers],0))-INDEX(KontoriTegelikud[],MATCH(INDEX(KontoriErinevused[],ROW()-ROW(KontoriErinevused[[#Headers],[Märts]]),1),INDEX(KontorKavandatud[],,1),0),MATCH(KontoriErinevused[[#Headers],[Märts]],KontoriTegelikud[#Headers],0)) -> 6.00 € | F14: =INDEX(KontorKavandatud[],MATCH(INDEX(KontoriErinevused[],ROW()-ROW(KontoriErinevused[[#Headers],[Apr]]),1),INDEX(KontorKavandatud[],,1),0),MATCH(KontoriErinevused[[#Headers],[Apr]],KontorKavandatud[#Headers],0))-INDEX(KontoriTegelikud[],MATCH(INDEX(KontoriErinevused[],ROW()-ROW(KontoriErinevused[[#Headers],[Apr]]),1),INDEX(KontorKavandatud[],,1),0),MATCH(KontoriErinevused[[#Headers],[Apr]],KontoriTegelikud[#Headers],0)) -> 4.00 € | G14: =INDEX(KontorKavandatud[],MATCH(INDEX(KontoriErinevused[],ROW()-ROW(KontoriErinevused[[#Headers],[Mai]]),1),INDEX(KontorKavandatud[],,1),0),MATCH(KontoriErinevused[[#Headers],[Mai]],KontorKavandatud[#Headers],0))-INDEX(KontoriTegelikud[],MATCH(INDEX(KontoriErinevused[],ROW()-ROW(KontoriErinevused[[#Headers],[Mai]]),1),INDEX(KontorKavandatud[],,1),0),MATCH(KontoriErinevused[[#Headers],[Mai]],KontoriTegelikud[#Headers],0)) -> 6.00 € | H14: =INDEX(KontorKavandatud[],MATCH(INDEX(KontoriErinevused[],ROW()-ROW(KontoriErinevused[[#Headers],[Juuni]]),1),INDEX(KontorKavandatud[],,1),0),MATCH(KontoriErinevused[[#Headers],[Juuni]],KontorKavandatud[#Headers],0))-INDEX(KontoriTegelikud[],MATCH(INDEX(KontoriErinevused[],ROW()-ROW(KontoriErinevused[[#Headers],[Juuni]]),1),INDEX(KontorKavandatud[],,1),0),MATCH(KontoriErinevused[[#Headers],[Juuni]],KontoriTegelikud[#Headers],0)) -> 4.00 € | I14: =INDEX(KontorKavandatud[],MATCH(INDEX(KontoriErinevused[],ROW()-ROW(KontoriErinevused[[#Headers],[Juuli]]),1),INDEX(KontorKavandatud[],,1),0),MATCH(KontoriErinevused[[#Headers],[Juuli]],KontorKavandatud[#Headers],0))-INDEX(KontoriTegelikud[],MATCH(INDEX(KontoriErinevused[],ROW()-ROW(KontoriErinevused[[#Headers],[Juuli]]),1),INDEX(KontorKavandatud[],,1),0),MATCH(KontoriErinevused[[#Headers],[Juuli]],KontoriTegelikud[#Headers],0)) -> 40.00 € | J14: =INDEX(KontorKavandatud[],MATCH(INDEX(KontoriErinevused[],ROW()-ROW(KontoriErinevused[[#Headers],[Aug]]),1),INDEX(KontorKavandatud[],,1),0),MATCH(KontoriErinevused[[#Headers],[Aug]],KontorKavandatud[#Headers],0))-INDEX(KontoriTegelikud[],MATCH(INDEX(KontoriErinevused[],ROW()-ROW(KontoriErinevused[[#Headers],[Aug]]),1),INDEX(KontorKavandatud[],,1),0),MATCH(KontoriErinevused[[#Headers],[Aug]],KontoriTegelikud[#Headers],0)) -> 40.00 € | K14: =INDEX(KontorKavandatud[],MATCH(INDEX(KontoriErinevused[],ROW()-ROW(KontoriErinevused[[#Headers],[Sept]]),1),INDEX(KontorKavandatud[],,1),0),MATCH(KontoriErinevused[[#Headers],[Sept]],KontorKavandatud[#Headers],0))-INDEX(KontoriTegelikud[],MATCH(INDEX(KontoriErinevused[],ROW()-ROW(KontoriErinevused[[#Headers],[Sept]]),1),INDEX(KontorKavandatud[],,1),0),MATCH(KontoriErinevused[[#Headers],[Sept]],KontoriTegelikud[#Headers],0)) -> 40.00 € | L14: =INDEX(KontorKavandatud[],MATCH(INDEX(KontoriErinevused[],ROW()-ROW(KontoriErinevused[[#Headers],[Okt]]),1),INDEX(KontorKavandatud[],,1),0),MATCH(KontoriErinevused[[#Headers],[Okt]],KontorKavandatud[#Headers],0))-INDEX(KontoriTegelikud[],MATCH(INDEX(KontoriErinevused[],ROW()-ROW(KontoriErinevused[[#Headers],[Okt]]),1),INDEX(KontorKavandatud[],,1),0),MATCH(KontoriErinevused[[#Headers],[Okt]],KontoriTegelikud[#Headers],0)) -> 40.00 € | M14: =INDEX(KontorKavandatud[],MATCH(INDEX(KontoriErinevused[],ROW()-ROW(KontoriErinevused[[#Headers],[Nov]]),1),INDEX(KontorKavandatud[],,1),0),MATCH(KontoriErinevused[[#Headers],[Nov]],KontorKavandatud[#Headers],0))-INDEX(KontoriTegelikud[],MATCH(INDEX(KontoriErinevused[],ROW()-ROW(KontoriErinevused[[#Headers],[Nov]]),1),INDEX(KontorKavandatud[],,1),0),MATCH(KontoriErinevused[[#Headers],[Nov]],KontoriTegelikud[#Headers],0)) -> 40.00 € | N14: =INDEX(KontorKavandatud[],MATCH(INDEX(KontoriErinevused[],ROW()-ROW(KontoriErinevused[[#Headers],[Dets]]),1),INDEX(KontorKavandatud[],,1),0),MATCH(KontoriErinevused[[#Headers],[Dets]],KontorKavandatud[#Headers],0))-INDEX(KontoriTegelikud[],MATCH(INDEX(KontoriErinevused[],ROW()-ROW(KontoriErinevused[[#Headers],[Dets]]),1),INDEX(KontorKavandatud[],,1),0),MATCH(KontoriErinevused[[#Headers],[Dets]],KontoriTegelikud[#Headers],0)) -> 40.00 € | O14: =SUM(KontoriErinevused[[#This Row],[Jaan]:[Dets]]) -> 272.00 €
B15: Telefon | C15: =INDEX(KontorKavandatud[],MATCH(INDEX(KontoriErinevused[],ROW()-ROW(KontoriErinevused[[#Headers],[Jaan]]),1),INDEX(KontorKavandatud[],,1),0),MATCH(KontoriErinevused[[#Headers],[Jaan]],KontorKavandatud[#Headers],0))-INDEX(KontoriTegelikud[],MATCH(INDEX(KontoriErinevused[],ROW()-ROW(KontoriErinevused[[#Headers],[Jaan]]),1),INDEX(KontorKavandatud[],,1),0),MATCH(KontoriErinevused[[#Headers],[Jaan]],KontoriTegelikud[#Headers],0)) -> 26.00 € | D15: =INDEX(KontorKavandatud[],MATCH(INDEX(KontoriErinevused[],ROW()-ROW(KontoriErinevused[[#Headers],[Veebr]]),1),INDEX(KontorKavandatud[],,1),0),MATCH(KontoriErinevused[[#Headers],[Veebr]],KontorKavandatud[#Headers],0))-INDEX(KontoriTegelikud[],MATCH(INDEX(KontoriErinevused[],ROW()-ROW(KontoriErinevused[[#Headers],[Veebr]]),1),INDEX(KontorKavandatud[],,1),0),MATCH(KontoriErinevused[[#Headers],[Veebr]],KontoriTegelikud[#Headers],0)) -> 15.00 € | E15: =INDEX(KontorKavandatud[],MATCH(INDEX(KontoriErinevused[],ROW()-ROW(KontoriErinevused[[#Headers],[Märts]]),1),INDEX(KontorKavandatud[],,1),0),MATCH(KontoriErinevused[[#Headers],[Märts]],KontorKavandatud[#Headers],0))-INDEX(KontoriTegelikud[],MATCH(INDEX(KontoriErinevused[],ROW()-ROW(KontoriErinevused[[#Headers],[Märts]]),1),INDEX(KontorKavandatud[],,1),0),MATCH(KontoriErinevused[[#Headers],[Märts]],KontoriTegelikud[#Headers],0)) -> -15.00 € | F15: =INDEX(KontorKavandatud[],MATCH(INDEX(KontoriErinevused[],ROW()-ROW(KontoriErinevused[[#Headers],[Apr]]),1),INDEX(KontorKavandatud[],,1),0),MATCH(KontoriErinevused[[#Headers],[Apr]],KontorKavandatud[#Headers],0))-INDEX(KontoriTegelikud[],MATCH(INDEX(KontoriErinevused[],ROW()-ROW(KontoriErinevused[[#Headers],[Apr]]),1),INDEX(KontorKavandatud[],,1),0),MATCH(KontoriErinevused[[#Headers],[Apr]],KontoriTegelikud[#Headers],0)) -> 5.00 € | G15: =INDEX(KontorKavandatud[],MATCH(INDEX(KontoriErinevused[],ROW()-ROW(KontoriErinevused[[#Headers],[Mai]]),1),INDEX(KontorKavandatud[],,1),0),MATCH(KontoriErinevused[[#Headers],[Mai]],KontorKavandatud[#Headers],0))-INDEX(KontoriTegelikud[],MATCH(INDEX(KontoriErinevused[],ROW()-ROW(KontoriErinevused[[#Headers],[Mai]]),1),INDEX(KontorKavandatud[],,1),0),MATCH(KontoriErinevused[[#Headers],[Mai]],KontoriTegelikud[#Headers],0)) -> 5.00 € | H15: =INDEX(KontorKavandatud[],MATCH(INDEX(KontoriErinevused[],ROW()-ROW(KontoriErinevused[[#Headers],[Juuni]]),1),INDEX(KontorKavandatud[],,1),0),MATCH(KontoriErinevused[[#Headers],[Juuni]],KontorKavandatud[#Headers],0))-INDEX(KontoriTegelikud[],MATCH(INDEX(KontoriErinevused[],ROW()-ROW(KontoriErinevused[[#Headers],[Juuni]]),1),INDEX(KontorKavandatud[],,1),0),MATCH(KontoriErinevused[[#Headers],[Juuni]],KontoriTegelikud[#Headers],0)) -> 30.00 € | I15: =INDEX(KontorKavandatud[],MATCH(INDEX(KontoriErinevused[],ROW()-ROW(KontoriErinevused[[#Headers],[Juuli]]),1),INDEX(KontorKavandatud[],,1),0),MATCH(KontoriErinevused[[#Headers],[Juuli]],KontorKavandatud[#Headers],0))-INDEX(KontoriTegelikud[],MATCH(INDEX(KontoriErinevused[],ROW()-ROW(KontoriErinevused[[#Headers],[Juuli]]),1),INDEX(KontorKavandatud[],,1),0),MATCH(KontoriErinevused[[#Headers],[Juuli]],KontoriTegelikud[#Headers],0)) -> 250.00 € | J15: =INDEX(KontorKavandatud[],MATCH(INDEX(KontoriErinevused[],ROW()-ROW(KontoriErinevused[[#Headers],[Aug]]),1),INDEX(KontorKavandatud[],,1),0),MATCH(KontoriErinevused[[#Headers],[Aug]],KontorKavandatud[#Headers],0))-INDEX(KontoriTegelikud[],MATCH(INDEX(KontoriErinevused[],ROW()-ROW(KontoriErinevused[[#Headers],[Aug]]),1),INDEX(KontorKavandatud[],,1),0),MATCH(KontoriErinevused[[#Headers],[Aug]],KontoriTegelikud[#Headers],0)) -> 250.00 € | K15: =INDEX(KontorKavandatud[],MATCH(INDEX(KontoriErinevused[],ROW()-ROW(KontoriErinevused[[#Headers],[Sept]]),1),INDEX(KontorKavandatud[],,1),0),MATCH(KontoriErinevused[[#Headers],[Sept]],KontorKavandatud[#Headers],0))-INDEX(KontoriTegelikud[],MATCH(INDEX(KontoriErinevused[],ROW()-ROW(KontoriErinevused[[#Headers],[Sept]]),1),INDEX(KontorKavandatud[],,1),0),MATCH(KontoriErinevused[[#Headers],[Sept]],KontoriTegelikud[#Headers],0)) -> 250.00 € | L15: =INDEX(KontorKavandatud[],MATCH(INDEX(KontoriErinevused[],ROW()-ROW(KontoriErinevused[[#Headers],[Okt]]),1),INDEX(KontorKavandatud[],,1),0),MATCH(KontoriErinevused[[#Headers],[Okt]],KontorKavandatud[#Headers],0))-INDEX(KontoriTegelikud[],MATCH(INDEX(KontoriErinevused[],ROW()-ROW(KontoriErinevused[[#Headers],[Okt]]),1),INDEX(KontorKavandatud[],,1),0),MATCH(KontoriErinevused[[#Headers],[Okt]],KontoriTegelikud[#Headers],0)) -> 250.00 € | M15: =INDEX(KontorKavandatud[],MATCH(INDEX(KontoriErinevused[],ROW()-ROW(KontoriErinevused[[#Headers],[Nov]]),1),INDEX(KontorKavandatud[],,1),0),MATCH(KontoriErinevused[[#Headers],[Nov]],KontorKavandatud[#Headers],0))-INDEX(KontoriTegelikud[],MATCH(INDEX(KontoriErinevused[],ROW()-ROW(KontoriErinevused[[#Headers],[Nov]]),1),INDEX(KontorKavandatud[],,1),0),MATCH(KontoriErinevused[[#Headers],[Nov]],KontoriTegelikud[#Headers],0)) -> 250.00 € | N15: =INDEX(KontorKavandatud[],MATCH(INDEX(KontoriErinevused[],ROW()-ROW(KontoriErinevused[[#Headers],[Dets]]),1),INDEX(KontorKavandatud[],,1),0),MATCH(KontoriErinevused[[#Headers],[Dets]],KontorKavandatud[#Headers],0))-INDEX(KontoriTegelikud[],MATCH(INDEX(KontoriErinevused[],ROW()-ROW(KontoriErinevused[[#Headers],[Dets]]),1),INDEX(KontorKavandatud[],,1),0),MATCH(KontoriErinevused[[#Headers],[Dets]],KontoriTegelikud[#Headers],0)) -> 250.00 € | O15: =SUM(KontoriErinevused[[#This Row],[Jaan]:[Dets]]) -> 1,566.00 €
B16: Interneti-ühendus | C16: =INDEX(KontorKavandatud[],MATCH(INDEX(KontoriErinevused[],ROW()-ROW(KontoriErinevused[[#Headers],[Jaan]]),1),INDEX(KontorKavandatud[],,1),0),MATCH(KontoriErinevused[[#Headers],[Jaan]],KontorKavandatud[#Headers],0))-INDEX(KontoriTegelikud[],MATCH(INDEX(KontoriErinevused[],ROW()-ROW(KontoriErinevused[[#Headers],[Jaan]]),1),INDEX(KontorKavandatud[],,1),0),MATCH(KontoriErinevused[[#Headers],[Jaan]],KontoriTegelikud[#Headers],0)) -> 0.00 € | D16: =INDEX(KontorKavandatud[],MATCH(INDEX(KontoriErinevused[],ROW()-ROW(KontoriErinevused[[#Headers],[Veebr]]),1),INDEX(KontorKavandatud[],,1),0),MATCH(KontoriErinevused[[#Headers],[Veebr]],KontorKavandatud[#Headers],0))-INDEX(KontoriTegelikud[],MATCH(INDEX(KontoriErinevused[],ROW()-ROW(KontoriErinevused[[#Headers],[Veebr]]),1),INDEX(KontorKavandatud[],,1),0),MATCH(KontoriErinevused[[#Headers],[Veebr]],KontoriTegelikud[#Headers],0)) -> 0.00 € | E16: =INDEX(KontorKavandatud[],MATCH(INDEX(KontoriErinevused[],ROW()-ROW(KontoriErinevused[[#Headers],[Märts]]),1),INDEX(KontorKavandatud[],,1),0),MATCH(KontoriErinevused[[#Headers],[Märts]],KontorKavandatud[#Headers],0))-INDEX(KontoriTegelikud[],MATCH(INDEX(KontoriErinevused[],ROW()-ROW(KontoriErinevused[[#Headers],[Märts]]),1),INDEX(KontorKavandatud[],,1),0),MATCH(KontoriErinevused[[#Headers],[Märts]],KontoriTegelikud[#Headers],0)) -> 0.00 € | F16: =INDEX(KontorKavandatud[],MATCH(INDEX(KontoriErinevused[],ROW()-ROW(KontoriErinevused[[#Headers],[Apr]]),1),INDEX(KontorKavandatud[],,1),0),MATCH(KontoriErinevused[[#Headers],[Apr]],KontorKavandatud[#Headers],0))-INDEX(KontoriTegelikud[],MATCH(INDEX(KontoriErinevused[],ROW()-ROW(KontoriErinevused[[#Headers],[Apr]]),1),INDEX(KontorKavandatud[],,1),0),MATCH(KontoriErinevused[[#Headers],[Apr]],KontoriTegelikud[#Headers],0)) -> 0.00 € | G16: =INDEX(KontorKavandatud[],MATCH(INDEX(KontoriErinevused[],ROW()-ROW(KontoriErinevused[[#Headers],[Mai]]),1),INDEX(KontorKavandatud[],,1),0),MATCH(KontoriErinevused[[#Headers],[Mai]],KontorKavandatud[#Headers],0))-INDEX(KontoriTegelikud[],MATCH(INDEX(KontoriErinevused[],ROW()-ROW(KontoriErinevused[[#Headers],[Mai]]),1),INDEX(KontorKavandatud[],,1),0),MATCH(KontoriErinevused[[#Headers],[Mai]],KontoriTegelikud[#Headers],0)) -> 0.00 € | H16: =INDEX(KontorKavandatud[],MATCH(INDEX(KontoriErinevused[],ROW()-ROW(KontoriErinevused[[#Headers],[Juuni]]),1),INDEX(KontorKavandatud[],,1),0),MATCH(KontoriErinevused[[#Headers],[Juuni]],KontorKavandatud[#Headers],0))-INDEX(KontoriTegelikud[],MATCH(INDEX(KontoriErinevused[],ROW()-ROW(KontoriErinevused[[#Headers],[Juuni]]),1),INDEX(KontorKavandatud[],,1),0),MATCH(KontoriErinevused[[#Headers],[Juuni]],KontoriTegelikud[#Headers],0)) -> 0.00 € | I16: =INDEX(KontorKavandatud[],MATCH(INDEX(KontoriErinevused[],ROW()-ROW(KontoriErinevused[[#Headers],[Juuli]]),1),INDEX(KontorKavandatud[],,1),0),MATCH(KontoriErinevused[[#Headers],[Juuli]],KontorKavandatud[#Headers],0))-INDEX(KontoriTegelikud[],MATCH(INDEX(KontoriErinevused[],ROW()-ROW(KontoriErinevused[[#Headers],[Juuli]]),1),INDEX(KontorKavandatud[],,1),0),MATCH(KontoriErinevused[[#Headers],[Juuli]],KontoriTegelikud[#Headers],0)) -> 180.00 € | J16: =INDEX(KontorKavandatud[],MATCH(INDEX(KontoriErinevused[],ROW()-ROW(KontoriErinevused[[#Headers],[Aug]]),1),INDEX(KontorKavandatud[],,1),0),MATCH(KontoriErinevused[[#Headers],[Aug]],KontorKavandatud[#Headers],0))-INDEX(KontoriTegelikud[],MATCH(INDEX(KontoriErinevused[],ROW()-ROW(KontoriErinevused[[#Headers],[Aug]]),1),INDEX(KontorKavandatud[],,1),0),MATCH(KontoriErinevused[[#Headers],[Aug]],KontoriTegelikud[#Headers],0)) -> 180.00 € | K16: =INDEX(KontorKavandatud[],MATCH(INDEX(KontoriErinevused[],ROW()-ROW(KontoriErinevused[[#Headers],[Sept]]),1),INDEX(KontorKavandatud[],,1),0),MATCH(KontoriErinevused[[#Headers],[Sept]],KontorKavandatud[#Headers],0))-INDEX(KontoriTegelikud[],MATCH(INDEX(KontoriErinevused[],ROW()-ROW(KontoriErinevused[[#Headers],[Sept]]),1),INDEX(KontorKavandatud[],,1),0),MATCH(KontoriErinevused[[#Headers],[Sept]],KontoriTegelikud[#Headers],0)) -> 180.00 € | L16: =INDEX(KontorKavandatud[],MATCH(INDEX(KontoriErinevused[],ROW()-ROW(KontoriErinevused[[#Headers],[Okt]]),1),INDEX(KontorKavandatud[],,1),0),MATCH(KontoriErinevused[[#Headers],[Okt]],KontorKavandatud[#Headers],0))-INDEX(KontoriTegelikud[],MATCH(INDEX(KontoriErinevused[],ROW()-ROW(KontoriErinevused[[#Headers],[Okt]]),1),INDEX(KontorKavandatud[],,1),0),MATCH(KontoriErinevused[[#Headers],[Okt]],KontoriTegelikud[#Headers],0)) -> 180.00 € | M16: =INDEX(KontorKavandatud[],MATCH(INDEX(KontoriErinevused[],ROW()-ROW(KontoriErinevused[[#Headers],[Nov]]),1),INDEX(KontorKavandatud[],,1),0),MATCH(KontoriErinevused[[#Headers],[Nov]],KontorKavandatud[#Headers],0))-INDEX(KontoriTegelikud[],MATCH(INDEX(KontoriErinevused[],ROW()-ROW(KontoriErinevused[[#Headers],[Nov]]),1),INDEX(KontorKavandatud[],,1),0),MATCH(KontoriErinevused[[#Headers],[Nov]],KontoriTegelikud[#Headers],0)) -> 180.00 € | N16: =INDEX(KontorKavandatud[],MATCH(INDEX(KontoriErinevused[],ROW()-ROW(KontoriErinevused[[#Headers],[Dets]]),1),INDEX(KontorKavandatud[],,1),0),MATCH(KontoriErinevused[[#Headers],[Dets]],KontorKavandatud[#Headers],0))-INDEX(KontoriTegelikud[],MATCH(INDEX(KontoriErinevused[],ROW()-ROW(KontoriErinevused[[#Headers],[Dets]]),1),INDEX(KontorKavandatud[],,1),0),MATCH(KontoriErinevused[[#Headers],[Dets]],KontoriTegelikud[#Headers],0)) -> 180.00 € | O16: =SUM(KontoriErinevused[[#This Row],[Jaan]:[Dets]]) -> 1,080.00 €
B17: Kontoritarbed | C17: =INDEX(KontorKavandatud[],MATCH(INDEX(KontoriErinevused[],ROW()-ROW(KontoriErinevused[[#Headers],[Jaan]]),1),INDEX(KontorKavandatud[],,1),0),MATCH(KontoriErinevused[[#Headers],[Jaan]],KontorKavandatud[#Headers],0))-INDEX(KontoriTegelikud[],MATCH(INDEX(KontoriErinevused[],ROW()-ROW(KontoriErinevused[[#Headers],[Jaan]]),1),INDEX(KontorKavandatud[],,1),0),MATCH(KontoriErinevused[[#Headers],[Jaan]],KontoriTegelikud[#Headers],0)) -> -56.00 € | D17: =INDEX(KontorKavandatud[],MATCH(INDEX(KontoriErinevused[],ROW()-ROW(KontoriErinevused[[#Headers],[Veebr]]),1),INDEX(KontorKavandatud[],,1),0),MATCH(KontoriErinevused[[#Headers],[Veebr]],KontorKavandatud[#Headers],0))-INDEX(KontoriTegelikud[],MATCH(INDEX(KontoriErinevused[],ROW()-ROW(KontoriErinevused[[#Headers],[Veebr]]),1),INDEX(KontorKavandatud[],,1),0),MATCH(KontoriErinevused[[#Headers],[Veebr]],KontoriTegelikud[#Headers],0)) -> 58.00 € | E17: =INDEX(KontorKavandatud[],MATCH(INDEX(KontoriErinevused[],ROW()-ROW(KontoriErinevused[[#Headers],[Märts]]),1),INDEX(KontorKavandatud[],,1),0),MATCH(KontoriErinevused[[#Headers],[Märts]],KontorKavandatud[#Headers],0))-INDEX(KontoriTegelikud[],MATCH(INDEX(KontoriErinevused[],ROW()-ROW(KontoriErinevused[[#Headers],[Märts]]),1),INDEX(KontorKavandatud[],,1),0),MATCH(KontoriErinevused[[#Headers],[Märts]],KontoriTegelikud[#Headers],0)) -> 40.00 € | F17: =INDEX(KontorKavandatud[],MATCH(INDEX(KontoriErinevused[],ROW()-ROW(KontoriErinevused[[#Headers],[Apr]]),1),INDEX(KontorKavandatud[],,1),0),MATCH(KontoriErinevused[[#Headers],[Apr]],KontorKavandatud[#Headers],0))-INDEX(KontoriTegelikud[],MATCH(INDEX(KontoriErinevused[],ROW()-ROW(KontoriErinevused[[#Headers],[Apr]]),1),INDEX(KontorKavandatud[],,1),0),MATCH(KontoriErinevused[[#Headers],[Apr]],KontoriTegelikud[#Headers],0)) -> -21.00 € | G17: =INDEX(KontorKavandatud[],MATCH(INDEX(KontoriErinevused[],ROW()-ROW(KontoriErinevused[[#Headers],[Mai]]),1),INDEX(KontorKavandatud[],,1),0),MATCH(KontoriErinevused[[#Headers],[Mai]],KontorKavandatud[#Headers],0))-INDEX(KontoriTegelikud[],MATCH(INDEX(KontoriErinevused[],ROW()-ROW(KontoriErinevused[[#Headers],[Mai]]),1),INDEX(KontorKavandatud[],,1),0),MATCH(KontoriErinevused[[#Headers],[Mai]],KontoriTegelikud[#Headers],0)) -> -56.00 € | H17: =INDEX(KontorKavandatud[],MATCH(INDEX(KontoriErinevused[],ROW()-ROW(KontoriErinevused[[#Headers],[Juuni]]),1),INDEX(KontorKavandatud[],,1),0),MATCH(KontoriErinevused[[#Headers],[Juuni]],KontorKavandatud[#Headers],0))-INDEX(KontoriTegelikud[],MATCH(INDEX(KontoriErinevused[],ROW()-ROW(KontoriErinevused[[#Headers],[Juuni]]),1),INDEX(KontorKavandatud[],,1),0),MATCH(KontoriErinevused[[#Headers],[Juuni]],KontoriTegelikud[#Headers],0)) -> -40.00 € | I17: =INDEX(KontorKavandatud[],MATCH(INDEX(KontoriErinevused[],ROW()-ROW(KontoriErinevused[[#Headers],[Juuli]]),1),INDEX(KontorKavandatud[],,1),0),MATCH(KontoriErinevused[[#Headers],[Juuli]],KontorKavandatud[#Headers],0))-INDEX(KontoriTegelikud[],MATCH(INDEX(KontoriErinevused[],ROW()-ROW(KontoriErinevused[[#Headers],[Juuli]]),1),INDEX(KontorKavandatud[],,1),0),MATCH(KontoriErinevused[[#Headers],[Juuli]],KontoriTegelikud[#Headers],0)) -> 200.00 € | J17: =INDEX(KontorKavandatud[],MATCH(INDEX(KontoriErinevused[],ROW()-ROW(KontoriErinevused[[#Headers],[Aug]]),1),INDEX(KontorKavandatud[],,1),0),MATCH(KontoriErinevused[[#Headers],[Aug]],KontorKavandatud[#Headers],0))-INDEX(KontoriTegelikud[],MATCH(INDEX(KontoriErinevused[],ROW()-ROW(KontoriErinevused[[#Headers],[Aug]]),1),INDEX(KontorKavandatud[],,1),0),MATCH(KontoriErinevused[[#Headers],[Aug]],KontoriTegelikud[#Headers],0)) -> 200.00 € | K17: =INDEX(KontorKavandatud[],MATCH(INDEX(KontoriErinevused[],ROW()-ROW(KontoriErinevused[[#Headers],[Sept]]),1),INDEX(KontorKavandatud[],,1),0),MATCH(KontoriErinevused[[#Headers],[Sept]],KontorKavandatud[#Headers],0))-INDEX(KontoriTegelikud[],MATCH(INDEX(KontoriErinevused[],ROW()-ROW(KontoriErinevused[[#Headers],[Sept]]),1),INDEX(KontorKavandatud[],,1),0),MATCH(KontoriErinevused[[#Headers],[Sept]],KontoriTegelikud[#Headers],0)) -> 200.00 € | L17: =INDEX(KontorKavandatud[],MATCH(INDEX(KontoriErinevused[],ROW()-ROW(KontoriErinevused[[#Headers],[Okt]]),1),INDEX(KontorKavandatud[],,1),0),MATCH(KontoriErinevused[[#Headers],[Okt]],KontorKavandatud[#Headers],0))-INDEX(KontoriTegelikud[],MATCH(INDEX(KontoriErinevused[],ROW()-ROW(KontoriErinevused[[#Headers],[Okt]]),1),INDEX(KontorKavandatud[],,1),0),MATCH(KontoriErinevused[[#Headers],[Okt]],KontoriTegelikud[#Headers],0)) -> 200.00 € | M17: =INDEX(KontorKavandatud[],MATCH(INDEX(KontoriErinevused[],ROW()-ROW(KontoriErinevused[[#Headers],[Nov]]),1),INDEX(KontorKavandatud[],,1),0),MATCH(KontoriErinevused[[#Headers],[Nov]],KontorKavandatud[#Headers],0))-INDEX(KontoriTegelikud[],MATCH(INDEX(KontoriErinevused[],ROW()-ROW(KontoriErinevused[[#Headers],[Nov]]),1),INDEX(KontorKavandatud[],,1),0),MATCH(KontoriErinevused[[#Headers],[Nov]],KontoriTegelikud[#Headers],0)) -> 200.00 € | N17: =INDEX(KontorKavandatud[],MATCH(INDEX(KontoriErinevused[],ROW()-ROW(KontoriErinevused[[#Headers],[Dets]]),1),INDEX(KontorKavandatud[],,1),0),MATCH(KontoriErinevused[[#Headers],[Dets]],KontorKavandatud[#Headers],0))-INDEX(KontoriTegelikud[],MATCH(INDEX(KontoriErinevused[],ROW()-ROW(KontoriErinevused[[#Headers],[Dets]]),1),INDEX(KontorKavandatud[],,1),0),MATCH(KontoriErinevused[[#Headers],[Dets]],KontoriTegelikud[#Headers],0)) -> 200.00 € | O17: =SUM(KontoriErinevused[[#This Row],[Jaan]:[Dets]]) -> 1,125.00 €
B18: Turvalisus | C18: =INDEX(KontorKavandatud[],MATCH(INDEX(KontoriErinevused[],ROW()-ROW(KontoriErinevused[[#Headers],[Jaan]]),1),INDEX(KontorKavandatud[],,1),0),MATCH(KontoriErinevused[[#Headers],[Jaan]],KontorKavandatud[#Headers],0))-INDEX(KontoriTegelikud[],MATCH(INDEX(KontoriErinevused[],ROW()-ROW(KontoriErinevused[[#Headers],[Jaan]]),1),INDEX(KontorKavandatud[],,1),0),MATCH(KontoriErinevused[[#Headers],[Jaan]],KontoriTegelikud[#Headers],0)) -> 0.00 € | D18: =INDEX(KontorKavandatud[],MATCH(INDEX(KontoriErinevused[],ROW()-ROW(KontoriErinevused[[#Headers],[Veebr]]),1),INDEX(KontorKavandatud[],,1),0),MATCH(KontoriErinevused[[#Headers],[Veebr]],KontorKavandatud[#Headers],0))-INDEX(KontoriTegelikud[],MATCH(INDEX(KontoriErinevused[],ROW()-ROW(KontoriErinevused[[#Headers],[Veebr]]),1),INDEX(KontorKavandatud[],,1),0),MATCH(KontoriErinevused[[#Headers],[Veebr]],KontoriTegelikud[#Headers],0)) -> 0.00 € | E18: =INDEX(KontorKavandatud[],MATCH(INDEX(KontoriErinevused[],ROW()-ROW(KontoriErinevused[[#Headers],[Märts]]),1),INDEX(KontorKavandatud[],,1),0),MATCH(KontoriErinevused[[#Headers],[Märts]],KontorKavandatud[#Headers],0))-INDEX(KontoriTegelikud[],MATCH(INDEX(KontoriErinevused[],ROW()-ROW(KontoriErinevused[[#Headers],[Märts]]),1),INDEX(KontorKavandatud[],,1),0),MATCH(KontoriErinevused[[#Headers],[Märts]],KontoriTegelikud[#Headers],0)) -> 0.00 € | F18: =INDEX(KontorKavandatud[],MATCH(INDEX(KontoriErinevused[],ROW()-ROW(KontoriErinevused[[#Headers],[Apr]]),1),INDEX(KontorKavandatud[],,1),0),MATCH(KontoriErinevused[[#Headers],[Apr]],KontorKavandatud[#Headers],0))-INDEX(KontoriTegelikud[],MATCH(INDEX(KontoriErinevused[],ROW()-ROW(KontoriErinevused[[#Headers],[Apr]]),1),INDEX(KontorKavandatud[],,1),0),MATCH(KontoriErinevused[[#Headers],[Apr]],KontoriTegelikud[#Headers],0)) -> 0.00 € | G18: =INDEX(KontorKavandatud[],MATCH(INDEX(KontoriErinevused[],ROW()-ROW(KontoriErinevused[[#Headers],[Mai]]),1),INDEX(KontorKavandatud[],,1),0),MATCH(KontoriErinevused[[#Headers],[Mai]],KontorKavandatud[#Headers],0))-INDEX(KontoriTegelikud[],MATCH(INDEX(KontoriErinevused[],ROW()-ROW(KontoriErinevused[[#Headers],[Mai]]),1),INDEX(KontorKavandatud[],,1),0),MATCH(KontoriErinevused[[#Headers],[Mai]],KontoriTegelikud[#Headers],0)) -> 0.00 € | H18: =INDEX(KontorKavandatud[],MATCH(INDEX(KontoriErinevused[],ROW()-ROW(KontoriErinevused[[#Headers],[Juuni]]),1),INDEX(KontorKavandatud[],,1),0),MATCH(KontoriErinevused[[#Headers],[Juuni]],KontorKavandatud[#Headers],0))-INDEX(KontoriTegelikud[],MATCH(INDEX(KontoriErinevused[],ROW()-ROW(KontoriErinevused[[#Headers],[Juuni]]),1),INDEX(KontorKavandatud[],,1),0),MATCH(KontoriErinevused[[#Headers],[Juuni]],KontoriTegelikud[#Headers],0)) -> 0.00 € | I18: =INDEX(KontorKavandatud[],MATCH(INDEX(KontoriErinevused[],ROW()-ROW(KontoriErinevused[[#Headers],[Juuli]]),1),INDEX(KontorKavandatud[],,1),0),MATCH(KontoriErinevused[[#Headers],[Juuli]],KontorKavandatud[#Headers],0))-INDEX(KontoriTegelikud[],MATCH(INDEX(KontoriErinevused[],ROW()-ROW(KontoriErinevused[[#Headers],[Juuli]]),1),INDEX(KontorKavandatud[],,1),0),MATCH(KontoriErinevused[[#Headers],[Juuli]],KontoriTegelikud[#Headers],0)) -> 600.00 € | J18: =INDEX(KontorKavandatud[],MATCH(INDEX(KontoriErinevused[],ROW()-ROW(KontoriErinevused[[#Headers],[Aug]]),1),INDEX(KontorKavandatud[],,1),0),MATCH(KontoriErinevused[[#Headers],[Aug]],KontorKavandatud[#Headers],0))-INDEX(KontoriTegelikud[],MATCH(INDEX(KontoriErinevused[],ROW()-ROW(KontoriErinevused[[#Headers],[Aug]]),1),INDEX(KontorKavandatud[],,1),0),MATCH(KontoriErinevused[[#Headers],[Aug]],KontoriTegelikud[#Headers],0)) -> 600.00 € | K18: =INDEX(KontorKavandatud[],MATCH(INDEX(KontoriErinevused[],ROW()-ROW(KontoriErinevused[[#Headers],[Sept]]),1),INDEX(KontorKavandatud[],,1),0),MATCH(KontoriErinevused[[#Headers],[Sept]],KontorKavandatud[#Headers],0))-INDEX(KontoriTegelikud[],MATCH(INDEX(KontoriErinevused[],ROW()-ROW(KontoriErinevused[[#Headers],[Sept]]),1),INDEX(KontorKavandatud[],,1),0),MATCH(KontoriErinevused[[#Headers],[Sept]],KontoriTegelikud[#Headers],0)) -> 600.00 € | L18: =INDEX(KontorKavandatud[],MATCH(INDEX(KontoriErinevused[],ROW()-ROW(KontoriErinevused[[#Headers],[Okt]]),1),INDEX(KontorKavandatud[],,1),0),MATCH(KontoriErinevused[[#Headers],[Okt]],KontorKavandatud[#Headers],0))-INDEX(KontoriTegelikud[],MATCH(INDEX(KontoriErinevused[],ROW()-ROW(KontoriErinevused[[#Headers],[Okt]]),1),INDEX(KontorKavandatud[],,1),0),MATCH(KontoriErinevused[[#Headers],[Okt]],KontoriTegelikud[#Headers],0)) -> 600.00 € | M18: =INDEX(KontorKavandatud[],MATCH(INDEX(KontoriErinevused[],ROW()-ROW(KontoriErinevused[[#Headers],[Nov]]),1),INDEX(KontorKavandatud[],,1),0),MATCH(KontoriErinevused[[#Headers],[Nov]],KontorKavandatud[#Headers],0))-INDEX(KontoriTegelikud[],MATCH(INDEX(KontoriErinevused[],ROW()-ROW(KontoriErinevused[[#Headers],[Nov]]),1),INDEX(KontorKavandatud[],,1),0),MATCH(KontoriErinevused[[#Headers],[Nov]],KontoriTegelikud[#Headers],0)) -> 600.00 € | N18: =INDEX(KontorKavandatud[],MATCH(INDEX(KontoriErinevused[],ROW()-ROW(KontoriErinevused[[#Headers],[Dets]]),1),INDEX(KontorKavandatud[],,1),0),MATCH(KontoriErinevused[[#Headers],[Dets]],KontorKavandatud[#Headers],0))-INDEX(KontoriTegelikud[],MATCH(INDEX(KontoriErinevused[],ROW()-ROW(KontoriErinevused[[#Headers],[Dets]]),1),INDEX(KontorKavandatud[],,1),0),MATCH(KontoriErinevused[[#Headers],[Dets]],KontoriTegelikud[#Headers],0)) -> 600.00 € | O18: =SUM(KontoriErinevused[[#This Row],[Jaan]:[Dets]]) -> 3,600.00 €
B19: Vahesumma | C19: =SUBTOTAL(109,KontoriErinevused[Jaan]) -> -17.00 € | D19: =SUBTOTAL(109,KontoriErinevused[Veebr]) -> 72.00 € | E19: =SUBTOTAL(109,KontoriErinevused[Märts]) -> 78.00 € | F19: =SUBTOTAL(109,KontoriErinevused[Apr]) -> -141.00 € | G19: =SUBTOTAL(109,KontoriErinevused[Mai]) -> -38.00 € | H19: =SUBTOTAL(109,KontoriErinevused[Juuni]) -> 16.00 € | I19: =SUBTOTAL(109,KontoriErinevused[Juuli]) -> 11,470.00 € | J19: =SUBTOTAL(109,KontoriErinevused[Aug]) -> 11,470.00 € | K19: =SUBTOTAL(109,KontoriErinevused[Sept]) -> 11,470.00 € | L19: =SUBTOTAL(109,KontoriErinevused[Okt]) -> 11,470.00 € | M19: =SUBTOTAL(109,KontoriErinevused[Nov]) -> 11,770.00 € | N19: =SUBTOTAL(109,KontoriErinevused[Dets]) -> 11,770.00 € | O19: =SUBTOTAL(109,KontoriErinevused[AASTA]) -> 69,390.00 €
B21: Turunduskulud | C21: Jaan | D21: Veebr | E21: Märts | F21: Apr | G21: Mai | H21: Juuni | I21: Juuli | J21: Aug | K21: Sept | L21: Okt | M21: Nov | N21: Dets | O21: AASTA
B22: Veebilehe majutus | C22: =INDEX(TurunduseKavandatud[],MATCH(INDEX(TurunduseErinevused[],ROW()-ROW(TurunduseErinevused[[#Headers],[Jaan]]),1),INDEX(TurunduseKavandatud[],,1),0),MATCH(TurunduseErinevused[[#Headers],[Jaan]],TurunduseKavandatud[#Headers],0))-INDEX(TurunduseTegelikud[],MATCH(INDEX(TurunduseErinevused[],ROW()-ROW(TurunduseErinevused[[#Headers],[Jaan]]),1),INDEX(TurunduseKavandatud[],,1),0),MATCH(TurunduseErinevused[[#Headers],[Jaan]],TurunduseTegelikud[#Headers],0)) -> 0.00 € | D22: =INDEX(TurunduseKavandatud[],MATCH(INDEX(TurunduseErinevused[],ROW()-ROW(TurunduseErinevused[[#Headers],[Veebr]]),1),INDEX(TurunduseKavandatud[],,1),0),MATCH(TurunduseErinevused[[#Headers],[Veebr]],TurunduseKavandatud[#Headers],0))-INDEX(TurunduseTegelikud[],MATCH(INDEX(TurunduseErinevused[],ROW()-ROW(TurunduseErinevused[[#Headers],[Veebr]]),1),INDEX(TurunduseKavandatud[],,1),0),MATCH(TurunduseErinevused[[#Headers],[Veebr]],TurunduseTegelikud[#Headers],0)) -> 0.00 € | E22: =INDEX(TurunduseKavandatud[],MATCH(INDEX(TurunduseErinevused[],ROW()-ROW(TurunduseErinevused[[#Headers],[Märts]]),1),INDEX(TurunduseKavandatud[],,1),0),MATCH(TurunduseErinevused[[#Headers],[Märts]],TurunduseKavandatud[#Headers],0))-INDEX(TurunduseTegelikud[],MATCH(INDEX(TurunduseErinevused[],ROW()-ROW(TurunduseErinevused[[#Headers],[Märts]]),1),INDEX(TurunduseKavandatud[],,1),0),MATCH(TurunduseErinevused[[#Headers],[Märts]],TurunduseTegelikud[#Headers],0)) -> 0.00 € | F22: =INDEX(TurunduseKavandatud[],MATCH(INDEX(TurunduseErinevused[],ROW()-ROW(TurunduseErinevused[[#Headers],[Apr]]),1),INDEX(TurunduseKavandatud[],,1),0),MATCH(TurunduseErinevused[[#Headers],[Apr]],TurunduseKavandatud[#Headers],0))-INDEX(TurunduseTegelikud[],MATCH(INDEX(TurunduseErinevused[],ROW()-ROW(TurunduseErinevused[[#Headers],[Apr]]),1),INDEX(TurunduseKavandatud[],,1),0),MATCH(TurunduseErinevused[[#Headers],[Apr]],TurunduseTegelikud[#Headers],0)) -> 0.00 € | G22: =INDEX(TurunduseKavandatud[],MATCH(INDEX(TurunduseErinevused[],ROW()-ROW(TurunduseErinevused[[#Headers],[Mai]]),1),INDEX(TurunduseKavandatud[],,1),0),MATCH(TurunduseErinevused[[#Headers],[Mai]],TurunduseKavandatud[#Headers],0))-INDEX(TurunduseTegelikud[],MATCH(INDEX(TurunduseErinevused[],ROW()-ROW(TurunduseErinevused[[#Headers],[Mai]]),1),INDEX(TurunduseKavandatud[],,1),0),MATCH(TurunduseErinevused[[#Headers],[Mai]],TurunduseTegelikud[#Headers],0)) -> 0.00 € | H22: =INDEX(TurunduseKavandatud[],MATCH(INDEX(TurunduseErinevused[],ROW()-ROW(TurunduseErinevused[[#Headers],[Juuni]]),1),INDEX(TurunduseKavandatud[],,1),0),MATCH(TurunduseErinevused[[#Headers],[Juuni]],TurunduseKavandatud[#Headers],0))-INDEX(TurunduseTegelikud[],MATCH(INDEX(TurunduseErinevused[],ROW()-ROW(TurunduseErinevused[[#Headers],[Juuni]]),1),INDEX(TurunduseKavandatud[],,1),0),MATCH(TurunduseErinevused[[#Headers],[Juuni]],TurunduseTegelikud[#Headers],0)) -> 0.00 € | I22: =INDEX(TurunduseKavandatud[],MATCH(INDEX(TurunduseErinevused[],ROW()-ROW(TurunduseErinevused[[#Headers],[Juuli]]),1),INDEX(TurunduseKavandatud[],,1),0),MATCH(TurunduseErinevused[[#Headers],[Juuli]],TurunduseKavandatud[#Headers],0))-INDEX(TurunduseTegelikud[],MATCH(INDEX(TurunduseErinevused[],ROW()-ROW(TurunduseErinevused[[#Headers],[Juuli]]),1),INDEX(TurunduseKavandatud[],,1),0),MATCH(TurunduseErinevused[[#Headers],[Juuli]],TurunduseTegelikud[#Headers],0)) -> 500.00 € | J22: =INDEX(TurunduseKavandatud[],MATCH(INDEX(TurunduseErinevused[],ROW()-ROW(TurunduseErinevused[[#Headers],[Aug]]),1),INDEX(TurunduseKavandatud[],,1),0),MATCH(TurunduseErinevused[[#Headers],[Aug]],TurunduseKavandatud[#Headers],0))-INDEX(TurunduseTegelikud[],MATCH(INDEX(TurunduseErinevused[],ROW()-ROW(TurunduseErinevused[[#Headers],[Aug]]),1),INDEX(TurunduseKavandatud[],,1),0),MATCH(TurunduseErinevused[[#Headers],[Aug]],TurunduseTegelikud[#Headers],0)) -> 500.00 € | K22: =INDEX(TurunduseKavandatud[],MATCH(INDEX(TurunduseErinevused[],ROW()-ROW(TurunduseErinevused[[#Headers],[Sept]]),1),INDEX(TurunduseKavandatud[],,1),0),MATCH(TurunduseErinevused[[#Headers],[Sept]],TurunduseKavandatud[#Headers],0))-INDEX(TurunduseTegelikud[],MATCH(INDEX(TurunduseErinevused[],ROW()-ROW(TurunduseErinevused[[#Headers],[Sept]]),1),INDEX(TurunduseKavandatud[],,1),0),MATCH(TurunduseErinevused[[#Headers],[Sept]],TurunduseTegelikud[#Headers],0)) -> 500.00 € | L22: =INDEX(TurunduseKavandatud[],MATCH(INDEX(TurunduseErinevused[],ROW()-ROW(TurunduseErinevused[[#Headers],[Okt]]),1),INDEX(TurunduseKavandatud[],,1),0),MATCH(TurunduseErinevused[[#Headers],[Okt]],TurunduseKavandatud[#Headers],0))-INDEX(TurunduseTegelikud[],MATCH(INDEX(TurunduseErinevused[],ROW()-ROW(TurunduseErinevused[[#Headers],[Okt]]),1),INDEX(TurunduseKavandatud[],,1),0),MATCH(TurunduseErinevused[[#Headers],[Okt]],TurunduseTegelikud[#Headers],0)) -> 500.00 € | M22: =INDEX(TurunduseKavandatud[],MATCH(INDEX(TurunduseErinevused[],ROW()-ROW(TurunduseErinevused[[#Headers],[Nov]]),1),INDEX(TurunduseKavandatud[],,1),0),MATCH(TurunduseErinevused[[#Headers],[Nov]],TurunduseKavandatud[#Headers],0))-INDEX(TurunduseTegelikud[],MATCH(INDEX(TurunduseErinevused[],ROW()-ROW(TurunduseErinevused[[#Headers],[Nov]]),1),INDEX(TurunduseKavandatud[],,1),0),MATCH(TurunduseErinevused[[#Headers],[Nov]],TurunduseTegelikud[#Headers],0)) -> 500.00 € | N22: =INDEX(TurunduseKavandatud[],MATCH(INDEX(TurunduseErinevused[],ROW()-ROW(TurunduseErinevused[[#Headers],[Dets]]),1),INDEX(TurunduseKavandatud[],,1),0),MATCH(TurunduseErinevused[[#Headers],[Dets]],TurunduseKavandatud[#Headers],0))-INDEX(TurunduseTegelikud[],MATCH(INDEX(TurunduseErinevused[],ROW()-ROW(TurunduseErinevused[[#Headers],[Dets]]),1),INDEX(TurunduseKavandatud[],,1),0),MATCH(TurunduseErinevused[[#Headers],[Dets]],TurunduseTegelikud[#Headers],0)) -> 500.00 € | O22: =SUM(TurunduseErinevused[[#This Row],[Jaan]:[Dets]]) -> 3,000.00 €
B23: Veebisaidi värskendused | C23: =INDEX(TurunduseKavandatud[],MATCH(INDEX(TurunduseErinevused[],ROW()-ROW(TurunduseErinevused[[#Headers],[Jaan]]),1),INDEX(TurunduseKavandatud[],,1),0),MATCH(TurunduseErinevused[[#Headers],[Jaan]],TurunduseKavandatud[#Headers],0))-INDEX(TurunduseTegelikud[],MATCH(INDEX(TurunduseErinevused[],ROW()-ROW(TurunduseErinevused[[#Headers],[Jaan]]),1),INDEX(TurunduseKavandatud[],,1),0),MATCH(TurunduseErinevused[[#Headers],[Jaan]],TurunduseTegelikud[#Headers],0)) -> 0.00 € | D23: =INDEX(TurunduseKavandatud[],MATCH(INDEX(TurunduseErinevused[],ROW()-ROW(TurunduseErinevused[[#Headers],[Veebr]]),1),INDEX(TurunduseKavandatud[],,1),0),MATCH(TurunduseErinevused[[#Headers],[Veebr]],TurunduseKavandatud[#Headers],0))-INDEX(TurunduseTegelikud[],MATCH(INDEX(TurunduseErinevused[],ROW()-ROW(TurunduseErinevused[[#Headers],[Veebr]]),1),INDEX(TurunduseKavandatud[],,1),0),MATCH(TurunduseErinevused[[#Headers],[Veebr]],TurunduseTegelikud[#Headers],0)) -> 0.00 € | E23: =INDEX(TurunduseKavandatud[],MATCH(INDEX(TurunduseErinevused[],ROW()-ROW(TurunduseErinevused[[#Headers],[Märts]]),1),INDEX(TurunduseKavandatud[],,1),0),MATCH(TurunduseErinevused[[#Headers],[Märts]],TurunduseKavandatud[#Headers],0))-INDEX(TurunduseTegelikud[],MATCH(INDEX(TurunduseErinevused[],ROW()-ROW(TurunduseErinevused[[#Headers],[Märts]]),1),INDEX(TurunduseKavandatud[],,1),0),MATCH(TurunduseErinevused[[#Headers],[Märts]],TurunduseTegelikud[#Headers],0)) -> 0.00 € | F23: =INDEX(TurunduseKavandatud[],MATCH(INDEX(TurunduseErinevused[],ROW()-ROW(TurunduseErinevused[[#Headers],[Apr]]),1),INDEX(TurunduseKavandatud[],,1),0),MATCH(TurunduseErinevused[[#Headers],[Apr]],TurunduseKavandatud[#Headers],0))-INDEX(TurunduseTegelikud[],MATCH(INDEX(TurunduseErinevused[],ROW()-ROW(TurunduseErinevused[[#Headers],[Apr]]),1),INDEX(TurunduseKavandatud[],,1),0),MATCH(TurunduseErinevused[[#Headers],[Apr]],TurunduseTegelikud[#Headers],0)) -> 0.00 € | G23: =INDEX(TurunduseKavandatud[],MATCH(INDEX(TurunduseErinevused[],ROW()-ROW(TurunduseErinevused[[#Headers],[Mai]]),1),INDEX(TurunduseKavandatud[],,1),0),MATCH(TurunduseErinevused[[#Headers],[Mai]],TurunduseKavandatud[#Headers],0))-INDEX(TurunduseTegelikud[],MATCH(INDEX(TurunduseErinevused[],ROW()-ROW(TurunduseErinevused[[#Headers],[Mai]]),1),INDEX(TurunduseKavandatud[],,1),0),MATCH(TurunduseErinevused[[#Headers],[Mai]],TurunduseTegelikud[#Headers],0)) -> 0.00 € | H23: =INDEX(TurunduseKavandatud[],MATCH(INDEX(TurunduseErinevused[],ROW()-ROW(TurunduseErinevused[[#Headers],[Juuni]]),1),INDEX(TurunduseKavandatud[],,1),0),MATCH(TurunduseErinevused[[#Headers],[Juuni]],TurunduseKavandatud[#Headers],0))-INDEX(TurunduseTegelikud[],MATCH(INDEX(TurunduseErinevused[],ROW()-ROW(TurunduseErinevused[[#Headers],[Juuni]]),1),INDEX(TurunduseKavandatud[],,1),0),MATCH(TurunduseErinevused[[#Headers],[Juuni]],TurunduseTegelikud[#Headers],0)) -> -500.00 € | I23: =INDEX(TurunduseKavandatud[],MATCH(INDEX(TurunduseErinevused[],ROW()-ROW(TurunduseErinevused[[#Headers],[Juuli]]),1),INDEX(TurunduseKavandatud[],,1),0),MATCH(TurunduseErinevused[[#Headers],[Juuli]],TurunduseKavandatud[#Headers],0))-INDEX(TurunduseTegelikud[],MATCH(INDEX(TurunduseErinevused[],ROW()-ROW(TurunduseErinevused[[#Headers],[Juuli]]),1),INDEX(TurunduseKavandatud[],,1),0),MATCH(TurunduseErinevused[[#Headers],[Juuli]],TurunduseTegelikud[#Headers],0)) -> 200.00 € | J23: =INDEX(TurunduseKavandatud[],MATCH(INDEX(TurunduseErinevused[],ROW()-ROW(TurunduseErinevused[[#Headers],[Aug]]),1),INDEX(TurunduseKavandatud[],,1),0),MATCH(TurunduseErinevused[[#Headers],[Aug]],TurunduseKavandatud[#Headers],0))-INDEX(TurunduseTegelikud[],MATCH(INDEX(TurunduseErinevused[],ROW()-ROW(TurunduseErinevused[[#Headers],[Aug]]),1),INDEX(TurunduseKavandatud[],,1),0),MATCH(TurunduseErinevused[[#Headers],[Aug]],TurunduseTegelikud[#Headers],0)) -> 200.00 € | K23: =INDEX(TurunduseKavandatud[],MATCH(INDEX(TurunduseErinevused[],ROW()-ROW(TurunduseErinevused[[#Headers],[Sept]]),1),INDEX(TurunduseKavandatud[],,1),0),MATCH(TurunduseErinevused[[#Headers],[Sept]],TurunduseKavandatud[#Headers],0))-INDEX(TurunduseTegelikud[],MATCH(INDEX(TurunduseErinevused[],ROW()-ROW(TurunduseErinevused[[#Headers],[Sept]]),1),INDEX(TurunduseKavandatud[],,1),0),MATCH(TurunduseErinevused[[#Headers],[Sept]],TurunduseTegelikud[#Headers],0)) -> 200.00 € | L23: =INDEX(TurunduseKavandatud[],MATCH(INDEX(TurunduseErinevused[],ROW()-ROW(TurunduseErinevused[[#Headers],[Okt]]),1),INDEX(TurunduseKavandatud[],,1),0),MATCH(TurunduseErinevused[[#Headers],[Okt]],TurunduseKavandatud[#Headers],0))-INDEX(TurunduseTegelikud[],MATCH(INDEX(TurunduseErinevused[],ROW()-ROW(TurunduseErinevused[[#Headers],[Okt]]),1),INDEX(TurunduseKavandatud[],,1),0),MATCH(TurunduseErinevused[[#Headers],[Okt]],TurunduseTegelikud[#Headers],0)) -> 200.00 € | M23: =INDEX(TurunduseKavandatud[],MATCH(INDEX(TurunduseErinevused[],ROW()-ROW(TurunduseErinevused[[#Headers],[Nov]]),1),INDEX(TurunduseKavandatud[],,1),0),MATCH(TurunduseErinevused[[#Headers],[Nov]],TurunduseKavandatud[#Headers],0))-INDEX(TurunduseTegelikud[],MATCH(INDEX(TurunduseErinevused[],ROW()-ROW(TurunduseErinevused[[#Headers],[Nov]]),1),INDEX(TurunduseKavandatud[],,1),0),MATCH(TurunduseErinevused[[#Headers],[Nov]],TurunduseTegelikud[#Headers],0)) -> 200.00 € | N23: =INDEX(TurunduseKavandatud[],MATCH(INDEX(TurunduseErinevused[],ROW()-ROW(TurunduseErinevused[[#Headers],[Dets]]),1),INDEX(TurunduseKavandatud[],,1),0),MATCH(TurunduseErinevused[[#Headers],[Dets]],TurunduseKavandatud[#Headers],0))-INDEX(TurunduseTegelikud[],MATCH(INDEX(TurunduseErinevused[],ROW()-ROW(TurunduseErinevused[[#Headers],[Dets]]),1),INDEX(TurunduseKavandatud[],,1),0),MATCH(TurunduseErinevused[[#Headers],[Dets]],TurunduseTegelikud[#Headers],0)) -> 1,000.00 € | O23: =SUM(TurunduseErinevused[[#This Row],[Jaan]:[Dets]]) -> 1,500.00 €
B24: Kaasmaterjalide ettevalmistamine | C24: =INDEX(TurunduseKavandatud[],MATCH(INDEX(TurunduseErinevused[],ROW()-ROW(TurunduseErinevused[[#Headers],[Jaan]]),1),INDEX(TurunduseKavandatud[],,1),0),MATCH(TurunduseErinevused[[#Headers],[Jaan]],TurunduseKavandatud[#Headers],0))-INDEX(TurunduseTegelikud[],MATCH(INDEX(TurunduseErinevused[],ROW()-ROW(TurunduseErinevused[[#Headers],[Jaan]]),1),INDEX(TurunduseKavandatud[],,1),0),MATCH(TurunduseErinevused[[#Headers],[Jaan]],TurunduseTegelikud[#Headers],0)) -> 200.00 € | D24: =INDEX(TurunduseKavandatud[],MATCH(INDEX(TurunduseErinevused[],ROW()-ROW(TurunduseErinevused[[#Headers],[Veebr]]),1),INDEX(TurunduseKavandatud[],,1),0),MATCH(TurunduseErinevused[[#Headers],[Veebr]],TurunduseKavandatud[#Headers],0))-INDEX(TurunduseTegelikud[],MATCH(INDEX(TurunduseErinevused[],ROW()-ROW(TurunduseErinevused[[#Headers],[Veebr]]),1),INDEX(TurunduseKavandatud[],,1),0),MATCH(TurunduseErinevused[[#Headers],[Veebr]],TurunduseTegelikud[#Headers],0)) -> 0.00 € | E24: =INDEX(TurunduseKavandatud[],MATCH(INDEX(TurunduseErinevused[],ROW()-ROW(TurunduseErinevused[[#Headers],[Märts]]),1),INDEX(TurunduseKavandatud[],,1),0),MATCH(TurunduseErinevused[[#Headers],[Märts]],TurunduseKavandatud[#Headers],0))-INDEX(TurunduseTegelikud[],MATCH(INDEX(TurunduseErinevused[],ROW()-ROW(TurunduseErinevused[[#Headers],[Märts]]),1),INDEX(TurunduseKavandatud[],,1),0),MATCH(TurunduseErinevused[[#Headers],[Märts]],TurunduseTegelikud[#Headers],0)) -> 0.00 € | F24: =INDEX(TurunduseKavandatud[],MATCH(INDEX(TurunduseErinevused[],ROW()-ROW(TurunduseErinevused[[#Headers],[Apr]]),1),INDEX(TurunduseKavandatud[],,1),0),MATCH(TurunduseErinevused[[#Headers],[Apr]],TurunduseKavandatud[#Headers],0))-INDEX(TurunduseTegelikud[],MATCH(INDEX(TurunduseErinevused[],ROW()-ROW(TurunduseErinevused[[#Headers],[Apr]]),1),INDEX(TurunduseKavandatud[],,1),0),MATCH(TurunduseErinevused[[#Headers],[Apr]],TurunduseTegelikud[#Headers],0)) -> -500.00 € | G24: =INDEX(TurunduseKavandatud[],MATCH(INDEX(TurunduseErinevused[],ROW()-ROW(TurunduseErinevused[[#Headers],[Mai]]),1),INDEX(TurunduseKavandatud[],,1),0),MATCH(TurunduseErinevused[[#Headers],[Mai]],TurunduseKavandatud[#Headers],0))-INDEX(TurunduseTegelikud[],MATCH(INDEX(TurunduseErinevused[],ROW()-ROW(TurunduseErinevused[[#Headers],[Mai]]),1),INDEX(TurunduseKavandatud[],,1),0),MATCH(TurunduseErinevused[[#Headers],[Mai]],TurunduseTegelikud[#Headers],0)) -> 0.00 € | H24: =INDEX(TurunduseKavandatud[],MATCH(INDEX(TurunduseErinevused[],ROW()-ROW(TurunduseErinevused[[#Headers],[Juuni]]),1),INDEX(TurunduseKavandatud[],,1),0),MATCH(TurunduseErinevused[[#Headers],[Juuni]],TurunduseKavandatud[#Headers],0))-INDEX(TurunduseTegelikud[],MATCH(INDEX(TurunduseErinevused[],ROW()-ROW(TurunduseErinevused[[#Headers],[Juuni]]),1),INDEX(TurunduseKavandatud[],,1),0),MATCH(TurunduseErinevused[[#Headers],[Juuni]],TurunduseTegelikud[#Headers],0)) -> 0.00 € | I24: =INDEX(TurunduseKavandatud[],MATCH(INDEX(TurunduseErinevused[],ROW()-ROW(TurunduseErinevused[[#Headers],[Juuli]]),1),INDEX(TurunduseKavandatud[],,1),0),MATCH(TurunduseErinevused[[#Headers],[Juuli]],TurunduseKavandatud[#Headers],0))-INDEX(TurunduseTegelikud[],MATCH(INDEX(TurunduseErinevused[],ROW()-ROW(TurunduseErinevused[[#Headers],[Juuli]]),1),INDEX(TurunduseKavandatud[],,1),0),MATCH(TurunduseErinevused[[#Headers],[Juuli]],TurunduseTegelikud[#Headers],0)) -> 5,000.00 € | J24: =INDEX(TurunduseKavandatud[],MATCH(INDEX(TurunduseErinevused[],ROW()-ROW(TurunduseErinevused[[#Headers],[Aug]]),1),INDEX(TurunduseKavandatud[],,1),0),MATCH(TurunduseErinevused[[#Headers],[Aug]],TurunduseKavandatud[#Headers],0))-INDEX(TurunduseTegelikud[],MATCH(INDEX(TurunduseErinevused[],ROW()-ROW(TurunduseErinevused[[#Headers],[Aug]]),1),INDEX(TurunduseKavandatud[],,1),0),MATCH(TurunduseErinevused[[#Headers],[Aug]],TurunduseTegelikud[#Headers],0)) -> 0.00 € | K24: =INDEX(TurunduseKavandatud[],MATCH(INDEX(TurunduseErinevused[],ROW()-ROW(TurunduseErinevused[[#Headers],[Sept]]),1),INDEX(TurunduseKavandatud[],,1),0),MATCH(TurunduseErinevused[[#Headers],[Sept]],TurunduseKavandatud[#Headers],0))-INDEX(TurunduseTegelikud[],MATCH(INDEX(TurunduseErinevused[],ROW()-ROW(TurunduseErinevused[[#Headers],[Sept]]),1),INDEX(TurunduseKavandatud[],,1),0),MATCH(TurunduseErinevused[[#Headers],[Sept]],TurunduseTegelikud[#Headers],0)) -> 0.00 € | L24: =INDEX(TurunduseKavandatud[],MATCH(INDEX(TurunduseErinevused[],ROW()-ROW(TurunduseErinevused[[#Headers],[Okt]]),1),INDEX(TurunduseKavandatud[],,1),0),MATCH(TurunduseErinevused[[#Headers],[Okt]],TurunduseKavandatud[#Headers],0))-INDEX(TurunduseTegelikud[],MATCH(INDEX(TurunduseErinevused[],ROW()-ROW(TurunduseErinevused[[#Headers],[Okt]]),1),INDEX(TurunduseKavandatud[],,1),0),MATCH(TurunduseErinevused[[#Headers],[Okt]],TurunduseTegelikud[#Headers],0)) -> 5,000.00 € | M24: =INDEX(TurunduseKavandatud[],MATCH(INDEX(TurunduseErinevused[],ROW()-ROW(TurunduseErinevused[[#Headers],[Nov]]),1),INDEX(TurunduseKavandatud[],,1),0),MATCH(TurunduseErinevused[[#Headers],[Nov]],TurunduseKavandatud[#Headers],0))-INDEX(TurunduseTegelikud[],MATCH(INDEX(TurunduseErinevused[],ROW()-ROW(TurunduseErinevused[[#Headers],[Nov]]),1),INDEX(TurunduseKavandatud[],,1),0),MATCH(TurunduseErinevused[[#Headers],[Nov]],TurunduseTegelikud[#Headers],0)) -> 0.00 € | N24: =INDEX(TurunduseKavandatud[],MATCH(INDEX(TurunduseErinevused[],ROW()-ROW(TurunduseErinevused[[#Headers],[Dets]]),1),INDEX(TurunduseKavandatud[],,1),0),MATCH(TurunduseErinevused[[#Headers],[Dets]],TurunduseKavandatud[#Headers],0))-INDEX(TurunduseTegelikud[],MATCH(INDEX(TurunduseErinevused[],ROW()-ROW(TurunduseErinevused[[#Headers],[Dets]]),1),INDEX(TurunduseKavandatud[],,1),0),MATCH(TurunduseErinevused[[#Headers],[Dets]],TurunduseTegelikud[#Headers],0)) -> 0.00 € | O24: =SUM(TurunduseErinevused[[#This Row],[Jaan]:[Dets]]) -> 9,700.00 €
B25: Kaasmaterjalide printimine | C25: =INDEX(TurunduseKavandatud[],MATCH(INDEX(TurunduseErinevused[],ROW()-ROW(TurunduseErinevused[[#Headers],[Jaan]]),1),INDEX(TurunduseKavandatud[],,1),0),MATCH(TurunduseErinevused[[#Headers],[Jaan]],TurunduseKavandatud[#Headers],0))-INDEX(TurunduseTegelikud[],MATCH(INDEX(TurunduseErinevused[],ROW()-ROW(TurunduseErinevused[[#Headers],[Jaan]]),1),INDEX(TurunduseKavandatud[],,1),0),MATCH(TurunduseErinevused[[#Headers],[Jaan]],TurunduseTegelikud[#Headers],0)) -> 100.00 € | D25: =INDEX(TurunduseKavandatud[],MATCH(INDEX(TurunduseErinevused[],ROW()-ROW(TurunduseErinevused[[#Headers],[Veebr]]),1),INDEX(TurunduseKavandatud[],,1),0),MATCH(TurunduseErinevused[[#Headers],[Veebr]],TurunduseKavandatud[#Headers],0))-INDEX(TurunduseTegelikud[],MATCH(INDEX(TurunduseErinevused[],ROW()-ROW(TurunduseErinevused[[#Headers],[Veebr]]),1),INDEX(TurunduseKavandatud[],,1),0),MATCH(TurunduseErinevused[[#Headers],[Veebr]],TurunduseTegelikud[#Headers],0)) -> -300.00 € | E25: =INDEX(TurunduseKavandatud[],MATCH(INDEX(TurunduseErinevused[],ROW()-ROW(TurunduseErinevused[[#Headers],[Märts]]),1),INDEX(TurunduseKavandatud[],,1),0),MATCH(TurunduseErinevused[[#Headers],[Märts]],TurunduseKavandatud[#Headers],0))-INDEX(TurunduseTegelikud[],MATCH(INDEX(TurunduseErinevused[],ROW()-ROW(TurunduseErinevused[[#Headers],[Märts]]),1),INDEX(TurunduseKavandatud[],,1),0),MATCH(TurunduseErinevused[[#Headers],[Märts]],TurunduseTegelikud[#Headers],0)) -> 100.00 € | F25: =INDEX(TurunduseKavandatud[],MATCH(INDEX(TurunduseErinevused[],ROW()-ROW(TurunduseErinevused[[#Headers],[Apr]]),1),INDEX(TurunduseKavandatud[],,1),0),MATCH(TurunduseErinevused[[#Headers],[Apr]],TurunduseKavandatud[#Headers],0))-INDEX(TurunduseTegelikud[],MATCH(INDEX(TurunduseErinevused[],ROW()-ROW(TurunduseErinevused[[#Headers],[Apr]]),1),INDEX(TurunduseKavandatud[],,1),0),MATCH(TurunduseErinevused[[#Headers],[Apr]],TurunduseTegelikud[#Headers],0)) -> 100.00 € | G25: =INDEX(TurunduseKavandatud[],MATCH(INDEX(TurunduseErinevused[],ROW()-ROW(TurunduseErinevused[[#Headers],[Mai]]),1),INDEX(TurunduseKavandatud[],,1),0),MATCH(TurunduseErinevused[[#Headers],[Mai]],TurunduseKavandatud[#Headers],0))-INDEX(TurunduseTegelikud[],MATCH(INDEX(TurunduseErinevused[],ROW()-ROW(TurunduseErinevused[[#Headers],[Mai]]),1),INDEX(TurunduseKavandatud[],,1),0),MATCH(TurunduseErinevused[[#Headers],[Mai]],TurunduseTegelikud[#Headers],0)) -> -400.00 € | H25: =INDEX(TurunduseKavandatud[],MATCH(INDEX(TurunduseErinevused[],ROW()-ROW(TurunduseErinevused[[#Headers],[Juuni]]),1),INDEX(TurunduseKavandatud[],,1),0),MATCH(TurunduseErinevused[[#Headers],[Juuni]],TurunduseKavandatud[#Headers],0))-INDEX(TurunduseTegelikud[],MATCH(INDEX(TurunduseErinevused[],ROW()-ROW(TurunduseErinevused[[#Headers],[Juuni]]),1),INDEX(TurunduseKavandatud[],,1),0),MATCH(TurunduseErinevused[[#Headers],[Juuni]],TurunduseTegelikud[#Headers],0)) -> 20.00 € | I25: =INDEX(TurunduseKavandatud[],MATCH(INDEX(TurunduseErinevused[],ROW()-ROW(TurunduseErinevused[[#Headers],[Juuli]]),1),INDEX(TurunduseKavandatud[],,1),0),MATCH(TurunduseErinevused[[#Headers],[Juuli]],TurunduseKavandatud[#Headers],0))-INDEX(TurunduseTegelikud[],MATCH(INDEX(TurunduseErinevused[],ROW()-ROW(TurunduseErinevused[[#Headers],[Juuli]]),1),INDEX(TurunduseKavandatud[],,1),0),MATCH(TurunduseErinevused[[#Headers],[Juuli]],TurunduseTegelikud[#Headers],0)) -> 200.00 € | J25: =INDEX(TurunduseKavandatud[],MATCH(INDEX(TurunduseErinevused[],ROW()-ROW(TurunduseErinevused[[#Headers],[Aug]]),1),INDEX(TurunduseKavandatud[],,1),0),MATCH(TurunduseErinevused[[#Headers],[Aug]],TurunduseKavandatud[#Headers],0))-INDEX(TurunduseTegelikud[],MATCH(INDEX(TurunduseErinevused[],ROW()-ROW(TurunduseErinevused[[#Headers],[Aug]]),1),INDEX(TurunduseKavandatud[],,1),0),MATCH(TurunduseErinevused[[#Headers],[Aug]],TurunduseTegelikud[#Headers],0)) -> 200.00 € | K25: =INDEX(TurunduseKavandatud[],MATCH(INDEX(TurunduseErinevused[],ROW()-ROW(TurunduseErinevused[[#Headers],[Sept]]),1),INDEX(TurunduseKavandatud[],,1),0),MATCH(TurunduseErinevused[[#Headers],[Sept]],TurunduseKavandatud[#Headers],0))-INDEX(TurunduseTegelikud[],MATCH(INDEX(TurunduseErinevused[],ROW()-ROW(TurunduseErinevused[[#Headers],[Sept]]),1),INDEX(TurunduseKavandatud[],,1),0),MATCH(TurunduseErinevused[[#Headers],[Sept]],TurunduseTegelikud[#Headers],0)) -> 200.00 € | L25: =INDEX(TurunduseKavandatud[],MATCH(INDEX(TurunduseErinevused[],ROW()-ROW(TurunduseErinevused[[#Headers],[Okt]]),1),INDEX(TurunduseKavandatud[],,1),0),MATCH(TurunduseErinevused[[#Headers],[Okt]],TurunduseKavandatud[#Headers],0))-INDEX(TurunduseTegelikud[],MATCH(INDEX(TurunduseErinevused[],ROW()-ROW(TurunduseErinevused[[#Headers],[Okt]]),1),INDEX(TurunduseKavandatud[],,1),0),MATCH(TurunduseErinevused[[#Headers],[Okt]],TurunduseTegelikud[#Headers],0)) -> 200.00 € | M25: =INDEX(TurunduseKavandatud[],MATCH(INDEX(TurunduseErinevused[],ROW()-ROW(TurunduseErinevused[[#Headers],[Nov]]),1),INDEX(TurunduseKavandatud[],,1),0),MATCH(TurunduseErinevused[[#Headers],[Nov]],TurunduseKavandatud[#Headers],0))-INDEX(TurunduseTegelikud[],MATCH(INDEX(TurunduseErinevused[],ROW()-ROW(TurunduseErinevused[[#Headers],[Nov]]),1),INDEX(TurunduseKavandatud[],,1),0),MATCH(TurunduseErinevused[[#Headers],[Nov]],TurunduseTegelikud[#Headers],0)) -> 200.00 € | N25: =INDEX(TurunduseKavandatud[],MATCH(INDEX(TurunduseErinevused[],ROW()-ROW(TurunduseErinevused[[#Headers],[Dets]]),1),INDEX(TurunduseKavandatud[],,1),0),MATCH(TurunduseErinevused[[#Headers],[Dets]],TurunduseKavandatud[#Headers],0))-INDEX(TurunduseTegelikud[],MATCH(INDEX(TurunduseErinevused[],ROW()-ROW(TurunduseErinevused[[#Headers],[Dets]]),1),INDEX(TurunduseKavandatud[],,1),0),MATCH(TurunduseErinevused[[#Headers],[Dets]],TurunduseTegelikud[#Headers],0)) -> 200.00 € | O25: =SUM(TurunduseErinevused[[#This Row],[Jaan]:[Dets]]) -> 820.00 €
B26: Turundussündmused | C26: =INDEX(TurunduseKavandatud[],MATCH(INDEX(TurunduseErinevused[],ROW()-ROW(TurunduseErinevused[[#Headers],[Jaan]]),1),INDEX(TurunduseKavandatud[],,1),0),MATCH(TurunduseErinevused[[#Headers],[Jaan]],TurunduseKavandatud[#Headers],0))-INDEX(TurunduseTegelikud[],MATCH(INDEX(TurunduseErinevused[],ROW()-ROW(TurunduseErinevused[[#Headers],[Jaan]]),1),INDEX(TurunduseKavandatud[],,1),0),MATCH(TurunduseErinevused[[#Headers],[Jaan]],TurunduseTegelikud[#Headers],0)) -> 200.00 € | D26: =INDEX(TurunduseKavandatud[],MATCH(INDEX(TurunduseErinevused[],ROW()-ROW(TurunduseErinevused[[#Headers],[Veebr]]),1),INDEX(TurunduseKavandatud[],,1),0),MATCH(TurunduseErinevused[[#Headers],[Veebr]],TurunduseKavandatud[#Headers],0))-INDEX(TurunduseTegelikud[],MATCH(INDEX(TurunduseErinevused[],ROW()-ROW(TurunduseErinevused[[#Headers],[Veebr]]),1),INDEX(TurunduseKavandatud[],,1),0),MATCH(TurunduseErinevused[[#Headers],[Veebr]],TurunduseTegelikud[#Headers],0)) -> -200.00 € | E26: =INDEX(TurunduseKavandatud[],MATCH(INDEX(TurunduseErinevused[],ROW()-ROW(TurunduseErinevused[[#Headers],[Märts]]),1),INDEX(TurunduseKavandatud[],,1),0),MATCH(TurunduseErinevused[[#Headers],[Märts]],TurunduseKavandatud[#Headers],0))-INDEX(TurunduseTegelikud[],MATCH(INDEX(TurunduseErinevused[],ROW()-ROW(TurunduseErinevused[[#Headers],[Märts]]),1),INDEX(TurunduseKavandatud[],,1),0),MATCH(TurunduseErinevused[[#Headers],[Märts]],TurunduseTegelikud[#Headers],0)) -> -200.00 € | F26: =INDEX(TurunduseKavandatud[],MATCH(INDEX(TurunduseErinevused[],ROW()-ROW(TurunduseErinevused[[#Headers],[Apr]]),1),INDEX(TurunduseKavandatud[],,1),0),MATCH(TurunduseErinevused[[#Headers],[Apr]],TurunduseKavandatud[#Headers],0))-INDEX(TurunduseTegelikud[],MATCH(INDEX(TurunduseErinevused[],ROW()-ROW(TurunduseErinevused[[#Headers],[Apr]]),1),INDEX(TurunduseKavandatud[],,1),0),MATCH(TurunduseErinevused[[#Headers],[Apr]],TurunduseTegelikud[#Headers],0)) -> 300.00 € | G26: =INDEX(TurunduseKavandatud[],MATCH(INDEX(TurunduseErinevused[],ROW()-ROW(TurunduseErinevused[[#Headers],[Mai]]),1),INDEX(TurunduseKavandatud[],,1),0),MATCH(TurunduseErinevused[[#Headers],[Mai]],TurunduseKavandatud[#Headers],0))-INDEX(TurunduseTegelikud[],MATCH(INDEX(TurunduseErinevused[],ROW()-ROW(TurunduseErinevused[[#Headers],[Mai]]),1),INDEX(TurunduseKavandatud[],,1),0),MATCH(TurunduseErinevused[[#Headers],[Mai]],TurunduseTegelikud[#Headers],0)) -> 500.00 € | H26: =INDEX(TurunduseKavandatud[],MATCH(INDEX(TurunduseErinevused[],ROW()-ROW(TurunduseErinevused[[#Headers],[Juuni]]),1),INDEX(TurunduseKavandatud[],,1),0),MATCH(TurunduseErinevused[[#Headers],[Juuni]],TurunduseKavandatud[#Headers],0))-INDEX(TurunduseTegelikud[],MATCH(INDEX(TurunduseErinevused[],ROW()-ROW(TurunduseErinevused[[#Headers],[Juuni]]),1),INDEX(TurunduseKavandatud[],,1),0),MATCH(TurunduseErinevused[[#Headers],[Juuni]],TurunduseTegelikud[#Headers],0)) -> -300.00 € | I26: =INDEX(TurunduseKavandatud[],MATCH(INDEX(TurunduseErinevused[],ROW()-ROW(TurunduseErinevused[[#Headers],[Juuli]]),1),INDEX(TurunduseKavandatud[],,1),0),MATCH(TurunduseErinevused[[#Headers],[Juuli]],TurunduseKavandatud[#Headers],0))-INDEX(TurunduseTegelikud[],MATCH(INDEX(TurunduseErinevused[],ROW()-ROW(TurunduseErinevused[[#Headers],[Juuli]]),1),INDEX(TurunduseKavandatud[],,1),0),MATCH(TurunduseErinevused[[#Headers],[Juuli]],TurunduseTegelikud[#Headers],0)) -> 2,000.00 € | J26: =INDEX(TurunduseKavandatud[],MATCH(INDEX(TurunduseErinevused[],ROW()-ROW(TurunduseErinevused[[#Headers],[Aug]]),1),INDEX(TurunduseKavandatud[],,1),0),MATCH(TurunduseErinevused[[#Headers],[Aug]],TurunduseKavandatud[#Headers],0))-INDEX(TurunduseTegelikud[],MATCH(INDEX(TurunduseErinevused[],ROW()-ROW(TurunduseErinevused[[#Headers],[Aug]]),1),INDEX(TurunduseKavandatud[],,1),0),MATCH(TurunduseErinevused[[#Headers],[Aug]],TurunduseTegelikud[#Headers],0)) -> 5,000.00 € | K26: =INDEX(TurunduseKavandatud[],MATCH(INDEX(TurunduseErinevused[],ROW()-ROW(TurunduseErinevused[[#Headers],[Sept]]),1),INDEX(TurunduseKavandatud[],,1),0),MATCH(TurunduseErinevused[[#Headers],[Sept]],TurunduseKavandatud[#Headers],0))-INDEX(TurunduseTegelikud[],MATCH(INDEX(TurunduseErinevused[],ROW()-ROW(TurunduseErinevused[[#Headers],[Sept]]),1),INDEX(TurunduseKavandatud[],,1),0),MATCH(TurunduseErinevused[[#Headers],[Sept]],TurunduseTegelikud[#Headers],0)) -> 2,000.00 € | L26: =INDEX(TurunduseKavandatud[],MATCH(INDEX(TurunduseErinevused[],ROW()-ROW(TurunduseErinevused[[#Headers],[Okt]]),1),INDEX(TurunduseKavandatud[],,1),0),MATCH(TurunduseErinevused[[#Headers],[Okt]],TurunduseKavandatud[#Headers],0))-INDEX(TurunduseTegelikud[],MATCH(INDEX(TurunduseErinevused[],ROW()-ROW(TurunduseErinevused[[#Headers],[Okt]]),1),INDEX(TurunduseKavandatud[],,1),0),MATCH(TurunduseErinevused[[#Headers],[Okt]],TurunduseTegelikud[#Headers],0)) -> 2,000.00 € | M26: =INDEX(TurunduseKavandatud[],MATCH(INDEX(TurunduseErinevused[],ROW()-ROW(TurunduseErinevused[[#Headers],[Nov]]),1),INDEX(TurunduseKavandatud[],,1),0),MATCH(TurunduseErinevused[[#Headers],[Nov]],TurunduseKavandatud[#Headers],0))-INDEX(TurunduseTegelikud[],MATCH(INDEX(TurunduseErinevused[],ROW()-ROW(TurunduseErinevused[[#Headers],[Nov]]),1),INDEX(TurunduseKavandatud[],,1),0),MATCH(TurunduseErinevused[[#Headers],[Nov]],TurunduseTegelikud[#Headers],0)) -> 2,000.00 € | N26: =INDEX(TurunduseKavandatud[],MATCH(INDEX(TurunduseErinevused[],ROW()-ROW(TurunduseErinevused[[#Headers],[Dets]]),1),INDEX(TurunduseKavandatud[],,1),0),MATCH(TurunduseErinevused[[#Headers],[Dets]],TurunduseKavandatud[#Headers],0))-INDEX(TurunduseTegelikud[],MATCH(INDEX(TurunduseErinevused[],ROW()-ROW(TurunduseErinevused[[#Headers],[Dets]]),1),INDEX(TurunduseKavandatud[],,1),0),MATCH(TurunduseErinevused[[#Headers],[Dets]],TurunduseTegelikud[#Headers],0)) -> 5,000.00 € | O26: =SUM(TurunduseErinevused[[#This Row],[Jaan]:[Dets]]) -> 18,300.00 €
B27: Muud kulud | C27: =INDEX(TurunduseKavandatud[],MATCH(INDEX(TurunduseErinevused[],ROW()-ROW(TurunduseErinevused[[#Headers],[Jaan]]),1),INDEX(TurunduseKavandatud[],,1),0),MATCH(TurunduseErinevused[[#Headers],[Jaan]],TurunduseKavandatud[#Headers],0))-INDEX(TurunduseTegelikud[],MATCH(INDEX(TurunduseErinevused[],ROW()-ROW(TurunduseErinevused[[#Headers],[Jaan]]),1),INDEX(TurunduseKavandatud[],,1),0),MATCH(TurunduseErinevused[[#Headers],[Jaan]],TurunduseTegelikud[#Headers],0)) -> 55.00 € | D27: =INDEX(TurunduseKavandatud[],MATCH(INDEX(TurunduseErinevused[],ROW()-ROW(TurunduseErinevused[[#Headers],[Veebr]]),1),INDEX(TurunduseKavandatud[],,1),0),MATCH(TurunduseErinevused[[#Headers],[Veebr]],TurunduseKavandatud[#Headers],0))-INDEX(TurunduseTegelikud[],MATCH(INDEX(TurunduseErinevused[],ROW()-ROW(TurunduseErinevused[[#Headers],[Veebr]]),1),INDEX(TurunduseKavandatud[],,1),0),MATCH(TurunduseErinevused[[#Headers],[Veebr]],TurunduseTegelikud[#Headers],0)) -> 44.00 € | E27: =INDEX(TurunduseKavandatud[],MATCH(INDEX(TurunduseErinevused[],ROW()-ROW(TurunduseErinevused[[#Headers],[Märts]]),1),INDEX(TurunduseKavandatud[],,1),0),MATCH(TurunduseErinevused[[#Headers],[Märts]],TurunduseKavandatud[#Headers],0))-INDEX(TurunduseTegelikud[],MATCH(INDEX(TurunduseErinevused[],ROW()-ROW(TurunduseErinevused[[#Headers],[Märts]]),1),INDEX(TurunduseKavandatud[],,1),0),MATCH(TurunduseErinevused[[#Headers],[Märts]],TurunduseTegelikud[#Headers],0)) -> 77.00 € | F27: =INDEX(TurunduseKavandatud[],MATCH(INDEX(TurunduseErinevused[],ROW()-ROW(TurunduseErinevused[[#Headers],[Apr]]),1),INDEX(TurunduseKavandatud[],,1),0),MATCH(TurunduseErinevused[[#Headers],[Apr]],TurunduseKavandatud[#Headers],0))-INDEX(TurunduseTegelikud[],MATCH(INDEX(TurunduseErinevused[],ROW()-ROW(TurunduseErinevused[[#Headers],[Apr]]),1),INDEX(TurunduseKavandatud[],,1),0),MATCH(TurunduseErinevused[[#Headers],[Apr]],TurunduseTegelikud[#Headers],0)) -> -23.00 € | G27: =INDEX(TurunduseKavandatud[],MATCH(INDEX(TurunduseErinevused[],ROW()-ROW(TurunduseErinevused[[#Headers],[Mai]]),1),INDEX(TurunduseKavandatud[],,1),0),MATCH(TurunduseErinevused[[#Headers],[Mai]],TurunduseKavandatud[#Headers],0))-INDEX(TurunduseTegelikud[],MATCH(INDEX(TurunduseErinevused[],ROW()-ROW(TurunduseErinevused[[#Headers],[Mai]]),1),INDEX(TurunduseKavandatud[],,1),0),MATCH(TurunduseErinevused[[#Headers],[Mai]],TurunduseTegelikud[#Headers],0)) -> 13.00 € | H27: =INDEX(TurunduseKavandatud[],MATCH(INDEX(TurunduseErinevused[],ROW()-ROW(TurunduseErinevused[[#Headers],[Juuni]]),1),INDEX(TurunduseKavandatud[],,1),0),MATCH(TurunduseErinevused[[#Headers],[Juuni]],TurunduseKavandatud[#Headers],0))-INDEX(TurunduseTegelikud[],MATCH(INDEX(TurunduseErinevused[],ROW()-ROW(TurunduseErinevused[[#Headers],[Juuni]]),1),INDEX(TurunduseKavandatud[],,1),0),MATCH(TurunduseErinevused[[#Headers],[Juuni]],TurunduseTegelikud[#Headers],0)) -> -45.00 € | I27: =INDEX(TurunduseKavandatud[],MATCH(INDEX(TurunduseErinevused[],ROW()-ROW(TurunduseErinevused[[#Headers],[Juuli]]),1),INDEX(TurunduseKavandatud[],,1),0),MATCH(TurunduseErinevused[[#Headers],[Juuli]],TurunduseKavandatud[#Headers],0))-INDEX(TurunduseTegelikud[],MATCH(INDEX(TurunduseErinevused[],ROW()-ROW(TurunduseErinevused[[#Headers],[Juuli]]),1),INDEX(TurunduseKavandatud[],,1),0),MATCH(TurunduseErinevused[[#Headers],[Juuli]],TurunduseTegelikud[#Headers],0)) -> 200.00 € | J27: =INDEX(TurunduseKavandatud[],MATCH(INDEX(TurunduseErinevused[],ROW()-ROW(TurunduseErinevused[[#Headers],[Aug]]),1),INDEX(TurunduseKavandatud[],,1),0),MATCH(TurunduseErinevused[[#Headers],[Aug]],TurunduseKavandatud[#Headers],0))-INDEX(TurunduseTegelikud[],MATCH(INDEX(TurunduseErinevused[],ROW()-ROW(TurunduseErinevused[[#Headers],[Aug]]),1),INDEX(TurunduseKavandatud[],,1),0),MATCH(TurunduseErinevused[[#Headers],[Aug]],TurunduseTegelikud[#Headers],0)) -> 200.00 € | K27: =INDEX(TurunduseKavandatud[],MATCH(INDEX(TurunduseErinevused[],ROW()-ROW(TurunduseErinevused[[#Headers],[Sept]]),1),INDEX(TurunduseKavandatud[],,1),0),MATCH(TurunduseErinevused[[#Headers],[Sept]],TurunduseKavandatud[#Headers],0))-INDEX(TurunduseTegelikud[],MATCH(INDEX(TurunduseErinevused[],ROW()-ROW(TurunduseErinevused[[#Headers],[Sept]]),1),INDEX(TurunduseKavandatud[],,1),0),MATCH(TurunduseErinevused[[#Headers],[Sept]],TurunduseTegelikud[#Headers],0)) -> 200.00 € | L27: =INDEX(TurunduseKavandatud[],MATCH(INDEX(TurunduseErinevused[],ROW()-ROW(TurunduseErinevused[[#Headers],[Okt]]),1),INDEX(TurunduseKavandatud[],,1),0),MATCH(TurunduseErinevused[[#Headers],[Okt]],TurunduseKavandatud[#Headers],0))-INDEX(TurunduseTegelikud[],MATCH(INDEX(TurunduseErinevused[],ROW()-ROW(TurunduseErinevused[[#Headers],[Okt]]),1),INDEX(TurunduseKavandatud[],,1),0),MATCH(TurunduseErinevused[[#Headers],[Okt]],TurunduseTegelikud[#Headers],0)) -> 200.00 € | M27: =INDEX(TurunduseKavandatud[],MATCH(INDEX(TurunduseErinevused[],ROW()-ROW(TurunduseErinevused[[#Headers],[Nov]]),1),INDEX(TurunduseKavandatud[],,1),0),MATCH(TurunduseErinevused[[#Headers],[Nov]],TurunduseKavandatud[#Headers],0))-INDEX(TurunduseTegelikud[],MATCH(INDEX(TurunduseErinevused[],ROW()-ROW(TurunduseErinevused[[#Headers],[Nov]]),1),INDEX(TurunduseKavandatud[],,1),0),MATCH(TurunduseErinevused[[#Headers],[Nov]],TurunduseTegelikud[#Headers],0)) -> 200.00 € | N27: =INDEX(TurunduseKavandatud[],MATCH(INDEX(TurunduseErinevused[],ROW()-ROW(TurunduseErinevused[[#Headers],[Dets]]),1),INDEX(TurunduseKavandatud[],,1),0),MATCH(TurunduseErinevused[[#Headers],[Dets]],TurunduseKavandatud[#Headers],0))-INDEX(TurunduseTegelikud[],MATCH(INDEX(TurunduseErinevused[],ROW()-ROW(TurunduseErinevused[[#Headers],[Dets]]),1),INDEX(TurunduseKavandatud[],,1),0),MATCH(TurunduseErinevused[[#Headers],[Dets]],TurunduseTegelikud[#Headers],0)) -> 200.00 € | O27: =SUM(TurunduseErinevused[[#This Row],[Jaan]:[Dets]]) -> 1,321.00 €
B28: Vahesumma | C28: =SUBTOTAL(109,TurunduseErinevused[Jaan]) -> 555.00 € | D28: =SUBTOTAL(109,TurunduseErinevused[Veebr]) -> -456.00 € | E28: =SUBTOTAL(109,TurunduseErinevused[Märts]) -> -23.00 € | F28: =SUBTOTAL(109,TurunduseErinevused[Apr]) -> -123.00 € | G28: =SUBTOTAL(109,TurunduseErinevused[Mai]) -> 113.00 € | H28: =SUBTOTAL(109,TurunduseErinevused[Juuni]) -> -825.00 € | I28: =SUBTOTAL(109,TurunduseErinevused[Juuli]) -> 8,100.00 € | J28: =SUBTOTAL(109,TurunduseErinevused[Aug]) -> 6,100.00 € | K28: =SUBTOTAL(109,TurunduseErinevused[Sept]) -> 3,100.00 € | L28: =SUBTOTAL(109,TurunduseErinevused[Okt]) -> 8,100.00 € | M28: =SUBTOTAL(109,TurunduseErinevused[Nov]) -> 3,100.00 € | N28: =SUBTOTAL(109,TurunduseErinevused[Dets]) -> 6,900.00 € | O28: =SUBTOTAL(109,TurunduseErinevused[AASTA]) -> 34,641.00 €
B30: Koolitus/reisimine | C30: Jaan | D30: Veebr | E30: Märts | F30: Apr | G30: Mai | H30: Juuni | I30: Juuli | J30: Aug | K30: Sept | L30: Okt | M30: Nov | N30: Dets | O30: AASTA
B31: Koolituskursused | C31: =INDEX(KoolituseJaReisiKavandatud[],MATCH(INDEX(KoolituseJaReisiErinevused[],ROW()-ROW(KoolituseJaReisiErinevused[[#Headers],[Jaan]]),1),INDEX(KoolituseJaReisiKavandatud[],,1),0),MATCH(KoolituseJaReisiErinevused[[#Headers],[Jaan]],KoolituseJaReisiKavandatud[#Headers],0))-INDEX(KoolituseJaReisiTegelikud[],MATCH(INDEX(KoolituseJaReisiErinevused[],ROW()-ROW(KoolituseJaReisiErinevused[[#Headers],[Jaan]]),1),INDEX(KoolituseJaReisiKavandatud[],,1),0),MATCH(KoolituseJaReisiErinevused[[#Headers],[Jaan]],KoolituseJaReisiTegelikud[#Headers],0)) -> 400.00 € | D31: =INDEX(KoolituseJaReisiKavandatud[],MATCH(INDEX(KoolituseJaReisiErinevused[],ROW()-ROW(KoolituseJaReisiErinevused[[#Headers],[Veebr]]),1),INDEX(KoolituseJaReisiKavandatud[],,1),0),MATCH(KoolituseJaReisiErinevused[[#Headers],[Veebr]],KoolituseJaReisiKavandatud[#Headers],0))-INDEX(KoolituseJaReisiTegelikud[],MATCH(INDEX(KoolituseJaReisiErinevused[],ROW()-ROW(KoolituseJaReisiErinevused[[#Headers],[Veebr]]),1),INDEX(KoolituseJaReisiKavandatud[],,1),0),MATCH(KoolituseJaReisiErinevused[[#Headers],[Veebr]],KoolituseJaReisiTegelikud[#Headers],0)) -> -400.00 € | E31: =INDEX(KoolituseJaReisiKavandatud[],MATCH(INDEX(KoolituseJaReisiErinevused[],ROW()-ROW(KoolituseJaReisiErinevused[[#Headers],[Märts]]),1),INDEX(KoolituseJaReisiKavandatud[],,1),0),MATCH(KoolituseJaReisiErinevused[[#Headers],[Märts]],KoolituseJaReisiKavandatud[#Headers],0))-INDEX(KoolituseJaReisiTegelikud[],MATCH(INDEX(KoolituseJaReisiErinevused[],ROW()-ROW(KoolituseJaReisiErinevused[[#Headers],[Märts]]),1),INDEX(KoolituseJaReisiKavandatud[],,1),0),MATCH(KoolituseJaReisiErinevused[[#Headers],[Märts]],KoolituseJaReisiTegelikud[#Headers],0)) -> 600.00 € | F31: =INDEX(KoolituseJaReisiKavandatud[],MATCH(INDEX(KoolituseJaReisiErinevused[],ROW()-ROW(KoolituseJaReisiErinevused[[#Headers],[Apr]]),1),INDEX(KoolituseJaReisiKavandatud[],,1),0),MATCH(KoolituseJaReisiErinevused[[#Headers],[Apr]],KoolituseJaReisiKavandatud[#Headers],0))-INDEX(KoolituseJaReisiTegelikud[],MATCH(INDEX(KoolituseJaReisiErinevused[],ROW()-ROW(KoolituseJaReisiErinevused[[#Headers],[Apr]]),1),INDEX(KoolituseJaReisiKavandatud[],,1),0),MATCH(KoolituseJaReisiErinevused[[#Headers],[Apr]],KoolituseJaReisiTegelikud[#Headers],0)) -> 400.00 € | G31: =INDEX(KoolituseJaReisiKavandatud[],MATCH(INDEX(KoolituseJaReisiErinevused[],ROW()-ROW(KoolituseJaReisiErinevused[[#Headers],[Mai]]),1),INDEX(KoolituseJaReisiKavandatud[],,1),0),MATCH(KoolituseJaReisiErinevused[[#Headers],[Mai]],KoolituseJaReisiKavandatud[#Headers],0))-INDEX(KoolituseJaReisiTegelikud[],MATCH(INDEX(KoolituseJaReisiErinevused[],ROW()-ROW(KoolituseJaReisiErinevused[[#Headers],[Mai]]),1),INDEX(KoolituseJaReisiKavandatud[],,1),0),MATCH(KoolituseJaReisiErinevused[[#Headers],[Mai]],KoolituseJaReisiTegelikud[#Headers],0)) -> 800.00 € | H31: =INDEX(KoolituseJaReisiKavandatud[],MATCH(INDEX(KoolituseJaReisiErinevused[],ROW()-ROW(KoolituseJaReisiErinevused[[#Headers],[Juuni]]),1),INDEX(KoolituseJaReisiKavandatud[],,1),0),MATCH(KoolituseJaReisiErinevused[[#Headers],[Juuni]],KoolituseJaReisiKavandatud[#Headers],0))-INDEX(KoolituseJaReisiTegelikud[],MATCH(INDEX(KoolituseJaReisiErinevused[],ROW()-ROW(KoolituseJaReisiErinevused[[#Headers],[Juuni]]),1),INDEX(KoolituseJaReisiKavandatud[],,1),0),MATCH(KoolituseJaReisiErinevused[[#Headers],[Juuni]],KoolituseJaReisiTegelikud[#Headers],0)) -> -800.00 € | I31: =INDEX(KoolituseJaReisiKavandatud[],MATCH(INDEX(KoolituseJaReisiErinevused[],ROW()-ROW(KoolituseJaReisiErinevused[[#Headers],[Juuli]]),1),INDEX(KoolituseJaReisiKavandatud[],,1),0),MATCH(KoolituseJaReisiErinevused[[#Headers],[Juuli]],KoolituseJaReisiKavandatud[#Headers],0))-INDEX(KoolituseJaReisiTegelikud[],MATCH(INDEX(KoolituseJaReisiErinevused[],ROW()-ROW(KoolituseJaReisiErinevused[[#Headers],[Juuli]]),1),INDEX(KoolituseJaReisiKavandatud[],,1),0),MATCH(KoolituseJaReisiErinevused[[#Headers],[Juuli]],KoolituseJaReisiTegelikud[#Headers],0)) -> 2,000.00 € | J31: =INDEX(KoolituseJaReisiKavandatud[],MATCH(INDEX(KoolituseJaReisiErinevused[],ROW()-ROW(KoolituseJaReisiErinevused[[#Headers],[Aug]]),1),INDEX(KoolituseJaReisiKavandatud[],,1),0),MATCH(KoolituseJaReisiErinevused[[#Headers],[Aug]],KoolituseJaReisiKavandatud[#Headers],0))-INDEX(KoolituseJaReisiTegelikud[],MATCH(INDEX(KoolituseJaReisiErinevused[],ROW()-ROW(KoolituseJaReisiErinevused[[#Headers],[Aug]]),1),INDEX(KoolituseJaReisiKavandatud[],,1),0),MATCH(KoolituseJaReisiErinevused[[#Headers],[Aug]],KoolituseJaReisiTegelikud[#Headers],0)) -> 2,000.00 € | K31: =INDEX(KoolituseJaReisiKavandatud[],MATCH(INDEX(KoolituseJaReisiErinevused[],ROW()-ROW(KoolituseJaReisiErinevused[[#Headers],[Sept]]),1),INDEX(KoolituseJaReisiKavandatud[],,1),0),MATCH(KoolituseJaReisiErinevused[[#Headers],[Sept]],KoolituseJaReisiKavandatud[#Headers],0))-INDEX(KoolituseJaReisiTegelikud[],MATCH(INDEX(KoolituseJaReisiErinevused[],ROW()-ROW(KoolituseJaReisiErinevused[[#Headers],[Sept]]),1),INDEX(KoolituseJaReisiKavandatud[],,1),0),MATCH(KoolituseJaReisiErinevused[[#Headers],[Sept]],KoolituseJaReisiTegelikud[#Headers],0)) -> 2,000.00 € | L31: =INDEX(KoolituseJaReisiKavandatud[],MATCH(INDEX(KoolituseJaReisiErinevused[],ROW()-ROW(KoolituseJaReisiErinevused[[#Headers],[Okt]]),1),INDEX(KoolituseJaReisiKavandatud[],,1),0),MATCH(KoolituseJaReisiErinevused[[#Headers],[Okt]],KoolituseJaReisiKavandatud[#Headers],0))-INDEX(KoolituseJaReisiTegelikud[],MATCH(INDEX(KoolituseJaReisiErinevused[],ROW()-ROW(KoolituseJaReisiErinevused[[#Headers],[Okt]]),1),INDEX(KoolituseJaReisiKavandatud[],,1),0),MATCH(KoolituseJaReisiErinevused[[#Headers],[Okt]],KoolituseJaReisiTegelikud[#Headers],0)) -> 2,000.00 € | M31: =INDEX(KoolituseJaReisiKavandatud[],MATCH(INDEX(KoolituseJaReisiErinevused[],ROW()-ROW(KoolituseJaReisiErinevused[[#Headers],[Nov]]),1),INDEX(KoolituseJaReisiKavandatud[],,1),0),MATCH(KoolituseJaReisiErinevused[[#Headers],[Nov]],KoolituseJaReisiKavandatud[#Headers],0))-INDEX(KoolituseJaReisiTegelikud[],MATCH(INDEX(KoolituseJaReisiErinevused[],ROW()-ROW(KoolituseJaReisiErinevused[[#Headers],[Nov]]),1),INDEX(KoolituseJaReisiKavandatud[],,1),0),MATCH(KoolituseJaReisiErinevused[[#Headers],[Nov]],KoolituseJaReisiTegelikud[#Headers],0)) -> 2,000.00 € | N31: =INDEX(KoolituseJaReisiKavandatud[],MATCH(INDEX(KoolituseJaReisiErinevused[],ROW()-ROW(KoolituseJaReisiErinevused[[#Headers],[Dets]]),1),INDEX(KoolituseJaReisiKavandatud[],,1),0),MATCH(KoolituseJaReisiErinevused[[#Headers],[Dets]],KoolituseJaReisiKavandatud[#Headers],0))-INDEX(KoolituseJaReisiTegelikud[],MATCH(INDEX(KoolituseJaReisiErinevused[],ROW()-ROW(KoolituseJaReisiErinevused[[#Headers],[Dets]]),1),INDEX(KoolituseJaReisiKavandatud[],,1),0),MATCH(KoolituseJaReisiErinevused[[#Headers],[Dets]],KoolituseJaReisiTegelikud[#Headers],0)) -> 2,000.00 € | O31: =SUM(KoolituseJaReisiErinevused[[#This Row],[Jaan]:[Dets]]) -> 13,000.00 €
B32: Koolitusega seotud reisikulud | C32: =INDEX(KoolituseJaReisiKavandatud[],MATCH(INDEX(KoolituseJaReisiErinevused[],ROW()-ROW(KoolituseJaReisiErinevused[[#Headers],[Jaan]]),1),INDEX(KoolituseJaReisiKavandatud[],,1),0),MATCH(KoolituseJaReisiErinevused[[#Headers],[Jaan]],KoolituseJaReisiKavandatud[#Headers],0))-INDEX(KoolituseJaReisiTegelikud[],MATCH(INDEX(KoolituseJaReisiErinevused[],ROW()-ROW(KoolituseJaReisiErinevused[[#Headers],[Jaan]]),1),INDEX(KoolituseJaReisiKavandatud[],,1),0),MATCH(KoolituseJaReisiErinevused[[#Headers],[Jaan]],KoolituseJaReisiTegelikud[#Headers],0)) -> 800.00 € | D32: =INDEX(KoolituseJaReisiKavandatud[],MATCH(INDEX(KoolituseJaReisiErinevused[],ROW()-ROW(KoolituseJaReisiErinevused[[#Headers],[Veebr]]),1),INDEX(KoolituseJaReisiKavandatud[],,1),0),MATCH(KoolituseJaReisiErinevused[[#Headers],[Veebr]],KoolituseJaReisiKavandatud[#Headers],0))-INDEX(KoolituseJaReisiTegelikud[],MATCH(INDEX(KoolituseJaReisiErinevused[],ROW()-ROW(KoolituseJaReisiErinevused[[#Headers],[Veebr]]),1),INDEX(KoolituseJaReisiKavandatud[],,1),0),MATCH(KoolituseJaReisiErinevused[[#Headers],[Veebr]],KoolituseJaReisiTegelikud[#Headers],0)) -> -200.00 € | E32: =INDEX(KoolituseJaReisiKavandatud[],MATCH(INDEX(KoolituseJaReisiErinevused[],ROW()-ROW(KoolituseJaReisiErinevused[[#Headers],[Märts]]),1),INDEX(KoolituseJaReisiKavandatud[],,1),0),MATCH(KoolituseJaReisiErinevused[[#Headers],[Märts]],KoolituseJaReisiKavandatud[#Headers],0))-INDEX(KoolituseJaReisiTegelikud[],MATCH(INDEX(KoolituseJaReisiErinevused[],ROW()-ROW(KoolituseJaReisiErinevused[[#Headers],[Märts]]),1),INDEX(KoolituseJaReisiKavandatud[],,1),0),MATCH(KoolituseJaReisiErinevused[[#Headers],[Märts]],KoolituseJaReisiTegelikud[#Headers],0)) -> 600.00 € | F32: =INDEX(KoolituseJaReisiKavandatud[],MATCH(INDEX(KoolituseJaReisiErinevused[],ROW()-ROW(KoolituseJaReisiErinevused[[#Headers],[Apr]]),1),INDEX(KoolituseJaReisiKavandatud[],,1),0),MATCH(KoolituseJaReisiErinevused[[#Headers],[Apr]],KoolituseJaReisiKavandatud[#Headers],0))-INDEX(KoolituseJaReisiTegelikud[],MATCH(INDEX(KoolituseJaReisiErinevused[],ROW()-ROW(KoolituseJaReisiErinevused[[#Headers],[Apr]]),1),INDEX(KoolituseJaReisiKavandatud[],,1),0),MATCH(KoolituseJaReisiErinevused[[#Headers],[Apr]],KoolituseJaReisiTegelikud[#Headers],0)) -> 800.00 € | G32: =INDEX(KoolituseJaReisiKavandatud[],MATCH(INDEX(KoolituseJaReisiErinevused[],ROW()-ROW(KoolituseJaReisiErinevused[[#Headers],[Mai]]),1),INDEX(KoolituseJaReisiKavandatud[],,1),0),MATCH(KoolituseJaReisiErinevused[[#Headers],[Mai]],KoolituseJaReisiKavandatud[#Headers],0))-INDEX(KoolituseJaReisiTegelikud[],MATCH(INDEX(KoolituseJaReisiErinevused[],ROW()-ROW(KoolituseJaReisiErinevused[[#Headers],[Mai]]),1),INDEX(KoolituseJaReisiKavandatud[],,1),0),MATCH(KoolituseJaReisiErinevused[[#Headers],[Mai]],KoolituseJaReisiTegelikud[#Headers],0)) -> 1,200.00 € | H32: =INDEX(KoolituseJaReisiKavandatud[],MATCH(INDEX(KoolituseJaReisiErinevused[],ROW()-ROW(KoolituseJaReisiErinevused[[#Headers],[Juuni]]),1),INDEX(KoolituseJaReisiKavandatud[],,1),0),MATCH(KoolituseJaReisiErinevused[[#Headers],[Juuni]],KoolituseJaReisiKavandatud[#Headers],0))-INDEX(KoolituseJaReisiTegelikud[],MATCH(INDEX(KoolituseJaReisiErinevused[],ROW()-ROW(KoolituseJaReisiErinevused[[#Headers],[Juuni]]),1),INDEX(KoolituseJaReisiKavandatud[],,1),0),MATCH(KoolituseJaReisiErinevused[[#Headers],[Juuni]],KoolituseJaReisiTegelikud[#Headers],0)) -> -1,500.00 € | I32: =INDEX(KoolituseJaReisiKavandatud[],MATCH(INDEX(KoolituseJaReisiErinevused[],ROW()-ROW(KoolituseJaReisiErinevused[[#Headers],[Juuli]]),1),INDEX(KoolituseJaReisiKavandatud[],,1),0),MATCH(KoolituseJaReisiErinevused[[#Headers],[Juuli]],KoolituseJaReisiKavandatud[#Headers],0))-INDEX(KoolituseJaReisiTegelikud[],MATCH(INDEX(KoolituseJaReisiErinevused[],ROW()-ROW(KoolituseJaReisiErinevused[[#Headers],[Juuli]]),1),INDEX(KoolituseJaReisiKavandatud[],,1),0),MATCH(KoolituseJaReisiErinevused[[#Headers],[Juuli]],KoolituseJaReisiTegelikud[#Headers],0)) -> 2,000.00 € | J32: =INDEX(KoolituseJaReisiKavandatud[],MATCH(INDEX(KoolituseJaReisiErinevused[],ROW()-ROW(KoolituseJaReisiErinevused[[#Headers],[Aug]]),1),INDEX(KoolituseJaReisiKavandatud[],,1),0),MATCH(KoolituseJaReisiErinevused[[#Headers],[Aug]],KoolituseJaReisiKavandatud[#Headers],0))-INDEX(KoolituseJaReisiTegelikud[],MATCH(INDEX(KoolituseJaReisiErinevused[],ROW()-ROW(KoolituseJaReisiErinevused[[#Headers],[Aug]]),1),INDEX(KoolituseJaReisiKavandatud[],,1),0),MATCH(KoolituseJaReisiErinevused[[#Headers],[Aug]],KoolituseJaReisiTegelikud[#Headers],0)) -> 2,000.00 € | K32: =INDEX(KoolituseJaReisiKavandatud[],MATCH(INDEX(KoolituseJaReisiErinevused[],ROW()-ROW(KoolituseJaReisiErinevused[[#Headers],[Sept]]),1),INDEX(KoolituseJaReisiKavandatud[],,1),0),MATCH(KoolituseJaReisiErinevused[[#Headers],[Sept]],KoolituseJaReisiKavandatud[#Headers],0))-INDEX(KoolituseJaReisiTegelikud[],MATCH(INDEX(KoolituseJaReisiErinevused[],ROW()-ROW(KoolituseJaReisiErinevused[[#Headers],[Sept]]),1),INDEX(KoolituseJaReisiKavandatud[],,1),0),MATCH(KoolituseJaReisiErinevused[[#Headers],[Sept]],KoolituseJaReisiTegelikud[#Headers],0)) -> 2,000.00 € | L32: =INDEX(KoolituseJaReisiKavandatud[],MATCH(INDEX(KoolituseJaReisiErinevused[],ROW()-ROW(KoolituseJaReisiErinevused[[#Headers],[Okt]]),1),INDEX(KoolituseJaReisiKavandatud[],,1),0),MATCH(KoolituseJaReisiErinevused[[#Headers],[Okt]],KoolituseJaReisiKavandatud[#Headers],0))-INDEX(KoolituseJaReisiTegelikud[],MATCH(INDEX(KoolituseJaReisiErinevused[],ROW()-ROW(KoolituseJaReisiErinevused[[#Headers],[Okt]]),1),INDEX(KoolituseJaReisiKavandatud[],,1),0),MATCH(KoolituseJaReisiErinevused[[#Headers],[Okt]],KoolituseJaReisiTegelikud[#Headers],0)) -> 2,000.00 € | M32: =INDEX(KoolituseJaReisiKavandatud[],MATCH(INDEX(KoolituseJaReisiErinevused[],ROW()-ROW(KoolituseJaReisiErinevused[[#Headers],[Nov]]),1),INDEX(KoolituseJaReisiKavandatud[],,1),0),MATCH(KoolituseJaReisiErinevused[[#Headers],[Nov]],KoolituseJaReisiKavandatud[#Headers],0))-INDEX(KoolituseJaReisiTegelikud[],MATCH(INDEX(KoolituseJaReisiErinevused[],ROW()-ROW(KoolituseJaReisiErinevused[[#Headers],[Nov]]),1),INDEX(KoolituseJaReisiKavandatud[],,1),0),MATCH(KoolituseJaReisiErinevused[[#Headers],[Nov]],KoolituseJaReisiTegelikud[#Headers],0)) -> 2,000.00 € | N32: =INDEX(KoolituseJaReisiKavandatud[],MATCH(INDEX(KoolituseJaReisiErinevused[],ROW()-ROW(KoolituseJaReisiErinevused[[#Headers],[Dets]]),1),INDEX(KoolituseJaReisiKavandatud[],,1),0),MATCH(KoolituseJaReisiErinevused[[#Headers],[Dets]],KoolituseJaReisiKavandatud[#Headers],0))-INDEX(KoolituseJaReisiTegelikud[],MATCH(INDEX(KoolituseJaReisiErinevused[],ROW()-ROW(KoolituseJaReisiErinevused[[#Headers],[Dets]]),1),INDEX(KoolituseJaReisiKavandatud[],,1),0),MATCH(KoolituseJaReisiErinevused[[#Headers],[Dets]],KoolituseJaReisiTegelikud[#Headers],0)) -> 2,000.00 € | O32: =SUM(KoolituseJaReisiErinevused[[#This Row],[Jaan]:[Dets]]) -> 13,700.00 €
B33: Vahesumma | C33: =SUBTOTAL(109,KoolituseJaReisiErinevused[Jaan]) -> 1,200.00 € | D33: =SUBTOTAL(109,KoolituseJaReisiErinevused[Veebr]) -> -600.00 € | E33: =SUBTOTAL(109,KoolituseJaReisiErinevused[Märts]) -> 1,200.00 € | F33: =SUBTOTAL(109,KoolituseJaReisiErinevused[Apr]) -> 1,200.00 € | G33: =SUBTOTAL(109,KoolituseJaReisiErinevused[Mai]) -> 2,000.00 € | H33: =SUBTOTAL(109,KoolituseJaReisiErinevused[Juuni]) -> -2,300.00 € | I33: =SUBTOTAL(109,KoolituseJaReisiErinevused[Juuli]) -> 4,000.00 € | J33: =SUBTOTAL(109,KoolituseJaReisiErinevused[Aug]) -> 4,000.00 € | K33: =SUBTOTAL(109,KoolituseJaReisiErinevused[Sept]) -> 4,000.00 € | L33: =SUBTOTAL(109,KoolituseJaReisiErinevused[Okt]) -> 4,000.00 € | M33: =SUBTOTAL(109,KoolituseJaReisiErinevused[Nov]) -> 4,000.00 € | N33: =SUBTOTAL(109,KoolituseJaReisiErinevused[Dets]) -> 4,000.00 € | O33: =SUBTOTAL(109,KoolituseJaReisiErinevused[AASTA]) -> 26,700.00 €
B35: KOGUSUMMMAD | C35: Jaan | D35: Veebr | E35: Märts | F35: Apr | G35: Mai | H35: Juuni | I35: Juuli | J35: Aug | K35: Sept | L35: Okt | M35: Nov | N35: Dets | O35: Aasta
B36: Tegelikud kuu kulud | C36: =KoolituseJaReisiErinevused[[#Totals],[Jaan]]+TurunduseErinevused[[#Totals],[Jaan]]+KontoriErinevused[[#Totals],[Jaan]]+TöötajaErinevused[[#Totals],[Jaan]] -> 1,738.00 € | D36: =KoolituseJaReisiErinevused[[#Totals],[Veebr]]+TurunduseErinevused[[#Totals],[Veebr]]+KontoriErinevused[[#Totals],[Veebr]]+TöötajaErinevused[[#Totals],[Veebr]] -> -984.00 € | E36: =KoolituseJaReisiErinevused[[#Totals],[Märts]]+TurunduseErinevused[[#Totals],[Märts]]+KontoriErinevused[[#Totals],[Märts]]+TöötajaErinevused[[#Totals],[Märts]] -> 1,255.00 € | F36: =KoolituseJaReisiErinevused[[#Totals],[Apr]]+TurunduseErinevused[[#Totals],[Apr]]+KontoriErinevused[[#Totals],[Apr]]+TöötajaErinevused[[#Totals],[Apr]] -> 301.00 € | G36: =KoolituseJaReisiErinevused[[#Totals],[Mai]]+TurunduseErinevused[[#Totals],[Mai]]+KontoriErinevused[[#Totals],[Mai]]+TöötajaErinevused[[#Totals],[Mai]] -> 1,440.00 € | H36: =KoolituseJaReisiErinevused[[#Totals],[Juuni]]+TurunduseErinevused[[#Totals],[Juuni]]+KontoriErinevused[[#Totals],[Juuni]]+TöötajaErinevused[[#Totals],[Juuni]] -> -3,744.00 € | I36: =KoolituseJaReisiErinevused[[#Totals],[Juuli]]+TurunduseErinevused[[#Totals],[Juuli]]+KontoriErinevused[[#Totals],[Juuli]]+TöötajaErinevused[[#Totals],[Juuli]] -> 134,695.00 € | J36: =KoolituseJaReisiErinevused[[#Totals],[Aug]]+TurunduseErinevused[[#Totals],[Aug]]+KontoriErinevused[[#Totals],[Aug]]+TöötajaErinevused[[#Totals],[Aug]] -> 138,918.00 € | K36: =KoolituseJaReisiErinevused[[#Totals],[Sept]]+TurunduseErinevused[[#Totals],[Sept]]+KontoriErinevused[[#Totals],[Sept]]+TöötajaErinevused[[#Totals],[Sept]] -> 135,918.00 € | L36: =KoolituseJaReisiErinevused[[#Totals],[Okt]]+TurunduseErinevused[[#Totals],[Okt]]+KontoriErinevused[[#Totals],[Okt]]+TöötajaErinevused[[#Totals],[Okt]] -> 140,918.00 € | M36: =KoolituseJaReisiErinevused[[#Totals],[Nov]]+TurunduseErinevused[[#Totals],[Nov]]+KontoriErinevused[[#Totals],[Nov]]+TöötajaErinevused[[#Totals],[Nov]] -> 136,218.00 € | N36: =KoolituseJaReisiErinevused[[#Totals],[Dets]]+TurunduseErinevused[[#Totals],[Dets]]+KontoriErinevused[[#Totals],[Dets]]+TöötajaErinevused[[#Totals],[Dets]] -> 140,018.00 € | O36: =KoolituseJaReisiErinevused[[#Totals],[AASTA]]+TurunduseErinevused[[#Totals],[AASTA]]+KontoriErinevused[[#Totals],[AASTA]]+TöötajaErinevused[[#Totals],[AASTA]] -> 826,691.00 €
B37: Tegelikud kulud KOKKU | C37: =SUM($C$36:C36) -> 1,738.00 € | D37: =SUM($C$36:D36) -> 754.00 € | E37: =SUM($C$36:E36) -> 2,009.00 € | F37: =SUM($C$36:F36) -> 2,310.00 € | G37: =SUM($C$36:G36) -> 3,750.00 € | H37: =SUM($C$36:H36) -> 6.00 € | I37: =SUM($C$36:I36) -> 134,701.00 € | J37: =SUM($C$36:J36) -> 273,619.00 € | K37: =SUM($C$36:K36) -> 409,537.00 € | L37: =SUM($C$36:L36) -> 550,455.00 € | M37: =SUM($C$36:M36) -> 686,673.00 € | N37: =SUM($C$36:N36) -> 826,691.00 €

Sheet KULUDE ANALÜÜS
B2: ='KAVANDATUD KULUD'!B2:D3 -> Ettevõtte nimi
E3: =töölehe_pealkiri -> Üksikasjalikud kulude prognoosid
B5: Kulukategooria | C5: Kavandatud kulud | D5: Tegelikud kulud | E5: Kuluerinevused | F5: Erinevuse protsent
B6: Töötaja kulud | C6: =TöötajaKavandatud[[#Totals],[AASTA]] -> 1,355,090.00 € | D6: =TöötajaTegelikud[[#Totals],[AASTA]] -> 659,130.00 € | E6: =C6-D6 -> 695,960.00 € | F6: =E6/C6 -> 51%
B7: ='KAVANDATUD KULUD'!B10 -> Kontorikulud | C7: =KontorKavandatud[[#Totals],[AASTA]] -> 138,740.00 € | D7: =KontoriTegelikud[[#Totals],[AASTA]] -> 69,350.00 € | E7: =C7-D7 -> 69,390.00 € | F7: =E7/C7 -> 50%
B8: ='KAVANDATUD KULUD'!B21 -> Turunduskulud | C8: =TurunduseKavandatud[[#Totals],[AASTA]] -> 67,800.00 € | D8: =TurunduseTegelikud[[#Totals],[AASTA]] -> 33,159.00 € | E8: =C8-D8 -> 34,641.00 € | F8: =E8/C8 -> 51%
B9: ='KAVANDATUD KULUD'!B30 -> Koolitus/reisimine | C9: =KoolituseJaReisiKavandatud[[#Totals],[AASTA]] -> 48,000.00 € | D9: =KoolituseJaReisiTegelikud[[#Totals],[AASTA]] -> 21,300.00 € | E9: =C9-D9 -> 26,700.00 € | F9: =E9/C9 -> 56%
B10: ='KAVANDATUD KULUD'!B35 -> KOGUSUMMMAD | C10: ='KAVANDATUD KULUD'!O36 -> 1,609,630.00 € | D10: ='TEGELIKUD KULUD'!O36 -> 782,939.00 € | E10: =C10-D10 -> 826,691.00 € | F10: =E10/C10 -> 51%
